Workbook

Sheet INFOS
B1: CE PETIT PROGRAMME EST FAIT POUR VOUS FACILITER LA GESTION DES INTERCLUBS PAR EQUIPES PROMOTION Mid Amateurs MESSIEURS SELON LA FORME DE JEU PRECONISEE PAR LA FFGOLF
B3: AVANT TOUTES CHOSES, IL VOUS FAUT ACTUALISER LES TABLEAUX DES PAGES SUIVANTES COMME-SUIT:
A5: 1: | B5: EN FONCTION DU NOMBRE D'EQUIPES INSCRITES ( DE 8 A 24 POSSIBLES), CLIQUEZ SUR LE BOUTON CORRESPONDANT CI-DESSOUS. SI LE PROGRAMME VOUS DEMANDE UN MOT DE PASSE, TAPER: JBDB EN LETTRES MAJUSCULES.
B7: Nombre d'équipes:
A10: 2: | B10: UNE FOIS QUE VOS TABLEAUX SONT ADAPTES AU NOMBRE D'EQUIPES PARTICIPANTES ET AU NOMBRE D'EQUIPES QUALIFIEES, COPIEZ CE FICHIER SUR LE DISQUE DUR. ATTENTION: SI VOUS CHANGEZ LE NOM DE CE FICHIER, LES MACROS AFFECTEES AUX BOUTONS CI-DESSUS AINSI QUE LES CLASSEMENTS NE FONCTIONNERONT PLUS. VOUS POUVEZ FAIRE DES SAUVEGARDES AU FUR ET A MESURE QUE LA COMPETITION AVANCE. POUR PALLIER UNE PANNE TOTALE D'INFORMATIQUE PENDANT LA COMPETITION, IMPRIMEZ TOUTES LES FEUILLES VIERGES POUR POUVOIR, LE CAS ECHEANT, TRAVAILLER EN MANUEL.

Sheet Prepa
A1: REMPLIR CETTE FEUILLE AVEC LE TITRE DE LA COMPETITION ET LE NOM DES CLUBS PARTICIPANT DE PREFERENCE DANS L'ORDRE DES DEPARTS OU PAR ORDRE ALPHABETIQUE.RENSEIGNER LA CELLULE "E8". LES FEUILLES SONT PROTEGEES, EN CAS DE BESOIN UTILISER: JBDB
A2: TITRE DE LA COMPETITION : | D2: INTERCLUBS PROMOTION Mid Amateurs MESSIEURS
A4: Sous TITRE DE LA COMPETITION : | D4: Ligue de
A6: Date et Lieu : | D6: Date Golf de …
A8: Nombre d'équipes montant en 4e Division: | E8: 2
A11: NOM DES CLUBS : | C11: 1 | D11: ALENCON/ARCONNA
C13: 2 | D13: BOIS D'O
C15: 3 | D15: BREST ABERS
C17: 4 | D17: BREST IROISE
C19: 5 | D19: CAP MALO
C21: 6 | D21: CARANTEC
C23: 7 | D23: CH. AUGERVILLE
C25: 8 | D25: CHARTRES FONTENAY
C27: 9 | D27: GLORIETTE
C29: 10 | D29: GUERANDE
C31: 11 | D31: ILE D'OR
C33: 12 | D33: LAC AU DUC
C35: 13 | D35: LAVAL
C37: 14 | D37: ORLEANS DONNERY
C39: 15 | D39: VAL DE L'INDRE
C41: 16 | D41: ROCHERS SEVIGNE
C43: 17 | D43: SABLE SOLESMES
C45: 18 | D45: SABLES D'OLONNE
C47: 19 | D47: SAINT CAST
C49: 20 | D49: SAINT-BRIEUC
C51: 21 | D51: SARGE/LE MANS
C53: 22 | D53: VAL DE L'INDRE
C55: 23
C57: 24

Sheet Particip
A1: REMPLIR CETTE FEUILLE ( par ordre d'index) AVEC LES NOMS, PRENOMS DES JOUEURS ET LEUR INDEX AVEC DECIMALE, L'ARRONDI SE FAIT AUTOMATIQUEMENT
A4: =Prepa!$D$2 -> INTERCLUBS PROMOTION Mid Amateurs MESSIEURS
A5: =Prepa!$D$4 -> Ligue de
A6: =Prepa!$D$6 -> Date Golf de …
A9: Fiche de composition d'Equipe
A10: Equipiers du club de : | E10: =Prepa!$D$11 -> ALENCON/ARCONNA
B11: Ind | C11: NOM | F11: Prénom | H11: Ind. Arr.
A12: 1 | B12: 1.3 | C12: SAIDI Jamil | H12: =IF(B12="","",FIXED(B12,0)) -> 1
A13: 2 | B13: 3.1 | C13: COPPOLA Laurent | H13: =IF(B13="","",FIXED(B13,0)) -> 3
A14: 3 | B14: 3.3 | C14: BOUGLE Xavier | H14: 3
A15: 4 | B15: 4.2 | C15: BOUSSELET Quentin | H15: 4
A16: 5 | B16: 4.7 | C16: FAVEY Sebastien | H16: 5
A17: 6 | B17: 4.9 | C17: BOURGOIN Eddy | H17: 5
A18: 7 | B18: 6.8 | C18: EUDIER Ronan | H18: 7
A19: 8 | B19: 7.2 | C19: BILLOUIN David | H19: 7
A20: 9 | B20: 7.5 | C20: LOISEAU Dominique | H20: 8
A21: 10 | B21: 10 | C21: BOUSSELET Hubert | H21: 10
A22: 11
A23: 12
A24: Personne autorisée à donner des conseils :
A25: Si cette personne n'est pas le capitaine, ce dernier ne pourra pas donner de conseils dans les conditions fixées par la note de la règle de golf n°8
A26: CAPITAINE :
A28: DATE : | D28: Signature du Capitaine
A31: =Prepa!$D$2 -> INTERCLUBS PROMOTION Mid Amateurs MESSIEURS
A32: =Prepa!$D$4 -> Ligue de
A33: =Prepa!$D$6 -> Date Golf de …
A36: Fiche de composition d'Equipe
A37: Equipiers du club de : | E37: =Prepa!$D$13 -> BOIS D'O
B38: Ind | C38: NOM | F38: Prénom | H38: Ind. Arr.
A39: 1 | B39: 6 | C39: SADKY Mounir | H39: =IF(B39="","",FIXED(B39,0)) -> 6
A40: 2 | B40: 6.9 | C40: GERBAUD Philippe | H40: =IF(B40="","",FIXED(B40,0)) -> 7
A41: 3 | B41: 6.9 | C41: MTIR Sofiane | H41: 7
A42: 4 | B42: 7.2 | C42: CHARRON Julien | H42: 7
A43: 5 | B43: 7.6 | C43: SCHOOS Olivier | H43: 8
A44: 6 | B44: 8.9 | C44: MEILLIAND Jeremy | H44: 9
A45: 7 | B45: 9.3 | C45: LELONG Arnaud | H45: 9
A46: 8 | B46: 9.9 | C46: ANDREYS Bruno | H46: 10
A47: 9 | B47: 14.4 | C47: GOURCI Jérome | H47: 14
A48: 10
A49: 11
A50: 12
A51: Personne autorisée à donner des conseils :
A52: Si cette personne n'est pas le capitaine, ce dernier ne pourra pas donner de conseils dans les conditions fixées par la note de la règle de golf n°8
A53: CAPITAINE :
A55: DATE : | D55: Signature du Capitaine
A58: =Prepa!$D$2 -> INTERCLUBS PROMOTION Mid Amateurs MESSIEURS
A59: =Prepa!$D$4 -> Ligue de
A60: =Prepa!$D$6 -> Date Golf de …
A63: Fiche de composition d'Equipe
A64: Equipiers du club de : | E64: =Prepa!$D$15 -> BREST ABERS
B65: Ind | C65: NOM | F65: Prénom | H65: Ind. Arr.
A66: 1 | B66: 8.2 | C66: PARGNY Dominique | H66: =IF(B66="","",FIXED(B66,0)) -> 8
A67: 2 | B67: 9.6 | C67: BOUVIER Mathieu | H67: =IF(B67="","",FIXED(B67,0)) -> 10
A68: 3 | B68: 10 | C68: INSAUSTI Olivier | H68: 10
A69: 4 | B69: 10.1 | C69: MADEC Guillaume | H69: 10
A70: 5 | B70: 11.1 | C70: BAUDOUIN Gilles | H70: 11
A71: 6 | B71: 11.6 | C71: FOUREL Tangi | H71: 12
A72: 7 | B72: 13.8 | C72: CONGAR Jean Francois | H72: 14
A73: 8
A74: 9
A75: 10
A76: 11
A77: 12
A78: Personne autorisée à donner des conseils :
A79: Si cette personne n'est pas le capitaine, ce dernier ne pourra pas donner de conseils dans les conditions fixées par la note de la règle de golf n°8
A80: CAPITAINE :
A82: DATE : | D82: Signature du Capitaine
A85: =Prepa!$D$2 -> INTERCLUBS PROMOTION Mid Amateurs MESSIEURS
A86: =Prepa!$D$4 -> Ligue de
A87: =Prepa!$D$6 -> Date Golf de …
A90: Fiche de composition d'Equipe
A91: Equipiers du club de : | E91: =Prepa!$D$17 -> BREST IROISE
B92: Ind | C92: NOM | F92: Prénom | H92: Ind. Arr.
A93: 1 | B93: 5.8 | C93: SIMON Gael | H93: =IF(B93="","",FIXED(B93,0)) -> 6
A94: 2 | B94: 7.5 | C94: LE DUFF Pierre | H94: =IF(B94="","",FIXED(B94,0)) -> 8
A95: 3 | B95: 7.7 | C95: LE MERDY Sébastien | H95: 8
A96: 4 | B96: 8.2 | C96: DANN Nicholas | H96: 8
A97: 5 | B97: 8.6 | C97: LE BIHAN Thomas | H97: 9
A98: 6 | B98: 9.2 | C98: ROUE Ronan | H98: 9
A99: 7 | B99: 9.3 | C99: TROMELIN Patrick | H99: 9
A100: 8 | B100: 9.8 | C100: DANTEC Arnaud | H100: 10
A101: 9 | B101: 10.6 | C101: BERVAS Philippe | H101: 11
A102: 10 | B102: 10.8 | C102: BONNAUD Marc | H102: 11
A103: 11 | B103: 12.1 | C103: LE BORGNE Gilles | H103: 12
A104: 12
A105: Personne autorisée à donner des conseils :
A106: Si cette personne n'est pas le capitaine, ce dernier ne pourra pas donner de conseils dans les conditions fixées par la note de la règle de golf n°8
A107: CAPITAINE :
A109: DATE : | D109: Signature du Capitaine
A112: =Prepa!$D$2 -> INTERCLUBS PROMOTION Mid Amateurs MESSIEURS
A113: =Prepa!$D$4 -> Ligue de
A114: =Prepa!$D$6 -> Date Golf de …
A117: Fiche de composition d'Equipe
A118: Equipiers du club de : | E118: =Prepa!$D$19 -> CAP MALO
B119: Ind | C119: NOM | F119: Prénom | H119: Ind. Arr.
A120: 1 | B120: 1.5 | C120: GOURIOU Yves | H120: =IF(B120="","",FIXED(B120,0)) -> 2
A121: 2 | B121: 4.5 | C121: LEBARBIER Bruno | H121: =IF(B121="","",FIXED(B121,0)) -> 5
A122: 3 | B122: 4.8 | C122: LASBLEIZ Yann | H122: 5
A123: 4 | B123: 6.2 | C123: THUILLIER Renaud | H123: 6
A124: 5 | B124: 7.6 | C124: LE QUENQUIS Nicolas | H124: 8
A125: 6 | B125: 7.7 | C125: FROSTIN Pierre-Gilles | H125: 8
A126: 7 | B126: 9.6 | C126: BONNIOT Samuel | H126: 10
A127: 8 | B127: 10.1 | C127: CAMBARRAT Arnaud | H127: 10
A128: 9
A129: 10
A130: 11
A131: 12
A132: Personne autorisée à donner des conseils :
A133: Si cette personne n'est pas le capitaine, ce dernier ne pourra pas donner de conseils dans les conditions fixées par la note de la règle de golf n°8
A134: CAPITAINE :
A136: DATE : | D136: Signature du Capitaine
A139: =Prepa!$D$2 -> INTERCLUBS PROMOTION Mid Amateurs MESSIEURS
A140: =Prepa!$D$4 -> Ligue de
A141: =Prepa!$D$6 -> Date Golf de …
A144: Fiche de composition d'Equipe
A145: Equipiers du club de : | E145: =Prepa!$D$21 -> CARANTEC
B146: Ind | C146: NOM | F146: Prénom | H146: Ind. Arr.
A147: 1 | B147: 3.3 | C147: LE BONHOMME Ronan | H147: =IF(B147="","",FIXED(B147,0)) -> 3
A148: 2 | B148: 3.8 | C148: MOSTINI Julien | H148: =IF(B148="","",FIXED(B148,0)) -> 4
A149: 3 | B149: 3.9 | C149: KERBASTARD Pierre | H149: 4
A150: 4 | B150: 4.2 | C150: BELIN Alexandre | H150: 4
A151: 5 | B151: 4.4 | C151: LECAPITAINE Nicolas | H151: 4
A152: 6 | B152: 4.5 | C152: JAN Francois | H152: 5
A153: 7 | B153: 4.6 | C153: BOUTTIER Nicolas | H153: 5
A154: 8 | B154: 5.3 | C154: ALLIOUX Jean-François | H154: 5
A155: 9 | B155: 5.7 | C155: GUILLAUME Thomas | H155: 6
A156: 10 | B156: 6.3 | C156: LE GUEN Jérémy | H156: 6
A157: 11 | B157: 8.4 | C157: PHILIPPE Félix | H157: 8
A158: 12 | B158: 9.1 | C158: JEGO Jean-Claude | H158: 9
A159: Personne autorisée à donner des conseils :
A160: Si cette personne n'est pas le capitaine, ce dernier ne pourra pas donner de conseils dans les conditions fixées par la note de la règle de golf n°8
A161: CAPITAINE :
A163: DATE : | D163: Signature du Capitaine
A166: =Prepa!$D$2 -> INTERCLUBS PROMOTION Mid Amateurs MESSIEURS
A167: =Prepa!$D$4 -> Ligue de
A168: =Prepa!$D$6 -> Date Golf de …
A171: Fiche de composition d'Equipe
A172: Equipiers du club de : | E172: =Prepa!$D$23 -> CH. AUGERVILLE
B173: Ind | C173: NOM | F173: Prénom | H173: Ind. Arr.
A174: 1 | B174: 4.8 | C174: PERICAUD Olivier | H174: =IF(B174="","",FIXED(B174,0)) -> 5
A175: 2 | B175: 6.5 | C175: GAUCHET Thomas | H175: =IF(B175="","",FIXED(B175,0)) -> 7
A176: 3 | B176: 8.1 | C176: MAUGRION Benoit | H176: 8
A177: 4 | B177: 8.3 | C177: LECONARDEL Jérôme | H177: 8
A178: 5 | B178: 9.6 | C178: LAURENT Emmanuel | H178: 10
A179: 6 | B179: 11.7 | C179: DEVILLIERS Pierre | H179: 12
A180: 7 | B180: 11.7 | C180: LELONG Alexis | H180: 12
A181: 8
A182: 9
A183: 10
A184: 11
A185: 12
A186: Personne autorisée à donner des conseils :
A187: Si cette personne n'est pas le capitaine, ce dernier ne pourra pas donner de conseils dans les conditions fixées par la note de la règle de golf n°8
A188: CAPITAINE :
A190: DATE : | D190: Signature du Capitaine
A193: =Prepa!$D$2 -> INTERCLUBS PROMOTION Mid Amateurs MESSIEURS
A194: =Prepa!$D$4 -> Ligue de
A195: =Prepa!$D$6 -> Date Golf de …
A198: Fiche de composition d'Equipe
A199: Equipiers du club de : | E199: =Prepa!$D$25 -> CHARTRES FONTENAY
B200: Ind | C200: NOM | F200: Prénom | H200: Ind. Arr.
A201: 1 | B201: 5.9 | C201: MONTOYA Leonardo | H201: =IF(B201="","",FIXED(B201,0)) -> 6
A202: 2 | B202: 10.4 | C202: QUIVIGER Jean-Philippe | H202: =IF(B202="","",FIXED(B202,0)) -> 10
A203: 3 | B203: 10.5 | C203: REBOULET Sébastien | H203: 11
A204: 4 | B204: 11.4 | C204: BIZARD Philippe | H204: 11
A205: 5 | B205: 11.6 | C205: LAMOUR Stephane | H205: 12
A206: 6 | B206: 11.8 | C206: OBLIQUE Mathieu | H206: 12
A207: 7 | B207: 13.3 | C207: TARIANT Matthieu | H207: 13
A208: 8 | B208: 14.9 | C208: GODARD Alexis | H208: 15
A209: 9 | B209: 15 | C209: DOUCET Benoit | H209: 15
A210: 10 | B210: 18.5 | C210: VIGNEAU Denis | H210: 19
A211: 11
A212: 12
A213: Personne autorisée à donner des conseils :
A214: Si cette personne n'est pas le capitaine, ce dernier ne pourra pas donner de conseils dans les conditions fixées par la note de la règle de golf n°8
A215: CAPITAINE :
A217: DATE : | D217: Signature du Capitaine
A220: =Prepa!$D$2 -> INTERCLUBS PROMOTION Mid Amateurs MESSIEURS
A221: =Prepa!$D$4 -> Ligue de
A222: =Prepa!$D$6 -> Date Golf de …
A225: Fiche de composition d'Equipe
A226: Equipiers du club de : | E226: =Prepa!$D$27 -> GLORIETTE
B227: Ind | C227: NOM | F227: Prénom | H227: Ind. Arr.
A228: 1 | B228: 3.9 | C228: CARETTE Benjamin | H228: =IF(B228="","",FIXED(B228,0)) -> 4
A229: 2 | B229: 5.3 | C229: CHEVRIER Bertrand | H229: =IF(B229="","",FIXED(B229,0)) -> 5
A230: 3 | B230: 8.8 | C230: GRIFFON François-Xavier | H230: 9
A231: 4 | B231: 12.8 | C231: ROGER Jeremie | H231: 13
A232: 5 | B232: 13.2 | C232: RAYNAUD Laurent | H232: 13
A233: 6 | B233: 17.8 | C233: DONADIO Jerome | H233: 18
A234: 7 | B234: 21.6 | C234: BROHAN Philippe | H234: 22
A235: 8
A236: 9
A237: 10
A238: 11
A239: 12
A240: Personne autorisée à donner des conseils :
A241: Si cette personne n'est pas le capitaine, ce dernier ne pourra pas donner de conseils dans les conditions fixées par la note de la règle de golf n°8
A242: CAPITAINE :
A244: DATE : | D244: Signature du Capitaine
A247: =Prepa!$D$2 -> INTERCLUBS PROMOTION Mid Amateurs MESSIEURS
... 329 more rows

Sheet Donnees
A1: Cliquez dans la cellule du nom du joueur puis sur la fléche et choisir le nom dans le menu déroulant. Vous pouvez, au choix, soit rentrer directement le score du joueur soit, en faisant "click droit" sur la cellule, rentrer la carte de score.En cas de forfait, abandon ou disqualification, inscrire: FOR,ABN ou DIS dans la colonne de score.LES CALCULS SONT FAITS AUTOMATIQUEMENT. POUR OBTENIR LE CLASSEMENT PROVISOIRE OU DEFINITIF, CLIQUER SUR LE BOUTON CI-DESSOUS.
A2: Si le nombre de vagues complètes à la fin du 2ème Tour est inférieur à 6, inscrire le nombre de vagues complètes ci-contre (mini 3) : Attention à ne pas mettre de score dans les cases grises qui apparaissent si le nombre de vagues est inférieur à 6 | R2: 4
A5: =Prepa!D2 -> INTERCLUBS PROMOTION Mid Amateurs MESSIEURS | U5: =Prepa!$D11 -> ALENCON/ARCONNA | W5: =Prepa!$D13 -> BOIS D'O | Y5: =Prepa!$D15 -> BREST ABERS | AA5: =Prepa!$D17 -> BREST IROISE | AC5: =Prepa!$D19 -> CAP MALO | AE5: =Prepa!$D21 -> CARANTEC | AG5: =Prepa!$D23 -> CH. AUGERVILLE | AI5: =Prepa!$D25 -> CHARTRES FONTENAY | AK5: =Prepa!$D27 -> GLORIETTE | AM5: =Prepa!$D29 -> GUERANDE | AO5: =Prepa!$D31 -> ILE D'OR | AQ5: =Prepa!$D33 -> LAC AU DUC | AS5: =Prepa!$D35 -> LAVAL | AU5: =Prepa!$D37 -> ORLEANS DONNERY | AW5: =Prepa!$D39 -> VAL DE L'INDRE | AY5: =Prepa!$D41 -> ROCHERS SEVIGNE | BA5: =Prepa!$D43 -> SABLE SOLESMES | BC5: =Prepa!$D45 -> SABLES D'OLONNE | BE5: =Prepa!$D47 -> SAINT CAST | BG5: =Prepa!$D49 -> SAINT-BRIEUC | BI5: =Prepa!$D51 -> SARGE/LE MANS | BK5: =Prepa!$D53 -> VAL DE L'INDRE | BM5: =Prepa!$D55 -> 0 | BO5: =Prepa!$D57 -> 0
A6: =Prepa!D4 -> Ligue de | U6: =Particip!$C12 -> SAIDI Jamil | V6: =Particip!$B12 -> 1.3 | W6: =Particip!$C39 -> SADKY Mounir | X6: =Particip!$B39 -> 6 | Y6: =Particip!$C66 -> PARGNY Dominique | Z6: =Particip!$B66 -> 8.2 | AA6: =Particip!$C93 -> SIMON Gael | AB6: =Particip!$B93 -> 5.8 | AC6: =Particip!$C120 -> GOURIOU Yves | AD6: =Particip!$B120 -> 1.5 | AE6: =Particip!$C147 -> LE BONHOMME Ronan | AF6: =Particip!$B147 -> 3.3 | AG6: =Particip!$C174 -> PERICAUD Olivier | AH6: =Particip!$B174 -> 4.8 | AI6: =Particip!$C201 -> MONTOYA Leonardo | AJ6: =Particip!$B201 -> 5.9 | AK6: =Particip!$C228 -> CARETTE Benjamin | AL6: =Particip!$B228 -> 3.9 | AM6: =Particip!$C255 -> LEBRETON Eric | AN6: =Particip!$B255 -> 0.2 | AO6: =Particip!$C282 -> COULAUD-IVANOFF Valentin | AP6: =Particip!$B282 -> -3.1 | AQ6: =Particip!$C309 -> CATOIRE Gregory | AR6: =Particip!$B309 -> 3.2 | AS6: =Particip!$C336 -> CHAVETON Rémi | AT6: =Particip!$B336 -> 2.1 | AU6: =Particip!$C363 -> CUNNANE Tomas | AV6: =Particip!$B363 -> 5.4 | AW6: =Particip!$C390 -> DORANGEON Gabriel | AX6: =Particip!$B390 -> 1,3 | AY6: =Particip!$C417 -> PARRY Richard | AZ6: =Particip!$B417 -> 4.8 | BA6: =Particip!$C444 -> MOREAU Romain | BB6: =Particip!$B444 -> 0.3 | BC6: =Particip!$C471 -> CERVERA Yann | BD6: =Particip!$B471 -> 2.6 | BE6: =Particip!$C498 -> LEFEUVRE Philippe | BF6: =Particip!$B498 -> -0.1 | BG6: =Particip!$C525 -> ROUAULT Emmanuel | BH6: =Particip!$B525 -> 1.5 | BI6: =Particip!$C552 -> MIRATON Vladimir | BJ6: =Particip!$B552 -> 4.9 | BK6: =Particip!$C579 -> DORANGEON Gabriel | BL6: =Particip!$B579 -> 1.3 | BM6: =Particip!$C606 -> 0 | BN6: =Particip!$B606 -> 0 | BO6: =Particip!$C633 -> 0 | BP6: =Particip!$B633 -> 0
A7: =Prepa!D6 -> Date Golf de … | U7: =Particip!$C13 -> COPPOLA Laurent | V7: =Particip!$B13 -> 3.1 | W7: =Particip!$C40 -> GERBAUD Philippe | X7: =Particip!$B40 -> 6.9 | Y7: =Particip!$C67 -> BOUVIER Mathieu | Z7: =Particip!$B67 -> 9.6 | AA7: =Particip!$C94 -> LE DUFF Pierre | AB7: =Particip!$B94 -> 7.5 | AC7: =Particip!$C121 -> LEBARBIER Bruno | AD7: =Particip!$B121 -> 4.5 | AE7: =Particip!$C148 -> MOSTINI Julien | AF7: =Particip!$B148 -> 3.8 | AG7: =Particip!$C175 -> GAUCHET Thomas | AH7: =Particip!$B175 -> 6.5 | AI7: =Particip!$C202 -> QUIVIGER Jean-Philippe | AJ7: =Particip!$B202 -> 10.4 | AK7: =Particip!$C229 -> CHEVRIER Bertrand | AL7: =Particip!$B229 -> 5.3 | AM7: =Particip!$C256 -> METAYER Benoist | AN7: =Particip!$B256 -> 0.8 | AO7: =Particip!$C283 -> LUCAS Olivier | AP7: =Particip!$B283 -> -2.2 | AQ7: =Particip!$C310 -> TURMEAU Cédric | AR7: =Particip!$B310 -> 3.6 | AS7: =Particip!$C337 -> POIRRIER-MORVAN Cyril | AT7: =Particip!$B337 -> 2.8 | AU7: =Particip!$C364 -> BOUTEILLY Laurent | AV7: =Particip!$B364 -> 7.2 | AW7: =Particip!$C391 -> VANDOMMELLE Loic | AX7: =Particip!$B391 -> 5,8 | AY7: =Particip!$C418 -> FANSHAWE Cliff | AZ7: =Particip!$B418 -> 8 | BA7: =Particip!$C445 -> OBIANG Jean De Dieu | BB7: =Particip!$B445 -> 3.5 | BC7: =Particip!$C472 -> RIHANI Habib | BD7: =Particip!$B472 -> 3.1 | BE7: =Particip!$C499 -> LETZELTER Frédéric | BF7: =Particip!$B499 -> 0.8 | BG7: =Particip!$C526 -> MARTEL Olivier | BH7: =Particip!$B526 -> 7 | BI7: =Particip!$C553 -> MIRATON Jacques | BJ7: =Particip!$B553 -> 6.4 | BK7: =Particip!$C580 -> VANDOMMELE Loic | BL7: =Particip!$B580 -> 5.8 | BM7: =Particip!$C607 -> 0 | BN7: =Particip!$B607 -> 0 | BO7: =Particip!$C634 -> 0 | BP7: =Particip!$B634 -> 0
U8: =Particip!$C14 -> BOUGLE Xavier | V8: =Particip!$B14 -> 3.3 | W8: =Particip!$C41 -> MTIR Sofiane | X8: =Particip!$B41 -> 6.9 | Y8: =Particip!$C68 -> INSAUSTI Olivier | Z8: =Particip!$B68 -> 10 | AA8: =Particip!$C95 -> LE MERDY Sébastien | AB8: =Particip!$B95 -> 7.7 | AC8: =Particip!$C122 -> LASBLEIZ Yann | AD8: =Particip!$B122 -> 4.8 | AE8: =Particip!$C149 -> KERBASTARD Pierre | AF8: =Particip!$B149 -> 3.9 | AG8: =Particip!$C176 -> MAUGRION Benoit | AH8: =Particip!$B176 -> 8.1 | AI8: =Particip!$C203 -> REBOULET Sébastien | AJ8: =Particip!$B203 -> 10.5 | AK8: =Particip!$C230 -> GRIFFON François-Xavier | AL8: =Particip!$B230 -> 8.8 | AM8: =Particip!$C257 -> VLETTER Morne | AN8: =Particip!$B257 -> 3.2 | AO8: =Particip!$C284 -> LUCAS Benoît | AP8: =Particip!$B284 -> -2.1 | AQ8: =Particip!$C311 -> URVOIS Patrice | AR8: =Particip!$B311 -> 5 | AS8: =Particip!$C338 -> BENOIST Stéphane | AT8: =Particip!$B338 -> 4.7 | AU8: =Particip!$C365 -> DAVODEAU Arnaud | AV8: =Particip!$B365 -> 9.4 | AW8: =Particip!$C392 -> BOUCHERON Philippe | AX8: =Particip!$B392 -> 6,4 | AY8: =Particip!$C419 -> GONTIER Michael | AZ8: =Particip!$B419 -> 9 | BA8: =Particip!$C446 -> HOUDAYER Jean-Marc | BB8: =Particip!$B446 -> 3.8 | BC8: =Particip!$C473 -> BAUD Raphaël | BD8: =Particip!$B473 -> 5.3 | BE8: =Particip!$C500 -> BESNOUX Alain | BF8: =Particip!$B500 -> 4.8 | BG8: =Particip!$C527 -> MOURIC Joël | BH8: =Particip!$B527 -> 7.1 | BI8: =Particip!$C554 -> PECQUENARD Sébastien | BJ8: =Particip!$B554 -> 6.7 | BK8: =Particip!$C581 -> BOUCHERON Philippe | BL8: =Particip!$B581 -> 6.4 | BM8: =Particip!$C608 -> 0 | BN8: =Particip!$B608 -> 0 | BO8: =Particip!$C635 -> 0 | BP8: =Particip!$B635 -> 0
U9: =Particip!$C15 -> BOUSSELET Quentin | V9: =Particip!$B15 -> 4.2 | W9: =Particip!$C42 -> CHARRON Julien | X9: =Particip!$B42 -> 7.2 | Y9: =Particip!$C69 -> MADEC Guillaume | Z9: =Particip!$B69 -> 10.1 | AA9: =Particip!$C96 -> DANN Nicholas | AB9: =Particip!$B96 -> 8.2 | AC9: =Particip!$C123 -> THUILLIER Renaud | AD9: =Particip!$B123 -> 6.2 | AE9: =Particip!$C150 -> BELIN Alexandre | AF9: =Particip!$B150 -> 4.2 | AG9: =Particip!$C177 -> LECONARDEL Jérôme | AH9: =Particip!$B177 -> 8.3 | AI9: =Particip!$C204 -> BIZARD Philippe | AJ9: =Particip!$B204 -> 11.4 | AK9: =Particip!$C231 -> ROGER Jeremie | AL9: =Particip!$B231 -> 12.8 | AM9: =Particip!$C258 -> TOSATTO Robin | AN9: =Particip!$B258 -> 3.5 | AO9: =Particip!$C285 -> KLEIN Rodolphe | AP9: =Particip!$B285 -> -0.3 | AQ9: =Particip!$C312 -> BOUJU Pierre | AR9: =Particip!$B312 -> 5.4 | AS9: =Particip!$C339 -> DUBOIS Sébastien | AT9: =Particip!$B339 -> 4.8 | AU9: =Particip!$C366 -> BLOT Frédéric | AV9: =Particip!$B366 -> 9.7 | AW9: =Particip!$C393 -> MARIAU Victor | AX9: =Particip!$B393 -> 6,7 | AY9: =Particip!$C420 -> OGER Bertrand | AZ9: =Particip!$B420 -> 9.7 | BA9: =Particip!$C447 -> RENARD Jérôme | BB9: =Particip!$B447 -> 4.1 | BC9: =Particip!$C474 -> FONFREIDE Vincent | BD9: =Particip!$B474 -> 5.3 | BE9: =Particip!$C501 -> COUASNON Pascal | BF9: =Particip!$B501 -> 5 | BG9: =Particip!$C528 -> SENGER Nicolas | BH9: =Particip!$B528 -> 7.6 | BI9: =Particip!$C555 -> PELTIER Jean-Philippe | BJ9: =Particip!$B555 -> 6.8 | BK9: =Particip!$C582 -> MARIAU Victor | BL9: =Particip!$B582 -> 6.7 | BM9: =Particip!$C609 -> 0 | BN9: =Particip!$B609 -> 0 | BO9: =Particip!$C636 -> 0 | BP9: =Particip!$B636 -> 0
C10: Equipiers du club de : | F10: =Prepa!D11 -> ALENCON/ARCONNA | U10: =Particip!$C16 -> FAVEY Sebastien | V10: =Particip!$B16 -> 4.7 | W10: =Particip!$C43 -> SCHOOS Olivier | X10: =Particip!$B43 -> 7.6 | Y10: =Particip!$C70 -> BAUDOUIN Gilles | Z10: =Particip!$B70 -> 11.1 | AA10: =Particip!$C97 -> LE BIHAN Thomas | AB10: =Particip!$B97 -> 8.6 | AC10: =Particip!$C124 -> LE QUENQUIS Nicolas | AD10: =Particip!$B124 -> 7.6 | AE10: =Particip!$C151 -> LECAPITAINE Nicolas | AF10: =Particip!$B151 -> 4.4 | AG10: =Particip!$C178 -> LAURENT Emmanuel | AH10: =Particip!$B178 -> 9.6 | AI10: =Particip!$C205 -> LAMOUR Stephane | AJ10: =Particip!$B205 -> 11.6 | AK10: =Particip!$C232 -> RAYNAUD Laurent | AL10: =Particip!$B232 -> 13.2 | AM10: =Particip!$C259 -> GENTIL Florian | AN10: =Particip!$B259 -> 4.2 | AO10: =Particip!$C286 -> LEFEBVRE Harold | AP10: =Particip!$B286 -> 0.9 | AQ10: =Particip!$C313 -> CAPELLE Thomas | AR10: =Particip!$B313 -> 5.7 | AS10: =Particip!$C340 -> PETITPAS Bernard | AT10: =Particip!$B340 -> 6.4 | AU10: =Particip!$C367 -> BLANC Christophe | AV10: =Particip!$B367 -> 10 | AW10: =Particip!$C394 -> BRAJARD Fabrice | AX10: =Particip!$B394 -> 11 | AY10: =Particip!$C421 -> CHEVALLIER Joseph | AZ10: =Particip!$B421 -> 11.2 | BA10: =Particip!$C448 -> DELALLE Damien | BB10: =Particip!$B448 -> 4.6 | BC10: =Particip!$C475 -> SOMBRET Laurent | BD10: =Particip!$B475 -> 7.5 | BE10: =Particip!$C502 -> ESCALONA Jonathan | BF10: =Particip!$B502 -> 5.1 | BG10: =Particip!$C529 -> DURROUX Jean-Christophe | BH10: =Particip!$B529 -> 9.4 | BI10: =Particip!$C556 -> ISAAC Willy | BJ10: =Particip!$B556 -> 7 | BK10: =Particip!$C583 -> BRAJARD Fabrice | BL10: =Particip!$B583 -> 11 | BM10: =Particip!$C610 -> 0 | BN10: =Particip!$B610 -> 0 | BO10: =Particip!$C637 -> 0 | BP10: =Particip!$B637 -> 0
B11: Ind | C11: Joueurs de la 1ère Journée | I11: Tour 1 | K11: Ind | L11: Joueurs de la 2ème Journée | R11: Tour 2 | S11: FOR ABN DIS | T11: FOR ABN DIS | U11: =Particip!$C17 -> BOURGOIN Eddy | V11: =Particip!$B17 -> 4.9 | W11: =Particip!$C44 -> MEILLIAND Jeremy | X11: =Particip!$B44 -> 8.9 | Y11: =Particip!$C71 -> FOUREL Tangi | Z11: =Particip!$B71 -> 11.6 | AA11: =Particip!$C98 -> ROUE Ronan | AB11: =Particip!$B98 -> 9.2 | AC11: =Particip!$C125 -> FROSTIN Pierre-Gilles | AD11: =Particip!$B125 -> 7.7 | AE11: =Particip!$C152 -> JAN Francois | AF11: =Particip!$B152 -> 4.5 | AG11: =Particip!$C179 -> DEVILLIERS Pierre | AH11: =Particip!$B179 -> 11.7 | AI11: =Particip!$C206 -> OBLIQUE Mathieu | AJ11: =Particip!$B206 -> 11.8 | AK11: =Particip!$C233 -> DONADIO Jerome | AL11: =Particip!$B233 -> 17.8 | AM11: =Particip!$C260 -> GAUVIN Ronan | AN11: =Particip!$B260 -> 5.1 | AO11: =Particip!$C287 -> NOMBLOT Antoine | AP11: =Particip!$B287 -> 6 | AQ11: =Particip!$C314 -> BOULVAIS Bertrand | AR11: =Particip!$B314 -> 6 | AS11: =Particip!$C341 -> TOUCHAIS Julien | AT11: =Particip!$B341 -> 6.5 | AU11: =Particip!$C368 -> FERRIER Benjamin | AV11: =Particip!$B368 -> 10.6 | AW11: =Particip!$C395 -> DORANGEON Patrick | AX11: =Particip!$B395 -> 11,5 | AY11: =Particip!$C422 -> CROIZEAN Jean Philippe | AZ11: =Particip!$B422 -> 11.2 | BA11: =Particip!$C449 -> DEZE Christophe | BB11: =Particip!$B449 -> 4.8 | BC11: =Particip!$C476 -> TESSE Guillaume | BD11: =Particip!$B476 -> 7.8 | BE11: =Particip!$C503 -> LAURENT Antoine | BF11: =Particip!$B503 -> 5.6 | BG11: =Particip!$C530 -> LE BOUGEANT Xavier | BH11: =Particip!$B530 -> 9.9 | BI11: =Particip!$C557 -> BASSET Jonathan | BJ11: =Particip!$B557 -> 7.9 | BK11: =Particip!$C584 -> DORANGEON Patrick | BL11: =Particip!$B584 -> 11.5 | BM11: =Particip!$C611 -> 0 | BN11: =Particip!$B611 -> 0 | BO11: =Particip!$C638 -> 0 | BP11: =Particip!$B638 -> 0
A12: A | B12: =IF(C12="","",VLOOKUP(C12,$U$6:$V$17,2,FALSE)) -> 4.2 | C12: BOUSSELET Quentin | I12: 79 | J12: A | K12: =IF(L12="","",VLOOKUP(L12,$U$6:$V$17,2,FALSE)) -> 4.7 | L12: FAVEY Sebastien | R12: 81 | S12: =IF(ISTEXT(I12),1,0) -> 0 | T12: =IF(ISTEXT(R12),1,0) -> 0 | U12: =Particip!$C18 -> EUDIER Ronan | V12: =Particip!$B18 -> 6.8 | W12: =Particip!$C45 -> LELONG Arnaud | X12: =Particip!$B45 -> 9.3 | Y12: =Particip!$C72 -> CONGAR Jean Francois | Z12: =Particip!$B72 -> 13.8 | AA12: =Particip!$C99 -> TROMELIN Patrick | AB12: =Particip!$B99 -> 9.3 | AC12: =Particip!$C126 -> BONNIOT Samuel | AD12: =Particip!$B126 -> 9.6 | AE12: =Particip!$C153 -> BOUTTIER Nicolas | AF12: =Particip!$B153 -> 4.6 | AG12: =Particip!$C180 -> LELONG Alexis | AH12: =Particip!$B180 -> 11.7 | AI12: =Particip!$C207 -> TARIANT Matthieu | AJ12: =Particip!$B207 -> 13.3 | AK12: =Particip!$C234 -> BROHAN Philippe | AL12: =Particip!$B234 -> 21.6 | AM12: =Particip!$C261 -> BAYLON Alexandre | AN12: =Particip!$B261 -> 5.2 | AO12: =Particip!$C288 -> TEITGEN Antoine | AP12: =Particip!$B288 -> 6.4 | AQ12: =Particip!$C315 -> JACQ Gilles | AR12: =Particip!$B315 -> 7.9 | AS12: =Particip!$C342 -> DANET Laurent | AT12: =Particip!$B342 -> 7.4 | AU12: =Particip!$C369 -> LASSOUDRY Stephan | AV12: =Particip!$B369 -> 10.9 | AW12: =Particip!$C396 -> 0 | AX12: =Particip!$B396 -> 0 | AY12: =Particip!$C423 -> LECOQ Hervé | AZ12: =Particip!$B423 -> 12.2 | BA12: =Particip!$C450 -> POTTIER Fabien | BB12: =Particip!$B450 -> 6.3 | BC12: =Particip!$C477 -> DELABAUDINIERE Claude | BD12: =Particip!$B477 -> 8.3 | BE12: =Particip!$C504 -> COPPEL Karig | BF12: =Particip!$B504 -> 8 | BG12: =Particip!$C531 -> THETIOT Samuel | BH12: =Particip!$B531 -> 10.2 | BI12: =Particip!$C558 -> GAUTIER Sylvain | BJ12: =Particip!$B558 -> 7.9 | BK12: =Particip!$C585 -> 0 | BL12: =Particip!$B585 -> 0 | BM12: =Particip!$C612 -> 0 | BN12: =Particip!$B612 -> 0 | BO12: =Particip!$C639 -> 0 | BP12: =Particip!$B639 -> 0 | CA12: 4 | CB12: 4 | CC12: 4 | CD12: 4 | CE12: 5 | CF12: 6 | CG12: 6 | CH12: 5 | CI12: 3 | CJ12: 3 | CK12: 5 | CL12: 4 | CM12: 4 | CN12: 3 | CO12: 4 | CP12: 6 | CQ12: 4 | CR12: 5 | DA12: 4 | DB12: 5 | DC12: 5 | DD12: 2 | DE12: 4 | DF12: 5 | DG12: 4 | DH12: 6 | DI12: 3 | DJ12: 5 | DK12: 4 | DL12: 2 | DM12: 8 | DN12: 5 | DO12: 5 | DP12: 4 | DQ12: 4 | DR12: 6
A13: B | B13: 4.7 | C13: FAVEY Sebastien | I13: 81 | J13: B | K13: 3.3 | L13: BOUGLE Xavier | R13: 82 | S13: 0 | T13: 0 | U13: =Particip!$C19 -> BILLOUIN David | V13: =Particip!$B19 -> 7.2 | W13: =Particip!$C46 -> ANDREYS Bruno | X13: =Particip!$B46 -> 9.9 | Y13: =Particip!$C73 -> 0 | Z13: =Particip!$B73 -> 0 | AA13: =Particip!$C100 -> DANTEC Arnaud | AB13: =Particip!$B100 -> 9.8 | AC13: =Particip!$C127 -> CAMBARRAT Arnaud | AD13: =Particip!$B127 -> 10.1 | AE13: =Particip!$C154 -> ALLIOUX Jean-François | AF13: =Particip!$B154 -> 5.3 | AG13: =Particip!$C181 -> 0 | AH13: =Particip!$B181 -> 0 | AI13: =Particip!$C208 -> GODARD Alexis | AJ13: =Particip!$B208 -> 14.9 | AK13: =Particip!$C235 -> 0 | AL13: =Particip!$B235 -> 0 | AM13: =Particip!$C262 -> SEVIN François | AN13: =Particip!$B262 -> 5.7 | AO13: =Particip!$C289 -> MAYRAS Clement | AP13: =Particip!$B289 -> 7.5 | AQ13: =Particip!$C316 -> BELLEC Patrice | AR13: =Particip!$B316 -> 8.2 | AS13: =Particip!$C343 -> PENKACZ Oualid | AT13: =Particip!$B343 -> 7.8 | AU13: =Particip!$C370 -> PRADIER Aymeric | AV13: =Particip!$B370 -> 11.8 | AW13: =Particip!$C397 -> 0 | AX13: =Particip!$B397 -> 0 | AY13: =Particip!$C424 -> RAYNARD Philippe | AZ13: =Particip!$B424 -> 13.5 | BA13: =Particip!$C451 -> 0 | BB13: =Particip!$B451 -> 0 | BC13: =Particip!$C478 -> JACQUENOUD Pascal | BD13: =Particip!$B478 -> 9 | BE13: =Particip!$C505 -> PITEL Jean Marie | BF13: =Particip!$B505 -> 9.5 | BG13: =Particip!$C532 -> BULLOCK Georges | BH13: =Particip!$B532 -> 11.5 | BI13: =Particip!$C559 -> RUNDSTADLER Philippe | BJ13: =Particip!$B559 -> 8.1 | BK13: =Particip!$C586 -> 0 | BL13: =Particip!$B586 -> 0 | BM13: =Particip!$C613 -> 0 | BN13: =Particip!$B613 -> 0 | BO13: =Particip!$C640 -> 0 | BP13: =Particip!$B640 -> 0 | CA13: 6 | CB13: 4 | CC13: 6 | CD13: 3 | CE13: 4 | CF13: 4 | CG13: 5 | CH13: 5 | CI13: 3 | CJ13: 4 | CK13: 5 | CL13: 3 | CM13: 5 | CN13: 3 | CO13: 7 | CP13: 4 | CQ13: 4 | CR13: 6 | DA13: 4 | DB13: 5 | DC13: 5 | DD13: 4 | DE13: 5 | DF13: 5 | DG13: 7 | DH13: 6 | DI13: 3 | DJ13: 5 | DK13: 4 | DL13: 3 | DM13: 5 | DN13: 4 | DO13: 4 | DP13: 5 | DQ13: 3 | DR13: 5
A14: C | B14: 3.3 | C14: BOUGLE Xavier | I14: 76 | J14: C | K14: 3.1 | L14: COPPOLA Laurent | R14: 76 | S14: 0 | T14: 0 | U14: =Particip!$C20 -> LOISEAU Dominique | V14: =Particip!$B20 -> 7.5 | W14: =Particip!$C47 -> GOURCI Jérome | X14: =Particip!$B47 -> 14.4 | Y14: =Particip!$C74 -> 0 | Z14: =Particip!$B74 -> 0 | AA14: =Particip!$C101 -> BERVAS Philippe | AB14: =Particip!$B101 -> 10.6 | AC14: =Particip!$C128 -> 0 | AD14: =Particip!$B128 -> 0 | AE14: =Particip!$C155 -> GUILLAUME Thomas | AF14: =Particip!$B155 -> 5.7 | AG14: =Particip!$C182 -> 0 | AH14: =Particip!$B182 -> 0 | AI14: =Particip!$C209 -> DOUCET Benoit | AJ14: =Particip!$B209 -> 15 | AK14: =Particip!$C236 -> 0 | AL14: =Particip!$B236 -> 0 | AM14: =Particip!$C263 -> ROHEL Benjamin | AN14: =Particip!$B263 -> 6.1 | AO14: =Particip!$C290 -> CHAILLOU Cyrille | AP14: =Particip!$B290 -> 8.1 | AQ14: =Particip!$C317 -> RANDRIANA Mickael | AR14: =Particip!$B317 -> 9.4 | AS14: =Particip!$C344 -> EGERMANN Alain | AT14: =Particip!$B344 -> 9.2 | AU14: =Particip!$C371 -> MAC NIEL Jacques | AV14: =Particip!$B371 -> 13.8 | AW14: =Particip!$C398 -> 0 | AX14: =Particip!$B398 -> 0 | AY14: =Particip!$C425 -> CHILOUX Jean Jacques | AZ14: =Particip!$B425 -> 14.3 | BA14: =Particip!$C452 -> 0 | BB14: =Particip!$B452 -> 0 | BC14: =Particip!$C479 -> 0 | BD14: =Particip!$B479 -> 0 | BE14: =Particip!$C506 -> LEVAVASSEUR Sylvain | BF14: =Particip!$B506 -> 10.3 | BG14: =Particip!$C533 -> SOURDRILLE Kevin | BH14: =Particip!$B533 -> 13.2 | BI14: =Particip!$C560 -> LAUDIERE Cédric | BJ14: =Particip!$B560 -> 9.5 | BK14: =Particip!$C587 -> 0 | BL14: =Particip!$B587 -> 0 | BM14: =Particip!$C614 -> 0 | BN14: =Particip!$B614 -> 0 | BO14: =Particip!$C641 -> 0 | BP14: =Particip!$B641 -> 0 | CA14: 4 | CB14: 4 | CC14: 7 | CD14: 3 | CE14: 5 | CF14: 5 | CG14: 4 | CH14: 4 | CI14: 3 | CJ14: 6 | CK14: 4 | CL14: 3 | CM14: 4 | CN14: 4 | CO14: 4 | CP14: 3 | CQ14: 4 | CR14: 5 | DA14: 4 | DB14: 5 | DC14: 5 | DD14: 2 | DE14: 3 | DF14: 6 | DG14: 5 | DH14: 4 | DI14: 4 | DJ14: 5 | DK14: 4 | DL14: 3 | DM14: 5 | DN14: 4 | DO14: 5 | DP14: 4 | DQ14: 2 | DR14: 6
A15: D | B15: 1.3 | C15: SAIDI Jamil | I15: 81 | J15: D | K15: 1.3 | L15: SAIDI Jamil | R15: 80 | S15: 0 | T15: 0 | U15: =Particip!$C21 -> BOUSSELET Hubert | V15: =Particip!$B21 -> 10 | W15: =Particip!$C48 -> 0 | X15: =Particip!$B48 -> 0 | Y15: =Particip!$C75 -> 0 | Z15: =Particip!$B75 -> 0 | AA15: =Particip!$C102 -> BONNAUD Marc | AB15: =Particip!$B102 -> 10.8 | AC15: =Particip!$C129 -> 0 | AD15: =Particip!$B129 -> 0 | AE15: =Particip!$C156 -> LE GUEN Jérémy | AF15: =Particip!$B156 -> 6.3 | AG15: =Particip!$C183 -> 0 | AH15: =Particip!$B183 -> 0 | AI15: =Particip!$C210 -> VIGNEAU Denis | AJ15: =Particip!$B210 -> 18.5 | AK15: =Particip!$C237 -> 0 | AL15: =Particip!$B237 -> 0 | AM15: =Particip!$C264 -> BLANDIN Erwan | AN15: =Particip!$B264 -> 6.2 | AO15: =Particip!$C291 -> ROUX Anthony | AP15: =Particip!$B291 -> 9.6 | AQ15: =Particip!$C318 -> COUDE Jerome | AR15: =Particip!$B318 -> 9.5 | AS15: =Particip!$C345 -> DE FONTENAY Christophe | AT15: =Particip!$B345 -> 9.9 | AU15: =Particip!$C372 -> GRAS Jerry | AV15: =Particip!$B372 -> 14 | AW15: =Particip!$C399 -> 0 | AX15: =Particip!$B399 -> 0 | AY15: =Particip!$C426 -> HAMON Eric | AZ15: =Particip!$B426 -> 14.9 | BA15: =Particip!$C453 -> 0 | BB15: =Particip!$B453 -> 0 | BC15: =Particip!$C480 -> 0 | BD15: =Particip!$B480 -> 0 | BE15: =Particip!$C507 -> LOUAIL Bruno | BF15: =Particip!$B507 -> 11.7 | BG15: =Particip!$C534 -> 0 | BH15: =Particip!$B534 -> 0 | BI15: =Particip!$C561 -> BARRIQUAULT Laurent | BJ15: =Particip!$B561 -> 10.6 | BK15: =Particip!$C588 -> 0 | BL15: =Particip!$B588 -> 0 | BM15: =Particip!$C615 -> 0 | BN15: =Particip!$B615 -> 0 | BO15: =Particip!$C642 -> 0 | BP15: =Particip!$B642 -> 0 | CA15: 4 | CB15: 4 | CC15: 5 | CD15: 3 | CE15: 6 | CF15: 7 | CG15: 4 | CH15: 4 | CI15: 3 | CJ15: 4 | CK15: 5 | CL15: 3 | CM15: 6 | CN15: 4 | CO15: 6 | CP15: 4 | CQ15: 4 | CR15: 5 | DA15: 3 | DB15: 4 | DC15: 6 | DD15: 4 | DE15: 5 | DF15: 7 | DG15: 3 | DH15: 5 | DI15: 4 | DJ15: 4 | DK15: 5 | DL15: 3 | DM15: 6 | DN15: 4 | DO15: 4 | DP15: 4 | DQ15: 3 | DR15: 6
A16: E | B16: 3.1 | C16: COPPOLA Laurent | I16: 79 | J16: E | S16: 0 | T16: 0 | U16: =Particip!$C22 -> 0 | V16: =Particip!$B22 -> 0 | W16: =Particip!$C49 -> 0 | X16: =Particip!$B49 -> 0 | Y16: =Particip!$C76 -> 0 | Z16: =Particip!$B76 -> 0 | AA16: =Particip!$C103 -> LE BORGNE Gilles | AB16: =Particip!$B103 -> 12.1 | AC16: =Particip!$C130 -> 0 | AD16: =Particip!$B130 -> 0 | AE16: =Particip!$C157 -> PHILIPPE Félix | AF16: =Particip!$B157 -> 8.4 | AG16: =Particip!$C184 -> 0 | AH16: =Particip!$B184 -> 0 | AI16: =Particip!$C211 -> 0 | AJ16: =Particip!$B211 -> 0 | AK16: =Particip!$C238 -> 0 | AL16: =Particip!$B238 -> 0 | AM16: =Particip!$C265 -> CHOPINOT Clément | AN16: =Particip!$B265 -> 6.6 | AO16: =Particip!$C292 -> BLANCHARD Christophe | AP16: =Particip!$B292 -> 10.3 | AQ16: =Particip!$C319 -> 0 | AR16: =Particip!$B319 -> 0 | AS16: =Particip!$C346 -> PAILLARD Jean-Luc | AT16: =Particip!$B346 -> 10.2 | AU16: =Particip!$C373 -> MARECHAL Maxime | AV16: =Particip!$B373 -> 15.4 | AW16: =Particip!$C400 -> 0 | AX16: =Particip!$B400 -> 0 | AY16: =Particip!$C427 -> ALEXANDRE Eric | AZ16: =Particip!$B427 -> 16.1 | BA16: =Particip!$C454 -> 0 | BB16: =Particip!$B454 -> 0 | BC16: =Particip!$C481 -> 0 | BD16: =Particip!$B481 -> 0 | BE16: =Particip!$C508 -> 0 | BF16: =Particip!$B508 -> 0 | BG16: =Particip!$C535 -> 0 | BH16: =Particip!$B535 -> 0 | BI16: =Particip!$C562 -> 0 | BJ16: =Particip!$B562 -> 0 | BK16: =Particip!$C589 -> 0 | BL16: =Particip!$B589 -> 0 | BM16: =Particip!$C616 -> 0 | BN16: =Particip!$B616 -> 0 | BO16: =Particip!$C643 -> 0 | BP16: =Particip!$B643 -> 0 | CA16: 4 | CB16: 5 | CC16: 5 | CD16: 3 | CE16: 5 | CF16: 5 | CG16: 4 | CH16: 5 | CI16: 4 | CJ16: 4 | CK16: 5 | CL16: 3 | CM16: 4 | CN16: 5 | CO16: 5 | CP16: 4 | CQ16: 3 | CR16: 6 | DA16: 4 | DB16: 5 | DC16: 4 | DD16: 5 | DE16: 4 | DF16: 5 | DG16: 5 | DH16: 4 | DI16: 4 | DJ16: 6 | DK16: 5 | DL16: 5 | DM16: 8 | DN16: 5 | DO16: 4 | DP16: 4 | DQ16: 4 | DR16: 5
A17: F | B17: 6.8 | C17: EUDIER Ronan | I17: 93 | J17: F | S17: 0 | T17: 0 | U17: =Particip!$C23 -> 0 | V17: =Particip!$B23 -> 0 | W17: =Particip!$C50 -> 0 | X17: =Particip!$B50 -> 0 | Y17: =Particip!$C77 -> 0 | Z17: =Particip!$B77 -> 0 | AA17: =Particip!$C104 -> 0 | AB17: =Particip!$B104 -> 0 | AC17: =Particip!$C131 -> 0 | AD17: =Particip!$B131 -> 0 | AE17: =Particip!$C158 -> JEGO Jean-Claude | AF17: =Particip!$B158 -> 9.1 | AG17: =Particip!$C185 -> 0 | AH17: =Particip!$B185 -> 0 | AI17: =Particip!$C212 -> 0 | AJ17: =Particip!$B212 -> 0 | AK17: =Particip!$C239 -> 0 | AL17: =Particip!$B239 -> 0 | AM17: =Particip!$C266 -> SLIMKO Greg | AN17: =Particip!$B266 -> 8.5 | AO17: =Particip!$C293 -> 0 | AP17: =Particip!$B293 -> 0 | AQ17: =Particip!$C320 -> 0 | AR17: =Particip!$B320 -> 0 | AS17: =Particip!$C347 -> 0 | AT17: =Particip!$B347 -> 0 | AU17: =Particip!$C374 -> 0 | AV17: =Particip!$B374 -> 0 | AW17: =Particip!$C401 -> 0 | AX17: =Particip!$B401 -> 0 | AY17: =Particip!$C428 -> WALLET Laurent | AZ17: =Particip!$B428 -> 18.6 | BA17: =Particip!$C455 -> 0 | BB17: =Particip!$B455 -> 0 | BC17: =Particip!$C482 -> 0 | BD17: =Particip!$B482 -> 0 | BE17: =Particip!$C509 -> 0 | BF17: =Particip!$B509 -> 0 | BG17: =Particip!$C536 -> 0 | BH17: =Particip!$B536 -> 0 | BI17: =Particip!$C563 -> 0 | BJ17: =Particip!$B563 -> 0 | BK17: =Particip!$C590 -> 0 | BL17: =Particip!$B590 -> 0 | BM17: =Particip!$C617 -> 0 | BN17: =Particip!$B617 -> 0 | BO17: =Particip!$C644 -> 0 | BP17: =Particip!$B644 -> 0 | CA17: 4 | CB17: 5 | CC17: 6 | CD17: 4 | CE17: 5 | CF17: 6 | CG17: 4 | CH17: 5 | CI17: 3 | CJ17: 4 | CK17: 7 | CL17: 7 | CM17: 6 | CN17: 6 | CO17: 7 | CP17: 3 | CQ17: 4 | CR17: 7
A19: =IF(SUM(R11:R17)>0,"Classement Final : ","Classement 1er jour : ") -> Classement Final : | D19: =IF(COUNT(I12:I17)<6,"",VLOOKUP(F10,'Cl.J1+Gen.'!$AH$11:$BL$34,31,FALSE)) -> 3 | E19: =IF(SUM(R12:R17)>0,"Total des 2 Tours: ","Total du Tour 1: ") -> Total des 2 Tours: | G19: =IF(OR(I19="DIS",R19="DIS"),"DIS",I19+R19) -> 633 | I19: =IF(S19>1,"DIS",IF(OR(S19=1,COUNTA(I12:I17)<6),SUM(I12:I17),SUM(I12:I17)-MAX(I12:I17))) -> 396 | R19: =IF(T19>1,"DIS",IF(T19=1,SUM(R12:R17),IF(COUNT(R12:R17)<$R$2,SUM(R12:R17),SUM(R12:R17)-MAX(R12:R17)))) -> 237 | S19: =SUM(S12:S17) -> 0 | T19: =SUM(T12:T17) -> 0
C21: Equipiers du club de : | F21: =Prepa!D13 -> BOIS D'O
B22: Ind | C22: Joueurs de la 1ère Journée | I22: Tour 1 | K22: Ind | L22: Joueurs de la 2ème Journée | R22: Tour 2 | S22: FOR ABN DIS | T22: FOR ABN DIS
A23: A | B23: =IF(C23="","",VLOOKUP(C23,$W$6:$X$17,2,FALSE)) -> 9.9 | C23: ANDREYS Bruno | I23: 102 | J23: A | K23: =IF(L23="","",VLOOKUP(L23,$W$6:$X$17,2,FALSE)) -> 8.9 | L23: MEILLIAND Jeremy | R23: 80 | S23: =IF(ISTEXT(I23),1,0) -> 0 | T23: =IF(ISTEXT(R23),1,0) -> 0 | CA23: 5 | CB23: 6 | CC23: 6 | CD23: 6 | CE23: 4 | CF23: 6 | CG23: 5 | CH23: 5 | CI23: 4 | CJ23: 5 | CK23: 5 | CL23: 4 | CM23: 5 | CN23: 7 | CO23: 12 | CP23: 8 | CQ23: 3 | CR23: 6 | DA23: 5 | DB23: 7 | DC23: 5 | DD23: 2 | DE23: 4 | DF23: 6 | DG23: 3 | DH23: 5 | DI23: 4 | DJ23: 3 | DK23: 5 | DL23: 3 | DM23: 4 | DN23: 6 | DO23: 5 | DP23: 5 | DQ23: 3 | DR23: 5
A24: B | B24: 7.6 | C24: SCHOOS Olivier | I24: 93 | J24: B | K24: 6 | L24: SADKY Mounir | R24: 87 | S24: 0 | T24: 0 | CA24: 4 | CB24: 5 | CC24: 6 | CD24: 8 | CE24: 5 | CF24: 6 | CG24: 5 | CH24: 5 | CI24: 4 | CJ24: 4 | CK24: 4 | CL24: 3 | CM24: 5 | CN24: 4 | CO24: 7 | CP24: 7 | CQ24: 3 | CR24: 8 | DA24: 5 | DB24: 4 | DC24: 5 | DD24: 3 | DE24: 4 | DF24: 7 | DG24: 4 | DH24: 4 | DI24: 4 | DJ24: 8 | DK24: 5 | DL24: 3 | DM24: 5 | DN24: 7 | DO24: 5 | DP24: 5 | DQ24: 3 | DR24: 6
A25: C | B25: 6 | C25: SADKY Mounir | I25: 90 | J25: C | K25: 7.6 | L25: SCHOOS Olivier | R25: 86 | S25: 0 | T25: 0 | CA25: 4 | CB25: 4 | CC25: 6 | CD25: 3 | CE25: 5 | CF25: 6 | CG25: 4 | CH25: 6 | CI25: 3 | CJ25: 6 | CK25: 5 | CL25: 5 | CM25: 6 | CN25: 4 | CO25: 9 | CP25: 5 | CQ25: 3 | CR25: 6 | DA25: 4 | DB25: 4 | DC25: 6 | DD25: 4 | DE25: 4 | DF25: 6 | DG25: 6 | DH25: 4 | DI25: 4 | DJ25: 4 | DK25: 4 | DL25: 7 | DM25: 7 | DN25: 4 | DO25: 3 | DP25: 4 | DQ25: 4 | DR25: 7
A26: D | B26: 7.2 | C26: CHARRON Julien | I26: 107 | J26: D | K26: 6.9 | L26: GERBAUD Philippe | R26: 87 | S26: 0 | T26: 0 | CA26: 4 | CB26: 4 | CC26: 8 | CD26: 4 | CE26: 5 | CF26: 6 | CG26: 5 | CH26: 5 | CI26: 4 | CJ26: 6 | CK26: 5 | CL26: 13 | CM26: 7 | CN26: 6 | CO26: 6 | CP26: 6 | CQ26: 6 | CR26: 7 | DA26: 4 | DB26: 4 | DC26: 6 | DD26: 4 | DE26: 4 | DF26: 7 | DG26: 6 | DH26: 5 | DI26: 5 | DJ26: 4 | DK26: 6 | DL26: 3 | DM26: 6 | DN26: 5 | DO26: 4 | DP26: 4 | DQ26: 4 | DR26: 6
A27: E | B27: 8.9 | C27: MEILLIAND Jeremy | I27: 97 | J27: E | S27: 0 | T27: 0 | CA27: 3 | CB27: 4 | CC27: 6 | CD27: 3 | CE27: 8 | CF27: 6 | CG27: 10 | CH27: 8 | CI27: 3 | CJ27: 7 | CK27: 4 | CL27: 4 | CM27: 6 | CN27: 7 | CO27: 4 | CP27: 4 | CQ27: 3 | CR27: 7 | DA27: 4 | DB27: 4 | DC27: 5 | DD27: 3 | DE27: 7 | DF27: 5 | DG27: 5 | DH27: 5 | DI27: 3 | DJ27: 7 | DK27: 5 | DL27: 4 | DM27: 6 | DN27: 4 | DO27: 6 | DP27: 4 | DQ27: 4 | DR27: 6
A28: F | B28: 6.9 | C28: MTIR Sofiane | I28: 83 | J28: F | S28: 0 | T28: 0 | CA28: 4 | CB28: 4 | CC28: 5 | CD28: 5 | CE28: 6 | CF28: 6 | CG28: 5 | CH28: 5 | CI28: 3 | CJ28: 3 | CK28: 5 | CL28: 4 | CM28: 6 | CN28: 4 | CO28: 3 | CP28: 4 | CQ28: 4 | CR28: 7
A30: =IF(SUM(R22:R28)>0,"Classement Final : ","Classement 1er jour : ") -> Classement Final : | D30: =IF(COUNT(I23:I28)<6,"",VLOOKUP(F21,'Cl.J1+Gen.'!$AH$11:$BL$34,31,FALSE)) -> 20 | E30: =IF(SUM(R23:R28)>0,"Total des 2 Tours: ","Total du Tour 1: ") -> Total des 2 Tours: | G30: =IF(OR(I30="DIS",R30="DIS"),"DIS",I30+R30) -> 718 | I30: =IF(S30>1,"DIS",IF(OR(S30=1,COUNTA(I23:I28)<6),SUM(I23:I28),SUM(I23:I28)-MAX(I23:I28))) -> 465 | R30: =IF(T30>1,"DIS",IF(T30=1,SUM(R23:R28),IF(COUNT(R23:R28)<$R$2,SUM(R23:R28),SUM(R23:R28)-MAX(R23:R28)))) -> 253 | S30: =SUM(S23:S28) -> 0 | T30: =SUM(T23:T28) -> 0
C32: Equipiers du club de : | F32: =Prepa!D15 -> BREST ABERS
B33: Ind | C33: Joueurs de la 1ère Journée | I33: Tour 1 | K33: Ind | L33: Joueurs de la 2ème Journée | R33: Tour 2 | S33: FOR ABN DIS | T33: FOR ABN DIS
A34: A | B34: =IF(C34="","",VLOOKUP(C34,$Y$6:$Z$17,2,FALSE)) -> 9.6 | C34: BOUVIER Mathieu | I34: 95 | J34: A | K34: =IF(L34="","",VLOOKUP(L34,$Y$6:$Z$17,2,FALSE)) -> 9.6 | L34: BOUVIER Mathieu | R34: 89 | S34: =IF(ISTEXT(I34),1,0) -> 0 | T34: =IF(ISTEXT(R34),1,0) -> 0 | CA34: 5 | CB34: 5 | CC34: 6 | CD34: 4 | CE34: 5 | CF34: 7 | CG34: 5 | CH34: 5 | CI34: 4 | CJ34: 5 | CK34: 4 | CL34: 6 | CM34: 6 | CN34: 9 | CO34: 4 | CP34: 5 | CQ34: 4 | CR34: 6 | DA34: 4 | DB34: 5 | DC34: 6 | DD34: 5 | DE34: 8 | DF34: 7 | DG34: 6 | DH34: 4 | DI34: 3 | DJ34: 4 | DK34: 4 | DL34: 4 | DM34: 5 | DN34: 6 | DO34: 4 | DP34: 4 | DQ34: 4 | DR34: 6
A35: B | B35: 8.2 | C35: PARGNY Dominique | I35: 89 | J35: B | K35: 11.1 | L35: BAUDOUIN Gilles | R35: 89 | S35: 0 | T35: 0 | CA35: 4 | CB35: 5 | CC35: 6 | CD35: 4 | CE35: 5 | CF35: 5 | CG35: 5 | CH35: 4 | CI35: 4 | CJ35: 5 | CK35: 3 | CL35: 7 | CM35: 4 | CN35: 5 | CO35: 5 | CP35: 7 | CQ35: 5 | CR35: 6 | DA35: 4 | DB35: 5 | DC35: 7 | DD35: 4 | DE35: 6 | DF35: 6 | DG35: 5 | DH35: 4 | DI35: 5 | DJ35: 4 | DK35: 4 | DL35: 6 | DM35: 5 | DN35: 5 | DO35: 5 | DP35: 5 | DQ35: 4 | DR35: 5
A36: C | B36: 10 | C36: INSAUSTI Olivier | I36: 94 | J36: C | K36: 8.2 | L36: PARGNY Dominique | R36: 84 | S36: 0 | T36: 0 | CA36: 6 | CB36: 4 | CC36: 7 | CD36: 4 | CE36: 5 | CF36: 7 | CG36: 6 | CH36: 5 | CI36: 4 | CJ36: 5 | CK36: 5 | CL36: 5 | CM36: 6 | CN36: 6 | CO36: 5 | CP36: 5 | CQ36: 3 | CR36: 6 | DA36: 4 | DB36: 4 | DC36: 6 | DD36: 3 | DE36: 5 | DF36: 6 | DG36: 5 | DH36: 4 | DI36: 3 | DJ36: 6 | DK36: 6 | DL36: 4 | DM36: 5 | DN36: 5 | DO36: 4 | DP36: 5 | DQ36: 3 | DR36: 6
A37: D | B37: 10.1 | C37: MADEC Guillaume | I37: 88 | J37: D | K37: 10.1 | L37: MADEC Guillaume | R37: 90 | S37: 0 | T37: 0 | CA37: 4 | CB37: 6 | CC37: 6 | CD37: 3 | CE37: 6 | CF37: 5 | CG37: 5 | CH37: 6 | CI37: 3 | CJ37: 6 | CK37: 4 | CL37: 3 | CM37: 6 | CN37: 4 | CO37: 7 | CP37: 5 | CQ37: 3 | CR37: 6 | DA37: 4 | DB37: 5 | DC37: 5 | DD37: 5 | DE37: 6 | DF37: 7 | DG37: 5 | DH37: 4 | DI37: 3 | DJ37: 6 | DK37: 6 | DL37: 4 | DM37: 8 | DN37: 5 | DO37: 5 | DP37: 4 | DQ37: 3 | DR37: 5
A38: E | B38: 11.1 | C38: BAUDOUIN Gilles | I38: 95 | J38: E | S38: 0 | T38: 0 | CA38: 5 | CB38: 5 | CC38: 5 | CD38: 4 | CE38: 5 | CF38: 6 | CG38: 5 | CH38: 6 | CI38: 5 | CJ38: 5 | CK38: 6 | CL38: 7 | CM38: 6 | CN38: 6 | CO38: 6 | CP38: 4 | CQ38: 4 | CR38: 5 | DA38: 5 | DB38: 5 | DC38: 6 | DD38: 3 | DE38: 5 | DF38: 7 | DG38: 4 | DH38: 4 | DI38: 5 | DJ38: 5 | DK38: 5 | DL38: 3 | DM38: 6 | DN38: 6 | DO38: 7 | DP38: 5 | DQ38: 4 | DR38: 5
A39: F | B39: 11.6 | C39: FOUREL Tangi | I39: 103 | J39: F | S39: 0 | T39: 0 | CA39: 5 | CB39: 6 | CC39: 6 | CD39: 7 | CE39: 6 | CF39: 6 | CG39: 5 | CH39: 5 | CI39: 4 | CJ39: 5 | CK39: 5 | CL39: 5 | CM39: 7 | CN39: 4 | CO39: 12 | CP39: 6 | CQ39: 3 | CR39: 6
A41: =IF(SUM(R33:R39)>0,"Classement Final : ","Classement 1er jour : ") -> Classement Final : | D41: =IF(COUNT(I34:I39)<6,"",VLOOKUP(F32,'Cl.J1+Gen.'!$AH$11:$BL$34,31,FALSE)) -> 21 | E41: =IF(SUM(R34:R39)>0,"Total des 2 Tours: ","Total du Tour 1: ") -> Total des 2 Tours: | G41: =IF(OR(I41="DIS",R41="DIS"),"DIS",I41+R41) -> 723 | I41: =IF(S41>1,"DIS",IF(OR(S41=1,COUNTA(I34:I39)<6),SUM(I34:I39),SUM(I34:I39)-MAX(I34:I39))) -> 461 | R41: =IF(T41>1,"DIS",IF(T41=1,SUM(R34:R39),IF(COUNT(R34:R39)<$R$2,SUM(R34:R39),SUM(R34:R39)-MAX(R34:R39)))) -> 262 | S41: =SUM(S34:S39) -> 0 | T41: =SUM(T34:T39) -> 0
C43: Equipiers du club de : | F43: =Prepa!D17 -> BREST IROISE
B44: Ind | C44: Joueurs de la 1ère Journée | I44: Tour 1 | K44: Ind | L44: Joueurs de la 2ème Journée | R44: Tour 2 | S44: FOR ABN DIS | T44: FOR ABN DIS
A45: A | B45: =IF(C45="","",VLOOKUP(C45,$AA$6:$AB$17,2,FALSE)) -> 7.5 | C45: LE DUFF Pierre | I45: 85 | J45: A | K45: =IF(L45="","",VLOOKUP(L45,$AA$6:$AB$17,2,FALSE)) -> 7.7 | L45: LE MERDY Sébastien | R45: 99 | S45: =IF(ISTEXT(I45),1,0) -> 0 | T45: =IF(ISTEXT(R45),1,0) -> 0 | CA45: 4 | CB45: 4 | CC45: 9 | CD45: 3 | CE45: 8 | CF45: 4 | CG45: 6 | CH45: 5 | CI45: 3 | CJ45: 4 | CK45: 3 | CL45: 3 | CM45: 5 | CN45: 4 | CO45: 6 | CP45: 4 | CQ45: 5 | CR45: 5 | DA45: 6 | DB45: 5 | DC45: 6 | DD45: 3 | DE45: 4 | DF45: 6 | DG45: 6 | DH45: 6 | DI45: 3 | DJ45: 7 | DK45: 6 | DL45: 4 | DM45: 7 | DN45: 9 | DO45: 7 | DP45: 5 | DQ45: 4 | DR45: 5
A46: B | B46: 9.3 | C46: TROMELIN Patrick | I46: 94 | J46: B | K46: 8.6 | L46: LE BIHAN Thomas | R46: 80 | S46: 0 | T46: 0 | CA46: 4 | CB46: 4 | CC46: 5 | CD46: 4 | CE46: 8 | CF46: 5 | CG46: 6 | CH46: 4 | CI46: 4 | CJ46: 6 | CK46: 4 | CL46: 4 | CM46: 7 | CN46: 5 | CO46: 8 | CP46: 5 | CQ46: 6 | CR46: 5 | DA46: 5 | DB46: 5 | DC46: 6 | DD46: 3 | DE46: 5 | DF46: 6 | DG46: 3 | DH46: 5 | DI46: 3 | DJ46: 4 | DK46: 4 | DL46: 4 | DM46: 5 | DN46: 4 | DO46: 4 | DP46: 5 | DQ46: 4 | DR46: 5
A47: C | B47: 9.2 | C47: ROUE Ronan | I47: 91 | J47: C | K47: 10.8 | L47: BONNAUD Marc | R47: 88 | S47: 0 | T47: 0 | CA47: 6 | CB47: 4 | CC47: 5 | CD47: 4 | CE47: 5 | CF47: 9 | CG47: 6 | CH47: 5 | CI47: 3 | CJ47: 6 | CK47: 5 | CL47: 4 | CM47: 6 | CN47: 4 | CO47: 4 | CP47: 4 | CQ47: 4 | CR47: 7 | DA47: 4 | DB47: 5 | DC47: 7 | DD47: 4 | DE47: 5 | DF47: 6 | DG47: 6 | DH47: 5 | DI47: 5 | DJ47: 5 | DK47: 5 | DL47: 3 | DM47: 4 | DN47: 6 | DO47: 5 | DP47: 4 | DQ47: 3 | DR47: 6
A48: D | B48: 9.8 | C48: DANTEC Arnaud | I48: 89 | J48: D | K48: 9.3 | L48: TROMELIN Patrick | R48: 86 | S48: 0 | T48: 0 | CA48: 4 | CB48: 6 | CC48: 6 | CD48: 5 | CE48: 6 | CF48: 5 | CG48: 4 | CH48: 4 | CI48: 6 | CJ48: 4 | CK48: 6 | CL48: 4 | CM48: 5 | CN48: 5 | CO48: 8 | CP48: 3 | CQ48: 3 | CR48: 5 | DA48: 5 | DB48: 5 | DC48: 5 | DD48: 3 | DE48: 4 | DF48: 5 | DG48: 6 | DH48: 5 | DI48: 4 | DJ48: 8 | DK48: 5 | DL48: 4 | DM48: 5 | DN48: 5 | DO48: 4 | DP48: 3 | DQ48: 4 | DR48: 6
A49: E | B49: 8.6 | C49: LE BIHAN Thomas | I49: 90 | J49: E | S49: 0 | T49: 0 | CA49: 4 | CB49: 5 | CC49: 5 | CD49: 4 | CE49: 5 | CF49: 6 | CG49: 4 | CH49: 7 | CI49: 3 | CJ49: 4 | CK49: 4 | CL49: 4 | CM49: 6 | CN49: 5 | CO49: 6 | CP49: 9 | CQ49: 4 | CR49: 5 | DA49: 4 | DB49: 4 | DC49: 5 | DD49: 6 | DE49: 4 | DF49: 6 | DG49: 5 | DH49: 6 | DI49: 4 | DJ49: 7 | DK49: 6 | DL49: 3 | DM49: 7 | DN49: 5 | DO49: 5 | DP49: 5 | DQ49: 3 | DR49: 6
A50: F | B50: 7.7 | C50: LE MERDY Sébastien | I50: 91 | J50: F | S50: 0 | T50: 0 | CA50: 4 | CB50: 5 | CC50: 6 | CD50: 6 | CE50: 7 | CF50: 8 | CG50: 6 | CH50: 4 | CI50: 4 | CJ50: 5 | CK50: 5 | CL50: 2 | CM50: 6 | CN50: 4 | CO50: 6 | CP50: 3 | CQ50: 4 | CR50: 6
A52: =IF(SUM(R44:R50)>0,"Classement Final : ","Classement 1er jour : ") -> Classement Final : | D52: =IF(COUNT(I45:I50)<6,"",VLOOKUP(F43,'Cl.J1+Gen.'!$AH$11:$BL$34,31,FALSE)) -> 14 | E52: =IF(SUM(R45:R50)>0,"Total des 2 Tours: ","Total du Tour 1: ") -> Total des 2 Tours: | G52: =IF(OR(I52="DIS",R52="DIS"),"DIS",I52+R52) -> 700 | I52: =IF(S52>1,"DIS",IF(OR(S52=1,COUNTA(I45:I50)<6),SUM(I45:I50),SUM(I45:I50)-MAX(I45:I50))) -> 446 | R52: =IF(T52>1,"DIS",IF(T52=1,SUM(R45:R50),IF(COUNT(R45:R50)<$R$2,SUM(R45:R50),SUM(R45:R50)-MAX(R45:R50)))) -> 254 | S52: =SUM(S45:S50) -> 0 | T52: =SUM(T45:T50) -> 0
C54: Equipiers du club de : | F54: =Prepa!D19 -> CAP MALO
B55: Ind | C55: Joueurs de la 1ère Journée | I55: Tour 1 | K55: Ind | L55: Joueurs de la 2ème Journée | R55: Tour 2 | S55: FOR ABN DIS | T55: FOR ABN DIS
A56: A | B56: =IF(C56="","",VLOOKUP(C56,$AC$6:$AD$17,2,FALSE)) -> 7.7 | C56: FROSTIN Pierre-Gilles | I56: 81 | J56: A | K56: =IF(L56="","",VLOOKUP(L56,$AC$6:$AD$17,2,FALSE)) -> 9.6 | L56: BONNIOT Samuel | R56: 91 | S56: =IF(ISTEXT(I56),1,0) -> 0 | T56: =IF(ISTEXT(R56),1,0) -> 0 | CA56: 4 | CB56: 4 | CC56: 5 | CD56: 5 | CE56: 5 | CF56: 4 | CG56: 5 | CH56: 5 | CI56: 4 | CJ56: 5 | CK56: 4 | CL56: 3 | CM56: 5 | CN56: 5 | CO56: 4 | CP56: 4 | CQ56: 3 | CR56: 7 | DA56: 4 | DB56: 5 | DC56: 6 | DD56: 3 | DE56: 5 | DF56: 7 | DG56: 4 | DH56: 6 | DI56: 3 | DJ56: 5 | DK56: 6 | DL56: 4 | DM56: 6 | DN56: 5 | DO56: 5 | DP56: 7 | DQ56: 3 | DR56: 7
A57: B | B57: 4.5 | C57: LEBARBIER Bruno | I57: 78 | J57: B | K57: 10.1 | L57: CAMBARRAT Arnaud | R57: 94 | S57: 0 | T57: 0 | CA57: 3 | CB57: 5 | CC57: 5 | CD57: 3 | CE57: 5 | CF57: 4 | CG57: 4 | CH57: 5 | CI57: 4 | CJ57: 5 | CK57: 5 | CL57: 3 | CM57: 5 | CN57: 4 | CO57: 4 | CP57: 4 | CQ57: 4 | CR57: 6 | DA57: 5 | DB57: 6 | DC57: 7 | DD57: 4 | DE57: 6 | DF57: 6 | DG57: 6 | DH57: 6 | DI57: 3 | DJ57: 5 | DK57: 5 | DL57: 3 | DM57: 6 | DN57: 5 | DO57: 4 | DP57: 7 | DQ57: 4 | DR57: 6
A58: C | B58: 4.8 | C58: LASBLEIZ Yann | I58: 84 | J58: C | K58: 7.6 | L58: LE QUENQUIS Nicolas | R58: 91 | S58: 0 | T58: 0 | CA58: 4 | CB58: 6 | CC58: 5 | CD58: 5 | CE58: 5 | CF58: 6 | CG58: 4 | CH58: 5 | CI58: 3 | CJ58: 5 | CK58: 4 | CL58: 4 | CM58: 6 | CN58: 4 | CO58: 4 | CP58: 4 | CQ58: 4 | CR58: 6 | DA58: 5 | DB58: 6 | DC58: 6 | DD58: 2 | DE58: 6 | DF58: 7 | DG58: 5 | DH58: 6 | DI58: 5 | DJ58: 5 | DK58: 5 | DL58: 5 | DM58: 5 | DN58: 5 | DO58: 6 | DP58: 3 | DQ58: 3 | DR58: 6
A59: D | B59: 1.5 | C59: GOURIOU Yves | I59: 76 | J59: D | K59: 1.5 | L59: GOURIOU Yves | R59: 79 | S59: 0 | T59: 0 | CA59: 4 | CB59: 4 | CC59: 7 | CD59: 4 | CE59: 4 | CF59: 5 | CG59: 5 | CH59: 4 | CI59: 3 | CJ59: 3 | CK59: 4 | CL59: 5 | CM59: 5 | CN59: 4 | CO59: 4 | CP59: 3 | CQ59: 3 | CR59: 5 | DA59: 5 | DB59: 4 | DC59: 6 | DD59: 4 | DE59: 4 | DF59: 4 | DG59: 6 | DH59: 4 | DI59: 3 | DJ59: 4 | DK59: 4 | DL59: 6 | DM59: 5 | DN59: 3 | DO59: 4 | DP59: 4 | DQ59: 4 | DR59: 5
A60: E | B60: 10.1 | C60: CAMBARRAT Arnaud | I60: 99 | J60: E | S60: 0 | T60: 0 | CA60: 5 | CB60: 6 | CC60: 10 | CD60: 4 | CE60: 4 | CF60: 8 | CG60: 5 | CH60: 4 | CI60: 2 | CJ60: 5 | CK60: 5 | CL60: 2 | CM60: 5 | CN60: 4 | CO60: 16 | CP60: 5 | CQ60: 4 | CR60: 5 | DA60: 0 | DB60: 0 | DC60: 0 | DD60: 0 | DE60: 0 | DF60: 0 | DG60: 0 | DH60: 0 | DI60: 0 | DJ60: 0 | DK60: 0 | DL60: 0 | DM60: 0 | DN60: 0 | DO60: 0 | DP60: 0 | DQ60: 0 | DR60: 0
A61: F | B61: 9.6 | C61: BONNIOT Samuel | I61: 93 | J61: F | S61: 0 | T61: 0 | CA61: 3 | CB61: 5 | CC61: 5 | CD61: 4 | CE61: 6 | CF61: 6 | CG61: 4 | CH61: 5 | CI61: 3 | CJ61: 6 | CK61: 6 | CL61: 7 | CM61: 9 | CN61: 5 | CO61: 4 | CP61: 4 | CQ61: 5 | CR61: 6
A63: =IF(SUM(R55:R61)>0,"Classement Final : ","Classement 1er jour : ") -> Classement Final : | D63: =IF(COUNT(I56:I61)<6,"",VLOOKUP(F54,'Cl.J1+Gen.'!$AH$11:$BL$34,31,FALSE)) -> 9 | E63: =IF(SUM(R56:R61)>0,"Total des 2 Tours: ","Total du Tour 1: ") -> Total des 2 Tours: | G63: =IF(OR(I63="DIS",R63="DIS"),"DIS",I63+R63) -> 673 | I63: =IF(S63>1,"DIS",IF(OR(S63=1,COUNTA(I56:I61)<6),SUM(I56:I61),SUM(I56:I61)-MAX(I56:I61))) -> 412 | R63: =IF(T63>1,"DIS",IF(T63=1,SUM(R56:R61),IF(COUNT(R56:R61)<$R$2,SUM(R56:R61),SUM(R56:R61)-MAX(R56:R61)))) -> 261 | S63: =SUM(S56:S61) -> 0 | T63: =SUM(T56:T61) -> 0
C65: Equipiers du club de : | F65: =Prepa!D21 -> CARANTEC
B66: Ind | C66: Joueurs de la 1ère Journée | I66: Tour 1 | K66: Ind | L66: Joueurs de la 2ème Journée | R66: Tour 2 | S66: FOR ABN DIS | T66: FOR ABN DIS
A67: A | B67: =IF(C67="","",VLOOKUP(C67,$AE$6:$AF$17,2,FALSE)) -> 5.3 | C67: ALLIOUX Jean-François | I67: 82 | J67: A | K67: =IF(L67="","",VLOOKUP(L67,$AE$6:$AF$17,2,FALSE)) -> 5.3 | L67: ALLIOUX Jean-François | R67: 86 | S67: =IF(ISTEXT(I67),1,0) -> 0 | T67: =IF(ISTEXT(R67),1,0) -> 0 | CA67: 4 | CB67: 4 | CC67: 5 | CD67: 4 | CE67: 6 | CF67: 5 | CG67: 5 | CH67: 4 | CI67: 3 | CJ67: 5 | CK67: 3 | CL67: 5 | CM67: 5 | CN67: 4 | CO67: 5 | CP67: 4 | CQ67: 4 | CR67: 7 | DA67: 4 | DB67: 4 | DC67: 7 | DD67: 3 | DE67: 3 | DF67: 7 | DG67: 4 | DH67: 5 | DI67: 3 | DJ67: 5 | DK67: 5 | DL67: 3 | DM67: 6 | DN67: 3 | DO67: 5 | DP67: 7 | DQ67: 3 | DR67: 9
A68: B | B68: 4.4 | C68: LECAPITAINE Nicolas | I68: 80 | J68: B | K68: 8.4 | L68: PHILIPPE Félix | R68: 75 | S68: 0 | T68: 0 | CA68: 4 | CB68: 5 | CC68: 6 | CD68: 3 | CE68: 5 | CF68: 5 | CG68: 5 | CH68: 4 | CI68: 3 | CJ68: 6 | CK68: 5 | CL68: 4 | CM68: 5 | CN68: 4 | CO68: 4 | CP68: 3 | CQ68: 3 | CR68: 6 | DA68: 4 | DB68: 4 | DC68: 4 | DD68: 2 | DE68: 5 | DF68: 6 | DG68: 4 | DH68: 5 | DI68: 4 | DJ68: 3 | DK68: 3 | DL68: 3 | DM68: 6 | DN68: 5 | DO68: 5 | DP68: 4 | DQ68: 3 | DR68: 5
A69: C | B69: 3.8 | C69: MOSTINI Julien | I69: 93 | J69: C | K69: 4.6 | L69: BOUTTIER Nicolas | R69: 83 | S69: 0 | T69: 0 | CA69: 4 | CB69: 4 | CC69: 5 | CD69: 4 | CE69: 6 | CF69: 7 | CG69: 5 | CH69: 5 | CI69: 4 | CJ69: 6 | CK69: 5 | CL69: 5 | CM69: 6 | CN69: 5 | CO69: 6 | CP69: 5 | CQ69: 4 | CR69: 7 | DA69: 5 | DB69: 5 | DC69: 5 | DD69: 3 | DE69: 4 | DF69: 6 | DG69: 5 | DH69: 3 | DI69: 4 | DJ69: 5 | DK69: 5 | DL69: 4 | DM69: 6 | DN69: 6 | DO69: 4 | DP69: 5 | DQ69: 3 | DR69: 5
A70: D | B70: 8.4 | C70: PHILIPPE Félix | I70: 80 | J70: D | K70: 3.3 | L70: LE BONHOMME Ronan | R70: 84 | S70: 0 | T70: 0 | CA70: 3 | CB70: 4 | CC70: 4 | CD70: 4 | CE70: 5 | CF70: 6 | CG70: 4 | CH70: 3 | CI70: 4 | CJ70: 4 | CK70: 5 | CL70: 4 | CM70: 5 | CN70: 5 | CO70: 4 | CP70: 7 | CQ70: 3 | CR70: 6 | DA70: 5 | DB70: 5 | DC70: 6 | DD70: 5 | DE70: 5 | DF70: 5 | DG70: 5 | DH70: 7 | DI70: 5 | DJ70: 4 | DK70: 4 | DL70: 3 | DM70: 4 | DN70: 4 | DO70: 3 | DP70: 4 | DQ70: 4 | DR70: 6
A71: E | B71: 4.6 | C71: BOUTTIER Nicolas | I71: 76 | J71: E | S71: 0 | T71: 0 | CA71: 3 | CB71: 4 | CC71: 6 | CD71: 3 | CE71: 5 | CF71: 5 | CG71: 5 | CH71: 4 | CI71: 3 | CJ71: 5 | CK71: 5 | CL71: 4 | CM71: 5 | CN71: 4 | CO71: 4 | CP71: 3 | CQ71: 3 | CR71: 5 | DA71: 4 | DB71: 4 | DC71: 6 | DD71: 4 | DE71: 4 | DF71: 6 | DG71: 5 | DH71: 4 | DI71: 3 | DJ71: 4 | DK71: 4 | DL71: 3 | DM71: 5 | DN71: 4 | DO71: 4 | DP71: 4 | DQ71: 4 | DR71: 6
A72: F | B72: 3.3 | C72: LE BONHOMME Ronan | I72: 81 | J72: F | S72: 0 | T72: 0 | CA72: 5 | CB72: 5 | CC72: 6 | CD72: 3 | CE72: 5 | CF72: 5 | CG72: 4 | CH72: 4 | CI72: 3 | CJ72: 4 | CK72: 4 | CL72: 4 | CM72: 7 | CN72: 4 | CO72: 4 | CP72: 4 | CQ72: 4 | CR72: 6
A74: =IF(SUM(R66:R72)>0,"Classement Final : ","Classement 1er jour : ") -> Classement Final : | D74: =IF(COUNT(I67:I72)<6,"",VLOOKUP(F65,'Cl.J1+Gen.'!$AH$11:$BL$34,31,FALSE)) -> 5 | E74: =IF(SUM(R67:R72)>0,"Total des 2 Tours: ","Total du Tour 1: ") -> Total des 2 Tours: | G74: =IF(OR(I74="DIS",R74="DIS"),"DIS",I74+R74) -> 641 | I74: =IF(S74>1,"DIS",IF(OR(S74=1,COUNTA(I67:I72)<6),SUM(I67:I72),SUM(I67:I72)-MAX(I67:I72))) -> 399 | R74: =IF(T74>1,"DIS",IF(T74=1,SUM(R67:R72),IF(COUNT(R67:R72)<$R$2,SUM(R67:R72),SUM(R67:R72)-MAX(R67:R72)))) -> 242 | S74: =SUM(S67:S72) -> 0 | T74: =SUM(T67:T72) -> 0
C76: Equipiers du club de : | F76: =Prepa!D23 -> CH. AUGERVILLE
B77: Ind | C77: Joueurs de la 1ère Journée | I77: Tour 1 | K77: Ind | L77: Joueurs de la 2ème Journée | R77: Tour 2 | S77: FOR ABN DIS | T77: FOR ABN DIS
A78: A | B78: =IF(C78="","",VLOOKUP(C78,$AG$6:$AH$17,2,FALSE)) -> 6.5 | C78: GAUCHET Thomas | I78: 90 | J78: A | K78: =IF(L78="","",VLOOKUP(L78,$AG$6:$AH$17,2,FALSE)) -> 11.7 | L78: DEVILLIERS Pierre | R78: 102 | S78: =IF(ISTEXT(I78),1,0) -> 0 | T78: =IF(ISTEXT(R78),1,0) -> 0 | CA78: 4 | CB78: 6 | CC78: 7 | CD78: 5 | CE78: 5 | CF78: 5 | CG78: 6 | CH78: 5 | CI78: 4 | CJ78: 5 | CK78: 5 | CL78: 3 | CM78: 4 | CN78: 5 | CO78: 5 | CP78: 5 | CQ78: 5 | CR78: 6 | DA78: 5 | DB78: 6 | DC78: 7 | DD78: 3 | DE78: 5 | DF78: 7 | DG78: 6 | DH78: 5 | DI78: 3 | DJ78: 7 | DK78: 6 | DL78: 8 | DM78: 6 | DN78: 5 | DO78: 6 | DP78: 4 | DQ78: 6 | DR78: 7
A79: B | B79: 9.6 | C79: LAURENT Emmanuel | I79: 84 | J79: B | K79: 9.6 | L79: LAURENT Emmanuel | R79: 103 | S79: 0 | T79: 0 | CA79: 3 | CB79: 5 | CC79: 8 | CD79: 3 | CE79: 5 | CF79: 5 | CG79: 5 | CH79: 5 | CI79: 3 | CJ79: 4 | CK79: 6 | CL79: 3 | CM79: 5 | CN79: 6 | CO79: 4 | CP79: 5 | CQ79: 3 | CR79: 6 | DA79: 5 | DB79: 6 | DC79: 6 | DD79: 4 | DE79: 5 | DF79: 5 | DG79: 6 | DH79: 7 | DI79: 3 | DJ79: 5 | DK79: 5 | DL79: 6 | DM79: 13 | DN79: 5 | DO79: 5 | DP79: 5 | DQ79: 5 | DR79: 7
A80: C | B80: 8.3 | C80: LECONARDEL Jérôme | I80: 83 | J80: C | K80: 11.7 | L80: LELONG Alexis | R80: 84 | S80: 0 | T80: 0 | CA80: 5 | CB80: 5 | CC80: 5 | CD80: 2 | CE80: 5 | CF80: 6 | CG80: 6 | CH80: 4 | CI80: 4 | CJ80: 5 | CK80: 4 | CL80: 3 | CM80: 5 | CN80: 6 | CO80: 5 | CP80: 4 | CQ80: 4 | CR80: 5 | DA80: 5 | DB80: 4 | DC80: 4 | DD80: 5 | DE80: 5 | DF80: 6 | DG80: 5 | DH80: 3 | DI80: 4 | DJ80: 6 | DK80: 5 | DL80: 3 | DM80: 6 | DN80: 6 | DO80: 3 | DP80: 4 | DQ80: 4 | DR80: 6
A81: D | B81: 11.7 | C81: LELONG Alexis | I81: 83 | J81: D | K81: 4.8 | L81: PERICAUD Olivier | R81: 80 | S81: 0 | T81: 0 | CA81: 6 | CB81: 5 | CC81: 5 | CD81: 4 | CE81: 4 | CF81: 4 | CG81: 5 | CH81: 6 | CI81: 3 | CJ81: 5 | CK81: 5 | CL81: 4 | CM81: 5 | CN81: 4 | CO81: 5 | CP81: 3 | CQ81: 4 | CR81: 6 | DA81: 4 | DB81: 5 | DC81: 6 | DD81: 3 | DE81: 5 | DF81: 5 | DG81: 4 | DH81: 4 | DI81: 4 | DJ81: 4 | DK81: 4 | DL81: 4 | DM81: 5 | DN81: 4 | DO81: 5 | DP81: 6 | DQ81: 3 | DR81: 5
A82: E | B82: 8.1 | C82: MAUGRION Benoit | I82: 89 | J82: E | S82: 0 | T82: 0 | CA82: 5 | CB82: 4 | CC82: 7 | CD82: 3 | CE82: 4 | CF82: 7 | CG82: 8 | CH82: 4 | CI82: 3 | CJ82: 5 | CK82: 5 | CL82: 3 | CM82: 5 | CN82: 4 | CO82: 6 | CP82: 7 | CQ82: 3 | CR82: 6 | DA82: 4 | DB82: 5 | DC82: 6 | DD82: 3 | DE82: 5 | DF82: 7 | DG82: 5 | DH82: 6 | DI82: 4 | DJ82: 5 | DK82: 4 | DL82: 3 | DM82: 6 | DN82: 4 | DO82: 6 | DP82: 4 | DQ82: 4 | DR82: 7
A83: F | B83: 4.8 | C83: PERICAUD Olivier | I83: 82 | J83: F | S83: 0 | T83: 0 | CA83: 5 | CB83: 4 | CC83: 5 | CD83: 4 | CE83: 7 | CF83: 6 | CG83: 4 | CH83: 4 | CI83: 3 | CJ83: 5 | CK83: 5 | CL83: 3 | CM83: 5 | CN83: 3 | CO83: 5 | CP83: 4 | CQ83: 4 | CR83: 6
A85: =IF(SUM(R77:R83)>0,"Classement Final : ","Classement 1er jour : ") -> Classement Final : | D85: =IF(COUNT(I78:I83)<6,"",VLOOKUP(F76,'Cl.J1+Gen.'!$AH$11:$BL$34,31,FALSE)) -> 13 | E85: =IF(SUM(R78:R83)>0,"Total des 2 Tours: ","Total du Tour 1: ") -> Total des 2 Tours: | G85: =IF(OR(I85="DIS",R85="DIS"),"DIS",I85+R85) -> 687 | I85: =IF(S85>1,"DIS",IF(OR(S85=1,COUNTA(I78:I83)<6),SUM(I78:I83),SUM(I78:I83)-MAX(I78:I83))) -> 421 | R85: =IF(T85>1,"DIS",IF(T85=1,SUM(R78:R83),IF(COUNT(R78:R83)<$R$2,SUM(R78:R83),SUM(R78:R83)-MAX(R78:R83)))) -> 266 | S85: =SUM(S78:S83) -> 0 | T85: =SUM(T78:T83) -> 0
C87: Equipiers du club de : | F87: =Prepa!D25 -> CHARTRES FONTENAY
B88: Ind | C88: Joueurs de la 1ère Journée | I88: Tour 1 | K88: Ind | L88: Joueurs de la 2ème Journée | R88: Tour 2 | S88: FOR ABN DIS | T88: FOR ABN DIS
A89: A | B89: =IF(C89="","",VLOOKUP(C89,$AI$6:$AJ$17,2,FALSE)) -> 10.5 | C89: REBOULET Sébastien | I89: 95 | J89: A | K89: =IF(L89="","",VLOOKUP(L89,$AI$6:$AJ$17,2,FALSE)) -> 15 | L89: DOUCET Benoit | R89: 107 | S89: =IF(ISTEXT(I89),1,0) -> 0 | T89: =IF(ISTEXT(R89),1,0) -> 0 | CA89: 5 | CB89: 4 | CC89: 5 | CD89: 4 | CE89: 8 | CF89: 6 | CG89: 5 | CH89: 5 | CI89: 3 | CJ89: 7 | CK89: 6 | CL89: 5 | CM89: 6 | CN89: 5 | CO89: 8 | CP89: 4 | CQ89: 3 | CR89: 6 | DA89: 6 | DB89: 6 | DC89: 7 | DD89: 3 | DE89: 8 | DF89: 7 | DG89: 5 | DH89: 5 | DI89: 4 | DJ89: 7 | DK89: 6 | DL89: 5 | DM89: 7 | DN89: 7 | DO89: 9 | DP89: 6 | DQ89: 4 | DR89: 5
A90: B | B90: 5.9 | C90: MONTOYA Leonardo | I90: 82 | J90: B | K90: 10.4 | L90: QUIVIGER Jean-Philippe | R90: 89 | S90: 0 | T90: 0 | CA90: 5 | CB90: 4 | CC90: 3 | CD90: 4 | CE90: 4 | CF90: 5 | CG90: 5 | CH90: 6 | CI90: 4 | CJ90: 5 | CK90: 5 | CL90: 3 | CM90: 6 | CN90: 4 | CO90: 3 | CP90: 4 | CQ90: 6 | CR90: 6 | DA90: 4 | DB90: 5 | DC90: 6 | DD90: 3 | DE90: 5 | DF90: 5 | DG90: 5 | DH90: 4 | DI90: 5 | DJ90: 6 | DK90: 6 | DL90: 3 | DM90: 6 | DN90: 6 | DO90: 4 | DP90: 6 | DQ90: 4 | DR90: 6
A91: C | B91: 13.3 | C91: TARIANT Matthieu | I91: 101 | J91: C | K91: 5.9 | L91: MONTOYA Leonardo | R91: 87 | S91: 0 | T91: 0 | CA91: 7 | CB91: 5 | CC91: 7 | CD91: 3 | CE91: 5 | CF91: 10 | CG91: 4 | CH91: 5 | CI91: 3 | CJ91: 6 | CK91: 4 | CL91: 6 | CM91: 7 | CN91: 4 | CO91: 7 | CP91: 6 | CQ91: 5 | CR91: 7 | DA91: 3 | DB91: 4 | DC91: 8 | DD91: 4 | DE91: 4 | DF91: 7 | DG91: 4 | DH91: 5 | DI91: 4 | DJ91: 7 | DK91: 5 | DL91: 3 | DM91: 6 | DN91: 4 | DO91: 6 | DP91: 4 | DQ91: 3 | DR91: 6
A92: D | B92: 11.8 | C92: OBLIQUE Mathieu | I92: 89 | J92: D | K92: 11.8 | L92: OBLIQUE Mathieu | R92: 88 | S92: 0 | T92: 0 | CA92: 5 | CB92: 5 | CC92: 7 | CD92: 4 | CE92: 4 | CF92: 7 | CG92: 4 | CH92: 5 | CI92: 4 | CJ92: 4 | CK92: 5 | CL92: 4 | CM92: 5 | CN92: 5 | CO92: 3 | CP92: 5 | CQ92: 5 | CR92: 8 | DA92: 4 | DB92: 4 | DC92: 6 | DD92: 3 | DE92: 5 | DF92: 5 | DG92: 5 | DH92: 5 | DI92: 5 | DJ92: 4 | DK92: 5 | DL92: 5 | DM92: 5 | DN92: 4 | DO92: 9 | DP92: 4 | DQ92: 4 | DR92: 6
A93: E | B93: 10.4 | C93: QUIVIGER Jean-Philippe | I93: 87 | J93: E | S93: 0 | T93: 0 | CA93: 4 | CB93: 5 | CC93: 7 | CD93: 3 | CE93: 5 | CF93: 6 | CG93: 5 | CH93: 5 | CI93: 3 | CJ93: 4 | CK93: 5 | CL93: 5 | CM93: 5 | CN93: 5 | CO93: 4 | CP93: 5 | CQ93: 5 | CR93: 6 | DA93: 5 | DB93: 5 | DC93: 5 | DD93: 4 | DE93: 5 | DF93: 5 | DG93: 5 | DH93: 5 | DI93: 4 | DJ93: 4 | DK93: 7 | DL93: 4 | DM93: 6 | DN93: 5 | DO93: 4 | DP93: 6 | DQ93: 4 | DR93: 6
A94: F | B94: 11.4 | C94: BIZARD Philippe | I94: 83 | J94: F | S94: 0 | T94: 0 | CA94: 5 | CB94: 6 | CC94: 6 | CD94: 4 | CE94: 4 | CF94: 6 | CG94: 5 | CH94: 5 | CI94: 3 | CJ94: 5 | CK94: 5 | CL94: 3 | CM94: 4 | CN94: 6 | CO94: 4 | CP94: 3 | CQ94: 3 | CR94: 6
A96: =IF(SUM(R88:R94)>0,"Classement Final : ","Classement 1er jour : ") -> Classement Final : | D96: =IF(COUNT(I89:I94)<6,"",VLOOKUP(F87,'Cl.J1+Gen.'!$AH$11:$BL$34,31,FALSE)) -> 15 | E96: =IF(SUM(R89:R94)>0,"Total des 2 Tours: ","Total du Tour 1: ") -> Total des 2 Tours: | G96: =IF(OR(I96="DIS",R96="DIS"),"DIS",I96+R96) -> 700 | I96: =IF(S96>1,"DIS",IF(OR(S96=1,COUNTA(I89:I94)<6),SUM(I89:I94),SUM(I89:I94)-MAX(I89:I94))) -> 436 | R96: =IF(T96>1,"DIS",IF(T96=1,SUM(R89:R94),IF(COUNT(R89:R94)<$R$2,SUM(R89:R94),SUM(R89:R94)-MAX(R89:R94)))) -> 264 | S96: =SUM(S89:S94) -> 0 | T96: =SUM(T89:T94) -> 0
C98: Equipiers du club de : | F98: =Prepa!D27 -> GLORIETTE
B99: Ind | C99: Joueurs de la 1ère Journée | I99: Tour 1 | K99: Ind | L99: Joueurs de la 2ème Journée | R99: Tour 2 | S99: FOR ABN DIS | T99: FOR ABN DIS
A100: A | B100: =IF(C100="","",VLOOKUP(C100,$AK$6:$AL$17,2,FALSE)) -> 5.3 | C100: CHEVRIER Bertrand | I100: 77 | J100: A | K100: =IF(L100="","",VLOOKUP(L100,$AK$6:$AL$17,2,FALSE)) -> 21.6 | L100: BROHAN Philippe | R100: 109 | S100: =IF(ISTEXT(I100),1,0) -> 0 | T100: =IF(ISTEXT(R100),1,0) -> 0 | CA100: 5 | CB100: 3 | CC100: 5 | CD100: 4 | CE100: 5 | CF100: 5 | CG100: 4 | CH100: 4 | CI100: 3 | CJ100: 5 | CK100: 5 | CL100: 4 | CM100: 3 | CN100: 6 | CO100: 3 | CP100: 4 | CQ100: 4 | CR100: 5 | DA100: 5 | DB100: 5 | DC100: 6 | DD100: 4 | DE100: 7 | DF100: 7 | DG100: 5 | DH100: 5 | DI100: 4 | DJ100: 5 | DK100: 5 | DL100: 4 | DM100: 7 | DN100: 8 | DO100: 13 | DP100: 6 | DQ100: 5 | DR100: 8
A101: B | B101: 12.8 | C101: ROGER Jeremie | I101: 101 | J101: B | K101: 3.9 | L101: CARETTE Benjamin | R101: 76 | S101: 0 | T101: 0 | CA101: 5 | CB101: 5 | CC101: 7 | CD101: 4 | CE101: 4 | CF101: 6 | CG101: 5 | CH101: 3 | CI101: 3 | CJ101: 7 | CK101: 5 | CL101: 8 | CM101: 6 | CN101: 4 | CO101: 11 | CP101: 4 | CQ101: 5 | CR101: 9 | DA101: 4 | DB101: 4 | DC101: 4 | DD101: 3 | DE101: 4 | DF101: 6 | DG101: 3 | DH101: 5 | DI101: 3 | DJ101: 4 | DK101: 4 | DL101: 4 | DM101: 6 | DN101: 3 | DO101: 4 | DP101: 6 | DQ101: 3 | DR101: 6
A102: C | B102: 3.9 | C102: CARETTE Benjamin | I102: 81 | J102: C | K102: 13.2 | L102: RAYNAUD Laurent | R102: 98 | S102: 0 | T102: 0 | CA102: 5 | CB102: 5 | CC102: 6 | CD102: 4 | CE102: 4 | CF102: 7 | CG102: 5 | CH102: 4 | CI102: 3 | CJ102: 4 | CK102: 4 | CL102: 3 | CM102: 6 | CN102: 4 | CO102: 4 | CP102: 4 | CQ102: 3 | CR102: 6 | DA102: 6 | DB102: 5 | DC102: 7 | DD102: 4 | DE102: 6 | DF102: 7 | DG102: 5 | DH102: 5 | DI102: 3 | DJ102: 5 | DK102: 6 | DL102: 4 | DM102: 5 | DN102: 6 | DO102: 6 | DP102: 6 | DQ102: 6 | DR102: 6
A103: D | B103: 17.8 | C103: DONADIO Jerome | I103: 100 | J103: D | K103: 5.3 | L103: CHEVRIER Bertrand | R103: 87 | S103: 0 | T103: 0 | CA103: 4 | CB103: 5 | CC103: 5 | CD103: 4 | CE103: 6 | CF103: 6 | CG103: 7 | CH103: 6 | CI103: 7 | CJ103: 6 | CK103: 6 | CL103: 3 | CM103: 5 | CN103: 5 | CO103: 9 | CP103: 5 | CQ103: 4 | CR103: 7 | DA103: 4 | DB103: 4 | DC103: 6 | DD103: 3 | DE103: 6 | DF103: 6 | DG103: 4 | DH103: 4 | DI103: 3 | DJ103: 4 | DK103: 5 | DL103: 5 | DM103: 5 | DN103: 5 | DO103: 9 | DP103: 5 | DQ103: 3 | DR103: 6
A104: E | B104: 13.2 | C104: RAYNAUD Laurent | I104: 95 | J104: E | S104: 0 | T104: 0 | CA104: 7 | CB104: 5 | CC104: 7 | CD104: 4 | CE104: 5 | CF104: 5 | CG104: 6 | CH104: 5 | CI104: 4 | CJ104: 5 | CK104: 5 | CL104: 3 | CM104: 6 | CN104: 6 | CO104: 6 | CP104: 5 | CQ104: 4 | CR104: 7 | DA104: 7 | DB104: 4 | DC104: 5 | DD104: 4 | DE104: 4 | DF104: 5 | DG104: 5 | DH104: 5 | DI104: 3 | DJ104: 4 | DK104: 4 | DL104: 8 | DM104: 5 | DN104: 4 | DO104: 7 | DP104: 4 | DQ104: 3 | DR104: 6
A105: F | B105: 21.6 | C105: BROHAN Philippe | I105: 100 | J105: F | S105: 0 | T105: 0 | CA105: 5 | CB105: 7 | CC105: 8 | CD105: 3 | CE105: 5 | CF105: 6 | CG105: 5 | CH105: 5 | CI105: 6 | CJ105: 5 | CK105: 5 | CL105: 4 | CM105: 6 | CN105: 5 | CO105: 8 | CP105: 5 | CQ105: 5 | CR105: 7
A107: =IF(SUM(R99:R105)>0,"Classement Final : ","Classement 1er jour : ") -> Classement Final : | D107: =IF(COUNT(I100:I105)<6,"",VLOOKUP(F98,'Cl.J1+Gen.'!$AH$11:$BL$34,31,FALSE)) -> 18 | E107: =IF(SUM(R100:R105)>0,"Total des 2 Tours: ","Total du Tour 1: ") -> Total des 2 Tours: | G107: =IF(OR(I107="DIS",R107="DIS"),"DIS",I107+R107) -> 714 | I107: =IF(S107>1,"DIS",IF(OR(S107=1,COUNTA(I100:I105)<6),SUM(I100:I105),SUM(I100:I105)-MAX(I100:I105))) -> 453 | R107: =IF(T107>1,"DIS",IF(T107=1,SUM(R100:R105),IF(COUNT(R100:R105)<$R$2,SUM(R100:R105),SUM(R100:R105)-MAX(R100:R105)))) -> 261 | S107: =SUM(S100:S105) -> 0 | T107: =SUM(T100:T105) -> 0
C109: Equipiers du club de : | F109: =Prepa!D29 -> GUERANDE
B110: Ind | C110: Joueurs de la 1ère Journée | I110: Tour 1 | K110: Ind | L110: Joueurs de la 2ème Journée | R110: Tour 2 | S110: FOR ABN DIS | T110: FOR ABN DIS
A111: A | B111: =IF(C111="","",VLOOKUP(C111,$AM$6:$AN$17,2,FALSE)) -> 4.2 | C111: GENTIL Florian | I111: 79 | J111: A | K111: =IF(L111="","",VLOOKUP(L111,$AM$6:$AN$17,2,FALSE)) -> 0.2 | L111: LEBRETON Eric | R111: 74 | S111: =IF(ISTEXT(I111),1,0) -> 0 | T111: =IF(ISTEXT(R111),1,0) -> 0 | CA111: 3 | CB111: 5 | CC111: 5 | CD111: 4 | CE111: 4 | CF111: 7 | CG111: 5 | CH111: 4 | CI111: 3 | CJ111: 5 | CK111: 4 | CL111: 3 | CM111: 5 | CN111: 4 | CO111: 4 | CP111: 4 | CQ111: 3 | CR111: 7 | DA111: 5 | DB111: 4 | DC111: 5 | DD111: 3 | DE111: 4 | DF111: 5 | DG111: 5 | DH111: 4 | DI111: 4 | DJ111: 4 | DK111: 4 | DL111: 3 | DM111: 4 | DN111: 4 | DO111: 5 | DP111: 4 | DQ111: 2 | DR111: 5
A112: B | B112: 0.8 | C112: METAYER Benoist | I112: 70 | J112: B | K112: 4.2 | L112: GENTIL Florian | R112: 81 | S112: 0 | T112: 0 | CA112: 4 | CB112: 4 | CC112: 4 | CD112: 3 | CE112: 4 | CF112: 6 | CG112: 4 | CH112: 4 | CI112: 3 | CJ112: 4 | CK112: 4 | CL112: 3 | CM112: 5 | CN112: 4 | CO112: 3 | CP112: 4 | CQ112: 3 | CR112: 4 | DA112: 4 | DB112: 4 | DC112: 5 | DD112: 4 | DE112: 4 | DF112: 5 | DG112: 6 | DH112: 6 | DI112: 3 | DJ112: 4 | DK112: 4 | DL112: 4 | DM112: 6 | DN112: 7 | DO112: 3 | DP112: 3 | DQ112: 3 | DR112: 6
A113: C | B113: 3.2 | C113: VLETTER Morne | I113: 74 | J113: C | K113: 0.8 | L113: METAYER Benoist | R113: 73 | S113: 0 | T113: 0 | CA113: 6 | CB113: 4 | CC113: 4 | CD113: 3 | CE113: 4 | CF113: 5 | CG113: 4 | CH113: 5 | CI113: 4 | CJ113: 4 | CK113: 4 | CL113: 3 | CM113: 5 | CN113: 4 | CO113: 4 | CP113: 4 | CQ113: 3 | CR113: 4 | DA113: 4 | DB113: 4 | DC113: 5 | DD113: 3 | DE113: 4 | DF113: 6 | DG113: 4 | DH113: 5 | DI113: 3 | DJ113: 4 | DK113: 4 | DL113: 3 | DM113: 5 | DN113: 4 | DO113: 4 | DP113: 4 | DQ113: 3 | DR113: 4
A114: D | B114: 6.1 | C114: ROHEL Benjamin | I114: 82 | J114: D | K114: 5.2 | L114: BAYLON Alexandre | R114: 82 | S114: 0 | T114: 0 | CA114: 5 | CB114: 5 | CC114: 4 | CD114: 5 | CE114: 6 | CF114: 5 | CG114: 4 | CH114: 4 | CI114: 4 | CJ114: 5 | CK114: 5 | CL114: 3 | CM114: 4 | CN114: 4 | CO114: 5 | CP114: 4 | CQ114: 4 | CR114: 6 | DA114: 4 | DB114: 5 | DC114: 6 | DD114: 3 | DE114: 4 | DF114: 6 | DG114: 4 | DH114: 6 | DI114: 3 | DJ114: 5 | DK114: 5 | DL114: 3 | DM114: 6 | DN114: 5 | DO114: 4 | DP114: 4 | DQ114: 4 | DR114: 5
A115: E | B115: 0.2 | C115: LEBRETON Eric | I115: 80 | J115: E | S115: 0 | T115: 0 | CA115: 5 | CB115: 4 | CC115: 6 | CD115: 3 | CE115: 4 | CF115: 7 | CG115: 4 | CH115: 5 | CI115: 3 | CJ115: 3 | CK115: 6 | CL115: 3 | CM115: 5 | CN115: 4 | CO115: 5 | CP115: 5 | CQ115: 3 | CR115: 5 | DA115: 3 | DB115: 4 | DC115: 5 | DD115: 4 | DE115: 4 | DF115: 5 | DG115: 4 | DH115: 4 | DI115: 3 | DJ115: 5 | DK115: 4 | DL115: 4 | DM115: 4 | DN115: 4 | DO115: 3 | DP115: 3 | DQ115: 3 | DR115: 5
A116: F | B116: 5.1 | C116: GAUVIN Ronan | I116: 79 | J116: F | S116: 0 | T116: 0 | CA116: 5 | CB116: 4 | CC116: 6 | CD116: 4 | CE116: 4 | CF116: 6 | CG116: 5 | CH116: 4 | CI116: 3 | CJ116: 4 | CK116: 4 | CL116: 4 | CM116: 5 | CN116: 4 | CO116: 5 | CP116: 4 | CQ116: 2 | CR116: 6
A118: =IF(SUM(R110:R116)>0,"Classement Final : ","Classement 1er jour : ") -> Classement Final : | D118: =IF(COUNT(I111:I116)<6,"",VLOOKUP(F109,'Cl.J1+Gen.'!$AH$11:$BL$34,31,FALSE)) -> 1 | E118: =IF(SUM(R111:R116)>0,"Total des 2 Tours: ","Total du Tour 1: ") -> Total des 2 Tours: | G118: =IF(OR(I118="DIS",R118="DIS"),"DIS",I118+R118) -> 610 | I118: =IF(S118>1,"DIS",IF(OR(S118=1,COUNTA(I111:I116)<6),SUM(I111:I116),SUM(I111:I116)-MAX(I111:I116))) -> 382 | R118: =IF(T118>1,"DIS",IF(T118=1,SUM(R111:R116),IF(COUNT(R111:R116)<$R$2,SUM(R111:R116),SUM(R111:R116)-MAX(R111:R116)))) -> 228 | S118: =SUM(S111:S116) -> 0 | T118: =SUM(T111:T116) -> 0
C120: Equipiers du club de : | F120: =Prepa!D31 -> ILE D'OR
B121: Ind | C121: Joueurs de la 1ère Journée | I121: Tour 1 | K121: Ind | L121: Joueurs de la 2ème Journée | R121: Tour 2 | S121: FOR ABN DIS | T121: FOR ABN DIS
A122: A | B122: =IF(C122="","",VLOOKUP(C122,$AO$6:$AP$17,2,FALSE)) -> 8.1 | C122: CHAILLOU Cyrille | I122: 91 | J122: A | K122: =IF(L122="","",VLOOKUP(L122,$AO$6:$AP$17,2,FALSE)) -> 6.4 | L122: TEITGEN Antoine | R122: 88 | S122: =IF(ISTEXT(I122),1,0) -> 0 | T122: =IF(ISTEXT(R122),1,0) -> 0 | CA122: 4 | CB122: 6 | CC122: 6 | CD122: 4 | CE122: 6 | CF122: 6 | CG122: 5 | CH122: 5 | CI122: 3 | CJ122: 5 | CK122: 5 | CL122: 6 | CM122: 5 | CN122: 5 | CO122: 3 | CP122: 6 | CQ122: 5 | CR122: 6 | DA122: 5 | DB122: 5 | DC122: 5 | DD122: 4 | DE122: 6 | DF122: 7 | DG122: 4 | DH122: 5 | DI122: 4 | DJ122: 4 | DK122: 4 | DL122: 8 | DM122: 5 | DN122: 4 | DO122: 3 | DP122: 5 | DQ122: 4 | DR122: 6
A123: B | B123: -0.3 | C123: KLEIN Rodolphe | I123: 90 | J123: B | K123: 6 | L123: NOMBLOT Antoine | R123: 83 | S123: 0 | T123: 0 | CA123: 6 | CB123: 4 | CC123: 4 | CD123: 7 | CE123: 10 | CF123: 6 | CG123: 3 | CH123: 4 | CI123: 4 | CJ123: 6 | CK123: 4 | CL123: 4 | CM123: 7 | CN123: 4 | CO123: 4 | CP123: 4 | CQ123: 3 | CR123: 6 | DA123: 4 | DB123: 4 | DC123: 4 | DD123: 4 | DE123: 4 | DF123: 6 | DG123: 4 | DH123: 6 | DI123: 3 | DJ123: 4 | DK123: 4 | DL123: 3 | DM123: 5 | DN123: 4 | DO123: 9 | DP123: 5 | DQ123: 3 | DR123: 7
A124: C | B124: -2.1 | C124: LUCAS Benoît | I124: 76 | J124: C | K124: -2.2 | L124: LUCAS Olivier | R124: 76 | S124: 0 | T124: 0 | CA124: 4 | CB124: 4 | CC124: 6 | CD124: 4 | CE124: 5 | CF124: 5 | CG124: 7 | CH124: 4 | CI124: 3 | CJ124: 4 | CK124: 3 | CL124: 3 | CM124: 5 | CN124: 3 | CO124: 4 | CP124: 4 | CQ124: 3 | CR124: 5 | DA124: 3 | DB124: 4 | DC124: 4 | DD124: 4 | DE124: 4 | DF124: 5 | DG124: 5 | DH124: 5 | DI124: 3 | DJ124: 7 | DK124: 4 | DL124: 3 | DM124: 3 | DN124: 4 | DO124: 5 | DP124: 4 | DQ124: 3 | DR124: 6
A125: D | B125: -2.2 | C125: LUCAS Olivier | I125: 75 | J125: D | K125: -2.1 | L125: LUCAS Benoît | R125: 73 | S125: 0 | T125: 0 | CA125: 3 | CB125: 4 | CC125: 5 | CD125: 5 | CE125: 4 | CF125: 5 | CG125: 4 | CH125: 4 | CI125: 3 | CJ125: 4 | CK125: 5 | CL125: 5 | CM125: 4 | CN125: 4 | CO125: 4 | CP125: 4 | CQ125: 3 | CR125: 5 | DA125: 4 | DB125: 4 | DC125: 4 | DD125: 4 | DE125: 5 | DF125: 5 | DG125: 5 | DH125: 4 | DI125: 3 | DJ125: 5 | DK125: 5 | DL125: 2 | DM125: 4 | DN125: 4 | DO125: 4 | DP125: 4 | DQ125: 3 | DR125: 4
A126: E | B126: 6.4 | C126: TEITGEN Antoine | I126: 91 | J126: E | S126: 0 | T126: 0 | CA126: 4 | CB126: 4 | CC126: 6 | CD126: 4 | CE126: 5 | CF126: 6 | CG126: 4 | CH126: 6 | CI126: 4 | CJ126: 6 | CK126: 4 | CL126: 7 | CM126: 5 | CN126: 4 | CO126: 4 | CP126: 5 | CQ126: 5 | CR126: 8 | DA126: 4 | DB126: 5 | DC126: 5 | DD126: 3 | DE126: 4 | DF126: 6 | DG126: 6 | DH126: 4 | DI126: 3 | DJ126: 5 | DK126: 4 | DL126: 5 | DM126: 6 | DN126: 5 | DO126: 4 | DP126: 5 | DQ126: 3 | DR126: 4
A127: F | B127: 6 | C127: NOMBLOT Antoine | I127: 75 | J127: F | S127: 0 | T127: 0 | CA127: 4 | CB127: 4 | CC127: 5 | CD127: 3 | CE127: 4 | CF127: 5 | CG127: 4 | CH127: 4 | CI127: 4 | CJ127: 4 | CK127: 4 | CL127: 2 | CM127: 5 | CN127: 4 | CO127: 5 | CP127: 5 | CQ127: 3 | CR127: 6
A129: =IF(SUM(R121:R127)>0,"Classement Final : ","Classement 1er jour : ") -> Classement Final : | D129: =IF(COUNT(I122:I127)<6,"",VLOOKUP(F120,'Cl.J1+Gen.'!$AH$11:$BL$34,31,FALSE)) -> 4 | E129: =IF(SUM(R122:R127)>0,"Total des 2 Tours: ","Total du Tour 1: ") -> Total des 2 Tours: | G129: =IF(OR(I129="DIS",R129="DIS"),"DIS",I129+R129) -> 639 | I129: =IF(S129>1,"DIS",IF(OR(S129=1,COUNTA(I122:I127)<6),SUM(I122:I127),SUM(I122:I127)-MAX(I122:I127))) -> 407 | R129: =IF(T129>1,"DIS",IF(T129=1,SUM(R122:R127),IF(COUNT(R122:R127)<$R$2,SUM(R122:R127),SUM(R122:R127)-MAX(R122:R127)))) -> 232 | S129: =SUM(S122:S127) -> 0 | T129: =SUM(T122:T127) -> 0
C131: Equipiers du club de : | F131: =Prepa!D33 -> LAC AU DUC
B132: Ind | C132: Joueurs de la 1ère Journée | I132: Tour 1 | K132: Ind | L132: Joueurs de la 2ème Journée | R132: Tour 2 | S132: FOR ABN DIS | T132: FOR ABN DIS
A133: A | B133: =IF(C133="","",VLOOKUP(C133,$AQ$6:$AR$17,2,FALSE)) -> 5 | C133: URVOIS Patrice | I133: 91 | J133: A | K133: =IF(L133="","",VLOOKUP(L133,$AQ$6:$AR$17,2,FALSE)) -> 9.5 | L133: COUDE Jerome | R133: 99 | S133: =IF(ISTEXT(I133),1,0) -> 0 | T133: =IF(ISTEXT(R133),1,0) -> 0 | CA133: 9 | CB133: 4 | CC133: 5 | CD133: 5 | CE133: 5 | CF133: 7 | CG133: 5 | CH133: 7 | CI133: 3 | CJ133: 5 | CK133: 4 | CL133: 3 | CM133: 5 | CN133: 5 | CO133: 4 | CP133: 5 | CQ133: 4 | CR133: 6 | DA133: 5 | DB133: 6 | DC133: 7 | DD133: 5 | DE133: 8 | DF133: 7 | DG133: 4 | DH133: 5 | DI133: 5 | DJ133: 4 | DK133: 6 | DL133: 5 | DM133: 6 | DN133: 5 | DO133: 5 | DP133: 6 | DQ133: 4 | DR133: 6
A134: B | B134: 5.4 | C134: BOUJU Pierre | I134: 86 | J134: B | K134: 5.7 | L134: CAPELLE Thomas | R134: 104 | S134: 0 | T134: 0 | CA134: 4 | CB134: 5 | CC134: 5 | CD134: 4 | CE134: 5 | CF134: 5 | CG134: 5 | CH134: 4 | CI134: 6 | CJ134: 5 | CK134: 5 | CL134: 4 | CM134: 6 | CN134: 4 | CO134: 6 | CP134: 4 | CQ134: 3 | CR134: 6 | DA134: 5 | DB134: 9 | DC134: 5 | DD134: 3 | DE134: 6 | DF134: 7 | DG134: 5 | DH134: 6 | DI134: 4 | DJ134: 4 | DK134: 8 | DL134: 14 | DM134: 5 | DN134: 4 | DO134: 5 | DP134: 4 | DQ134: 4 | DR134: 6
A135: C | B135: 3.6 | C135: TURMEAU Cédric | I135: 78 | J135: C | K135: 5.4 | L135: BOUJU Pierre | R135: 80 | S135: 0 | T135: 0 | CA135: 4 | CB135: 5 | CC135: 5 | CD135: 3 | CE135: 5 | CF135: 6 | CG135: 4 | CH135: 5 | CI135: 3 | CJ135: 4 | CK135: 5 | CL135: 4 | CM135: 6 | CN135: 4 | CO135: 4 | CP135: 4 | CQ135: 2 | CR135: 5 | DA135: 4 | DB135: 3 | DC135: 6 | DD135: 3 | DE135: 5 | DF135: 5 | DG135: 4 | DH135: 5 | DI135: 3 | DJ135: 4 | DK135: 5 | DL135: 3 | DM135: 7 | DN135: 3 | DO135: 6 | DP135: 4 | DQ135: 4 | DR135: 6
A136: D | B136: 9.5 | C136: COUDE Jerome | I136: 81 | J136: D | K136: 3.6 | L136: TURMEAU Cédric | R136: 78 | S136: 0 | T136: 0 | CA136: 3 | CB136: 5 | CC136: 5 | CD136: 5 | CE136: 4 | CF136: 7 | CG136: 4 | CH136: 4 | CI136: 3 | CJ136: 4 | CK136: 6 | CL136: 4 | CM136: 5 | CN136: 5 | CO136: 3 | CP136: 4 | CQ136: 4 | CR136: 6 | DA136: 5 | DB136: 5 | DC136: 6 | DD136: 4 | DE136: 4 | DF136: 5 | DG136: 4 | DH136: 3 | DI136: 3 | DJ136: 5 | DK136: 4 | DL136: 3 | DM136: 5 | DN136: 4 | DO136: 4 | DP136: 4 | DQ136: 4 | DR136: 6
A137: E | B137: 7.9 | C137: JACQ Gilles | I137: 92 | J137: E | S137: 0 | T137: 0 | CA137: 5 | CB137: 5 | CC137: 5 | CD137: 6 | CE137: 4 | CF137: 6 | CG137: 5 | CH137: 5 | CI137: 4 | CJ137: 6 | CK137: 5 | CL137: 4 | CM137: 8 | CN137: 4 | CO137: 5 | CP137: 4 | CQ137: 5 | CR137: 6 | DA137: 6 | DB137: 6 | DC137: 6 | DD137: 4 | DE137: 6 | DF137: 7 | DG137: 4 | DH137: 5 | DI137: 5 | DJ137: 6 | DK137: 6 | DL137: 3 | DM137: 6 | DN137: 5 | DO137: 4 | DP137: 7 | DQ137: 3 | DR137: 5
A138: F | B138: 5.7 | C138: CAPELLE Thomas | I138: 93 | J138: F | S138: 0 | T138: 0 | CA138: 7 | CB138: 6 | CC138: 6 | CD138: 3 | CE138: 6 | CF138: 7 | CG138: 5 | CH138: 4 | CI138: 3 | CJ138: 5 | CK138: 5 | CL138: 3 | CM138: 5 | CN138: 7 | CO138: 7 | CP138: 6 | CQ138: 3 | CR138: 5
A140: =IF(SUM(R132:R138)>0,"Classement Final : ","Classement 1er jour : ") -> Classement Final : | D140: =IF(COUNT(I133:I138)<6,"",VLOOKUP(F131,'Cl.J1+Gen.'!$AH$11:$BL$34,31,FALSE)) -> 12 | E140: =IF(SUM(R133:R138)>0,"Total des 2 Tours: ","Total du Tour 1: ") -> Total des 2 Tours: | G140: =IF(OR(I140="DIS",R140="DIS"),"DIS",I140+R140) -> 685 | I140: =IF(S140>1,"DIS",IF(OR(S140=1,COUNTA(I133:I138)<6),SUM(I133:I138),SUM(I133:I138)-MAX(I133:I138))) -> 428 | R140: =IF(T140>1,"DIS",IF(T140=1,SUM(R133:R138),IF(COUNT(R133:R138)<$R$2,SUM(R133:R138),SUM(R133:R138)-MAX(R133:R138)))) -> 257 | S140: =SUM(S133:S138) -> 0 | T140: =SUM(T133:T138) -> 0
C142: Equipiers du club de : | F142: =Prepa!D35 -> LAVAL
B143: Ind | C143: Joueurs de la 1ère Journée | I143: Tour 1 | K143: Ind | L143: Joueurs de la 2ème Journée | R143: Tour 2 | S143: FOR ABN DIS | T143: FOR ABN DIS
A144: A | B144: =IF(C144="","",VLOOKUP(C144,$AS$6:$AT$17,2,FALSE)) -> 6.4 | C144: PETITPAS Bernard | I144: 82 | J144: A | K144: =IF(L144="","",VLOOKUP(L144,$AS$6:$AT$17,2,FALSE)) -> 6.4 | L144: PETITPAS Bernard | R144: 82 | S144: =IF(ISTEXT(I144),1,0) -> 0 | T144: =IF(ISTEXT(R144),1,0) -> 0 | CA144: 5 | CB144: 5 | CC144: 6 | CD144: 3 | CE144: 5 | CF144: 7 | CG144: 4 | CH144: 5 | CI144: 3 | CJ144: 4 | CK144: 6 | CL144: 3 | CM144: 6 | CN144: 5 | CO144: 4 | CP144: 4 | CQ144: 2 | CR144: 5 | DA144: 5 | DB144: 5 | DC144: 5 | DD144: 4 | DE144: 5 | DF144: 6 | DG144: 5 | DH144: 3 | DI144: 3 | DJ144: 5 | DK144: 5 | DL144: 3 | DM144: 5 | DN144: 4 | DO144: 4 | DP144: 5 | DQ144: 3 | DR144: 7
A145: B | B145: 4.7 | C145: BENOIST Stéphane | I145: 80 | J145: B | K145: 2.8 | L145: POIRRIER-MORVAN Cyril | R145: 83 | S145: 0 | T145: 0 | CA145: 4 | CB145: 4 | CC145: 5 | CD145: 4 | CE145: 4 | CF145: 5 | CG145: 6 | CH145: 4 | CI145: 3 | CJ145: 4 | CK145: 4 | CL145: 3 | CM145: 8 | CN145: 4 | CO145: 4 | CP145: 4 | CQ145: 4 | CR145: 6 | DA145: 4 | DB145: 4 | DC145: 5 | DD145: 4 | DE145: 4 | DF145: 5 | DG145: 5 | DH145: 4 | DI145: 4 | DJ145: 4 | DK145: 5 | DL145: 3 | DM145: 8 | DN145: 4 | DO145: 8 | DP145: 4 | DQ145: 3 | DR145: 5
A146: C | B146: 10.2 | C146: PAILLARD Jean-Luc | I146: 95 | J146: C | K146: 4.7 | L146: BENOIST Stéphane | R146: 85 | S146: 0 | T146: 0 | CA146: 5 | CB146: 5 | CC146: 6 | CD146: 3 | CE146: 6 | CF146: 5 | CG146: 6 | CH146: 6 | CI146: 3 | CJ146: 5 | CK146: 6 | CL146: 4 | CM146: 7 | CN146: 5 | CO146: 5 | CP146: 6 | CQ146: 4 | CR146: 8 | DA146: 4 | DB146: 3 | DC146: 5 | DD146: 5 | DE146: 4 | DF146: 6 | DG146: 4 | DH146: 4 | DI146: 4 | DJ146: 5 | DK146: 5 | DL146: 2 | DM146: 6 | DN146: 4 | DO146: 9 | DP146: 5 | DQ146: 4 | DR146: 6
A147: D | B147: 2.8 | C147: POIRRIER-MORVAN Cyril | I147: 83 | J147: D | K147: 2.1 | L147: CHAVETON Rémi | R147: 86 | S147: 0 | T147: 0 | CA147: 4 | CB147: 4 | CC147: 6 | CD147: 3 | CE147: 4 | CF147: 6 | CG147: 4 | CH147: 4 | CI147: 4 | CJ147: 4 | CK147: 5 | CL147: 3 | CM147: 5 | CN147: 5 | CO147: 8 | CP147: 5 | CQ147: 4 | CR147: 5 | DA147: 4 | DB147: 5 | DC147: 5 | DD147: 4 | DE147: 6 | DF147: 6 | DG147: 4 | DH147: 6 | DI147: 4 | DJ147: 6 | DK147: 5 | DL147: 3 | DM147: 5 | DN147: 4 | DO147: 4 | DP147: 7 | DQ147: 3 | DR147: 5
A148: E | B148: 2.1 | C148: CHAVETON Rémi | I148: 86 | J148: E | S148: 0 | T148: 0 | CA148: 4 | CB148: 4 | CC148: 6 | CD148: 5 | CE148: 6 | CF148: 6 | CG148: 5 | CH148: 4 | CI148: 3 | CJ148: 5 | CK148: 6 | CL148: 4 | CM148: 6 | CN148: 4 | CO148: 4 | CP148: 6 | CQ148: 3 | CR148: 5 | DA148: 3 | DB148: 4 | DC148: 5 | DD148: 3 | DE148: 6 | DF148: 6 | DG148: 5 | DH148: 6 | DI148: 3 | DJ148: 4 | DK148: 4 | DL148: 5 | DM148: 5 | DN148: 4 | DO148: 4 | DP148: 4 | DQ148: 3 | DR148: 5
A149: F | B149: 4.8 | C149: DUBOIS Sébastien | I149: 86 | J149: F | S149: 0 | T149: 0 | CA149: 5 | CB149: 5 | CC149: 5 | CD149: 3 | CE149: 4 | CF149: 5 | CG149: 4 | CH149: 6 | CI149: 4 | CJ149: 5 | CK149: 5 | CL149: 4 | CM149: 5 | CN149: 4 | CO149: 6 | CP149: 5 | CQ149: 4 | CR149: 7
A151: =IF(SUM(R143:R149)>0,"Classement Final : ","Classement 1er jour : ") -> Classement Final : | D151: =IF(COUNT(I144:I149)<6,"",VLOOKUP(F142,'Cl.J1+Gen.'!$AH$11:$BL$34,31,FALSE)) -> 8 | E151: =IF(SUM(R144:R149)>0,"Total des 2 Tours: ","Total du Tour 1: ") -> Total des 2 Tours: | G151: =IF(OR(I151="DIS",R151="DIS"),"DIS",I151+R151) -> 667 | I151: =IF(S151>1,"DIS",IF(OR(S151=1,COUNTA(I144:I149)<6),SUM(I144:I149),SUM(I144:I149)-MAX(I144:I149))) -> 417 | R151: =IF(T151>1,"DIS",IF(T151=1,SUM(R144:R149),IF(COUNT(R144:R149)<$R$2,SUM(R144:R149),SUM(R144:R149)-MAX(R144:R149)))) -> 250 | S151: =SUM(S144:S149) -> 0 | T151: =SUM(T144:T149) -> 0
C153: Equipiers du club de : | F153: =Prepa!D37 -> ORLEANS DONNERY
B154: Ind | C154: Joueurs de la 1ère Journée | I154: Tour 1 | K154: Ind | L154: Joueurs de la 2ème Journée | R154: Tour 2 | S154: FOR ABN DIS | T154: FOR ABN DIS
A155: A | B155: =IF(C155="","",VLOOKUP(C155,$AU$6:$AV$17,2,FALSE)) -> 10.9 | C155: LASSOUDRY Stephan | I155: 94 | J155: A | K155: =IF(L155="","",VLOOKUP(L155,$AU$6:$AV$17,2,FALSE)) ->  | R155: ABS | S155: =IF(ISTEXT(I155),1,0) -> 0 | T155: =IF(ISTEXT(R155),1,0) -> 1 | CA155: 4 | CB155: 4 | CC155: 5 | CD155: 4 | CE155: 5 | CF155: 8 | CG155: 5 | CH155: 4 | CI155: 4 | CJ155: 4 | CK155: 5 | CL155: 9 | CM155: 4 | CN155: 6 | CO155: 6 | CP155: 3 | CQ155: 6 | CR155: 8
A156: B | I156: ABS | J156: B | K156: 15.4 | L156: MARECHAL Maxime | R156: 95 | S156: 1 | T156: 0 | DA156: 4 | DB156: 5 | DC156: 7 | DD156: 4 | DE156: 5 | DF156: 5 | DG156: 5 | DH156: 5 | DI156: 3 | DJ156: 5 | DK156: 6 | DL156: 6 | DM156: 5 | DN156: 11 | DO156: 6 | DP156: 4 | DQ156: 4 | DR156: 5
A157: C | B157: 15.4 | C157: MARECHAL Maxime | I157: 92 | J157: C | K157: 7.2 | L157: BOUTEILLY Laurent | R157: 87 | S157: 0 | T157: 0 | CA157: 5 | CB157: 5 | CC157: 5 | CD157: 3 | CE157: 5 | CF157: 7 | CG157: 5 | CH157: 6 | CI157: 3 | CJ157: 5 | CK157: 6 | CL157: 4 | CM157: 6 | CN157: 7 | CO157: 4 | CP157: 5 | CQ157: 4 | CR157: 7 | DA157: 4 | DB157: 4 | DC157: 5 | DD157: 5 | DE157: 5 | DF157: 7 | DG157: 7 | DH157: 4 | DI157: 3 | DJ157: 6 | DK157: 4 | DL157: 3 | DM157: 6 | DN157: 6 | DO157: 4 | DP157: 5 | DQ157: 3 | DR157: 6
A158: D | B158: 7.2 | C158: BOUTEILLY Laurent | I158: 83 | J158: D | K158: 11.8 | L158: PRADIER Aymeric | R158: 88 | S158: 0 | T158: 0 | CA158: 3 | CB158: 4 | CC158: 5 | CD158: 3 | CE158: 5 | CF158: 7 | CG158: 4 | CH158: 5 | CI158: 3 | CJ158: 6 | CK158: 6 | CL158: 4 | CM158: 5 | CN158: 5 | CO158: 6 | CP158: 3 | CQ158: 3 | CR158: 6 | DA158: 4 | DB158: 5 | DC158: 5 | DD158: 3 | DE158: 6 | DF158: 5 | DG158: 5 | DH158: 5 | DI158: 3 | DJ158: 5 | DK158: 5 | DL158: 4 | DM158: 6 | DN158: 8 | DO158: 4 | DP158: 4 | DQ158: 4 | DR158: 7
A159: E | B159: 10.6 | C159: FERRIER Benjamin | I159: 89 | J159: E | S159: 0 | T159: 0 | CA159: 6 | CB159: 5 | CC159: 5 | CD159: 4 | CE159: 6 | CF159: 6 | CG159: 5 | CH159: 4 | CI159: 4 | CJ159: 4 | CK159: 4 | CL159: 4 | CM159: 6 | CN159: 4 | CO159: 7 | CP159: 5 | CQ159: 3 | CR159: 7 | DA159: 0 | DB159: 0 | DC159: 0 | DD159: 0 | DE159: 0 | DF159: 0 | DG159: 0 | DH159: 0 | DI159: 0 | DJ159: 0 | DK159: 0 | DL159: 0 | DM159: 0 | DN159: 0 | DO159: 0 | DP159: 0 | DQ159: 0 | DR159: 0
A160: F | B160: 11.8 | C160: PRADIER Aymeric | I160: 88 | J160: F | S160: 0 | T160: 0 | CA160: 5 | CB160: 5 | CC160: 5 | CD160: 4 | CE160: 5 | CF160: 7 | CG160: 5 | CH160: 5 | CI160: 4 | CJ160: 6 | CK160: 4 | CL160: 3 | CM160: 5 | CN160: 5 | CO160: 6 | CP160: 4 | CQ160: 4 | CR160: 6 | DA160: 5 | DB160: 5 | DC160: 5 | DD160: 4 | DE160: 6 | DF160: 7 | DG160: 4 | DH160: 4 | DI160: 3 | DJ160: 3 | DK160: 4 | DL160: 4 | DM160: 6 | DN160: 6 | DO160: 7 | DP160: 5 | DQ160: 5 | DR160: 6
A162: =IF(SUM(R154:R160)>0,"Classement Final : ","Classement 1er jour : ") -> Classement Final : | D162: =IF(COUNT(I155:I160)<6,"",VLOOKUP(F153,'Cl.J1+Gen.'!$AH$11:$BL$34,31,FALSE)) ->  | E162: =IF(SUM(R155:R160)>0,"Total des 2 Tours: ","Total du Tour 1: ") -> Total des 2 Tours: | G162: =IF(OR(I162="DIS",R162="DIS"),"DIS",I162+R162) -> 716 | I162: =IF(S162>1,"DIS",IF(OR(S162=1,COUNTA(I155:I160)<6),SUM(I155:I160),SUM(I155:I160)-MAX(I155:I160))) -> 446 | R162: =IF(T162>1,"DIS",IF(T162=1,SUM(R155:R160),IF(COUNT(R155:R160)<$R$2,SUM(R155:R160),SUM(R155:R160)-MAX(R155:R160)))) -> 270 | S162: =SUM(S155:S160) -> 1 | T162: =SUM(T155:T160) -> 1
C164: Equipiers du club de : | F164: =Prepa!D39 -> VAL DE L'INDRE
B165: Ind | C165: Joueurs de la 1ère Journée | I165: Tour 1 | K165: Ind | L165: Joueurs de la 2ème Journée | R165: Tour 2 | S165: FOR ABN DIS | T165: FOR ABN DIS
A166: A | B166: =IF(C166="","",VLOOKUP(C166,$AW$6:$AX$17,2,FALSE)) -> 1,3 | C166: DORANGEON Gabriel | I166: 73 | J166: A | K166: =IF(L166="","",VLOOKUP(L166,$AW$6:$AX$17,2,FALSE)) -> 1,3 | L166: DORANGEON Gabriel | R166: 73 | S166: =IF(ISTEXT(I166),1,0) -> 0 | T166: =IF(ISTEXT(R166),1,0) -> 0 | CA166: 4 | CB166: 4 | CC166: 6 | CD166: 3 | CE166: 3 | CF166: 5 | CG166: 5 | CH166: 4 | CI166: 3 | CJ166: 4 | CK166: 4 | CL166: 4 | CM166: 3 | CN166: 4 | CO166: 4 | CP166: 4 | CQ166: 3 | CR166: 6 | DA166: 4 | DB166: 4 | DC166: 5 | DD166: 2 | DE166: 4 | DF166: 4 | DG166: 4 | DH166: 4 | DI166: 4 | DJ166: 4 | DK166: 6 | DL166: 2 | DM166: 6 | DN166: 3 | DO166: 4 | DP166: 5 | DQ166: 3 | DR166: 5
A167: B | B167: 5,8 | C167: VANDOMMELLE Loic | I167: 73 | J167: B | K167: 11,5 | L167: DORANGEON Patrick | R167: 97 | S167: 0 | T167: 0 | CA167: 5 | CB167: 4 | CC167: 5 | CD167: 3 | CE167: 4 | CF167: 4 | CG167: 4 | CH167: 4 | CI167: 3 | CJ167: 4 | CK167: 4 | CL167: 3 | CM167: 6 | CN167: 4 | CO167: 4 | CP167: 3 | CQ167: 4 | CR167: 5 | DA167: 5 | DB167: 5 | DC167: 8 | DD167: 4 | DE167: 5 | DF167: 8 | DG167: 5 | DH167: 5 | DI167: 5 | DJ167: 4 | DK167: 5 | DL167: 5 | DM167: 8 | DN167: 6 | DO167: 4 | DP167: 6 | DQ167: 3 | DR167: 6
A168: C | B168: 6,4 | C168: BOUCHERON Philippe | I168: 91 | J168: C | K168: 6,4 | L168: BOUCHERON Philippe | R168: 89 | S168: 0 | T168: 0 | CA168: 4 | CB168: 5 | CC168: 7 | CD168: 6 | CE168: 5 | CF168: 7 | CG168: 4 | CH168: 5 | CI168: 4 | CJ168: 5 | CK168: 5 | CL168: 4 | CM168: 4 | CN168: 6 | CO168: 7 | CP168: 4 | CQ168: 3 | CR168: 6 | DA168: 4 | DB168: 7 | DC168: 6 | DD168: 3 | DE168: 6 | DF168: 7 | DG168: 4 | DH168: 5 | DI168: 3 | DJ168: 6 | DK168: 5 | DL168: 4 | DM168: 5 | DN168: 5 | DO168: 3 | DP168: 6 | DQ168: 3 | DR168: 7
A169: D | B169: 6,7 | C169: MARIAU Victor | I169: 94 | J169: D | K169: 6,7 | L169: MARIAU Victor | R169: 90 | S169: 0 | T169: 0 | CA169: 3 | CB169: 6 | CC169: 6 | CD169: 3 | CE169: 7 | CF169: 6 | CG169: 5 | CH169: 6 | CI169: 4 | CJ169: 5 | CK169: 6 | CL169: 5 | CM169: 6 | CN169: 4 | CO169: 10 | CP169: 4 | CQ169: 3 | CR169: 5 | DA169: 8 | DB169: 4 | DC169: 5 | DD169: 3 | DE169: 6 | DF169: 6 | DG169: 5 | DH169: 6 | DI169: 3 | DJ169: 5 | DK169: 4 | DL169: 8 | DM169: 6 | DN169: 3 | DO169: 5 | DP169: 5 | DQ169: 3 | DR169: 5
A170: E | B170: 11 | C170: BRAJARD Fabrice | I170: 104 | J170: E | S170: 0 | T170: 0 | CA170: 6 | CB170: 6 | CC170: 6 | CD170: 4 | CE170: 6 | CF170: 7 | CG170: 5 | CH170: 4 | CI170: 3 | CJ170: 6 | CK170: 6 | CL170: 8 | CM170: 7 | CN170: 5 | CO170: 7 | CP170: 6 | CQ170: 4 | CR170: 8 | DA170: 5 | DB170: 6 | DC170: 6 | DD170: 3 | DE170: 5 | DF170: 6 | DG170: 6 | DH170: 5 | DI170: 7 | DJ170: 5 | DK170: 5 | DL170: 4 | DM170: 9 | DN170: 7 | DO170: 10 | DP170: 6 | DQ170: 5 | DR170: 6
A171: F | B171: 11,5 | C171: DORANGEON Patrick | I171: 98 | J171: F | S171: 0 | T171: 0 | CA171: 7 | CB171: 5 | CC171: 8 | CD171: 5 | CE171: 5 | CF171: 7 | CG171: 5 | CH171: 4 | CI171: 4 | CJ171: 5 | CK171: 5 | CL171: 3 | CM171: 7 | CN171: 5 | CO171: 3 | CP171: 8 | CQ171: 5 | CR171: 7
A173: =IF(SUM(R165:R171)>0,"Classement Final : ","Classement 1er jour : ") -> Classement Final : | D173: =IF(COUNT(I166:I171)<6,"",VLOOKUP(F164,'Cl.J1+Gen.'!$AH$11:$BL$34,31,FALSE)) -> 10 | E173: =IF(SUM(R166:R171)>0,"Total des 2 Tours: ","Total du Tour 1: ") -> Total des 2 Tours: | G173: =IF(OR(I173="DIS",R173="DIS"),"DIS",I173+R173) -> 681 | I173: =IF(S173>1,"DIS",IF(OR(S173=1,COUNTA(I166:I171)<6),SUM(I166:I171),SUM(I166:I171)-MAX(I166:I171))) -> 429 | R173: =IF(T173>1,"DIS",IF(T173=1,SUM(R166:R171),IF(COUNT(R166:R171)<$R$2,SUM(R166:R171),SUM(R166:R171)-MAX(R166:R171)))) -> 252 | S173: =SUM(S166:S171) -> 0 | T173: =SUM(T166:T171) -> 0
C175: Equipiers du club de : | F175: =Prepa!D41 -> ROCHERS SEVIGNE
B176: Ind | C176: Joueurs de la 1ère Journée | I176: Tour 1 | K176: Ind | L176: Joueurs de la 2ème Journée | R176: Tour 2 | S176: FOR ABN DIS | T176: FOR ABN DIS
A177: A | B177: =IF(C177="","",VLOOKUP(C177,$AY$6:$AZ$17,2,FALSE)) -> 4.8 | C177: PARRY Richard | I177: 81 | J177: A | K177: =IF(L177="","",VLOOKUP(L177,$AY$6:$AZ$17,2,FALSE)) -> 4.8 | L177: PARRY Richard | R177: 74 | S177: =IF(ISTEXT(I177),1,0) -> 0 | T177: =IF(ISTEXT(R177),1,0) -> 0 | CA177: 4 | CB177: 5 | CC177: 6 | CD177: 4 | CE177: 5 | CF177: 6 | CG177: 4 | CH177: 5 | CI177: 4 | CJ177: 4 | CK177: 4 | CL177: 3 | CM177: 6 | CN177: 4 | CO177: 5 | CP177: 4 | CQ177: 3 | CR177: 5 | DA177: 4 | DB177: 3 | DC177: 5 | DD177: 3 | DE177: 6 | DF177: 5 | DG177: 4 | DH177: 4 | DI177: 3 | DJ177: 4 | DK177: 4 | DL177: 3 | DM177: 5 | DN177: 5 | DO177: 4 | DP177: 5 | DQ177: 3 | DR177: 4
A178: B | B178: 9.7 | C178: OGER Bertrand | I178: 86 | J178: B | K178: 9.7 | L178: OGER Bertrand | R178: 88 | S178: 0 | T178: 0 | CA178: 5 | CB178: 5 | CC178: 6 | CD178: 5 | CE178: 4 | CF178: 5 | CG178: 4 | CH178: 5 | CI178: 3 | CJ178: 5 | CK178: 5 | CL178: 6 | CM178: 6 | CN178: 5 | CO178: 4 | CP178: 4 | CQ178: 3 | CR178: 6 | DA178: 5 | DB178: 5 | DC178: 7 | DD178: 4 | DE178: 6 | DF178: 6 | DG178: 4 | DH178: 5 | DI178: 4 | DJ178: 5 | DK178: 4 | DL178: 3 | DM178: 5 | DN178: 5 | DO178: 6 | DP178: 5 | DQ178: 3 | DR178: 6
A179: C | B179: 8 | C179: FANSHAWE Cliff | I179: 90 | J179: C | K179: 8 | L179: FANSHAWE Cliff | R179: 92 | S179: 0 | T179: 0 | CA179: 4 | CB179: 7 | CC179: 5 | CD179: 4 | CE179: 5 | CF179: 6 | CG179: 5 | CH179: 5 | CI179: 4 | CJ179: 5 | CK179: 5 | CL179: 5 | CM179: 4 | CN179: 5 | CO179: 7 | CP179: 4 | CQ179: 4 | CR179: 6 | DA179: 4 | DB179: 5 | DC179: 5 | DD179: 5 | DE179: 6 | DF179: 6 | DG179: 6 | DH179: 4 | DI179: 4 | DJ179: 5 | DK179: 5 | DL179: 3 | DM179: 6 | DN179: 5 | DO179: 9 | DP179: 4 | DQ179: 4 | DR179: 6
A180: D | B180: 11.2 | C180: CROIZEAN Jean Philippe | I180: 95 | J180: D | K180: 11.2 | L180: CROIZEAN Jean Philippe | R180: 81 | S180: 0 | T180: 0 | CA180: 4 | CB180: 5 | CC180: 6 | CD180: 4 | CE180: 5 | CF180: 7 | CG180: 5 | CH180: 4 | CI180: 4 | CJ180: 9 | CK180: 5 | CL180: 4 | CM180: 7 | CN180: 5 | CO180: 6 | CP180: 5 | CQ180: 4 | CR180: 6 | DA180: 4 | DB180: 4 | DC180: 5 | DD180: 3 | DE180: 5 | DF180: 6 | DG180: 4 | DH180: 7 | DI180: 3 | DJ180: 4 | DK180: 5 | DL180: 2 | DM180: 5 | DN180: 7 | DO180: 4 | DP180: 4 | DQ180: 3 | DR180: 6
A181: E | B181: 9 | C181: GONTIER Michael | I181: 88 | J181: E | S181: 0 | T181: 0 | CA181: 5 | CB181: 5 | CC181: 6 | CD181: 4 | CE181: 5 | CF181: 7 | CG181: 6 | CH181: 5 | CI181: 3 | CJ181: 5 | CK181: 7 | CL181: 4 | CM181: 5 | CN181: 4 | CO181: 4 | CP181: 5 | CQ181: 3 | CR181: 5 | DA181: 5 | DB181: 5 | DC181: 5 | DD181: 3 | DE181: 10 | DF181: 7 | DG181: 6 | DH181: 5 | DI181: 3 | DJ181: 6 | DK181: 4 | DL181: 5 | DM181: 6 | DN181: 8 | DO181: 5 | DP181: 7 | DQ181: 4 | DR181: 5
A182: F | B182: 18.6 | C182: WALLET Laurent | I182: ABN | J182: F | S182: 1 | T182: 0 | CA182: 0 | CB182: 0 | CC182: 0 | CD182: 0 | CE182: 0 | CF182: 0 | CG182: 0 | CH182: 0 | CI182: 0 | CJ182: 0 | CK182: 0 | CL182: 0 | CM182: 0 | CN182: 0 | CO182: 0 | CP182: 0 | CQ182: 0 | CR182: 0
A184: =IF(SUM(R176:R182)>0,"Classement Final : ","Classement 1er jour : ") -> Classement Final : | D184: =IF(COUNT(I177:I182)<6,"",VLOOKUP(F175,'Cl.J1+Gen.'!$AH$11:$BL$34,31,FALSE)) ->  | E184: =IF(SUM(R177:R182)>0,"Total des 2 Tours: ","Total du Tour 1: ") -> Total des 2 Tours: | G184: =IF(OR(I184="DIS",R184="DIS"),"DIS",I184+R184) -> 683 | I184: =IF(S184>1,"DIS",IF(OR(S184=1,COUNTA(I177:I182)<6),SUM(I177:I182),SUM(I177:I182)-MAX(I177:I182))) -> 440 | R184: =IF(T184>1,"DIS",IF(T184=1,SUM(R177:R182),IF(COUNT(R177:R182)<$R$2,SUM(R177:R182),SUM(R177:R182)-MAX(R177:R182)))) -> 243 | S184: =SUM(S177:S182) -> 1 | T184: =SUM(T177:T182) -> 0
C186: Equipiers du club de : | F186: =Prepa!D43 -> SABLE SOLESMES
B187: Ind | C187: Joueurs de la 1ère Journée | I187: Tour 1 | K187: Ind | L187: Joueurs de la 2ème Journée | R187: Tour 2 | S187: FOR ABN DIS | T187: FOR ABN DIS
A188: A | B188: =IF(C188="","",VLOOKUP(C188,$BA$6:$BB$17,2,FALSE)) -> 0.3 | C188: MOREAU Romain | I188: 77 | J188: A | K188: =IF(L188="","",VLOOKUP(L188,$BA$6:$BB$17,2,FALSE)) -> 0.3 | L188: MOREAU Romain | R188: 78 | S188: =IF(ISTEXT(I188),1,0) -> 0 | T188: =IF(ISTEXT(R188),1,0) -> 0 | CA188: 5 | CB188: 4 | CC188: 5 | CD188: 3 | CE188: 5 | CF188: 5 | CG188: 5 | CH188: 4 | CI188: 4 | CJ188: 5 | CK188: 4 | CL188: 3 | CM188: 5 | CN188: 5 | CO188: 3 | CP188: 4 | CQ188: 3 | CR188: 5 | DA188: 4 | DB188: 4 | DC188: 5 | DD188: 3 | DE188: 4 | DF188: 5 | DG188: 4 | DH188: 4 | DI188: 3 | DJ188: 4 | DK188: 4 | DL188: 4 | DM188: 6 | DN188: 6 | DO188: 4 | DP188: 4 | DQ188: 4 | DR188: 6
A189: B | B189: 6.3 | C189: POTTIER Fabien | I189: 82 | J189: B | K189: 6.3 | L189: POTTIER Fabien | R189: 80 | S189: 0 | T189: 0 | CA189: 4 | CB189: 4 | CC189: 5 | CD189: 5 | CE189: 5 | CF189: 6 | CG189: 4 | CH189: 6 | CI189: 3 | CJ189: 5 | CK189: 4 | CL189: 3 | CM189: 5 | CN189: 5 | CO189: 4 | CP189: 4 | CQ189: 4 | CR189: 6 | DA189: 5 | DB189: 4 | DC189: 5 | DD189: 4 | DE189: 5 | DF189: 7 | DG189: 4 | DH189: 5 | DI189: 2 | DJ189: 4 | DK189: 4 | DL189: 4 | DM189: 5 | DN189: 5 | DO189: 5 | DP189: 4 | DQ189: 3 | DR189: 5
A190: C | B190: 3.5 | C190: OBIANG Jean De Dieu | I190: 75 | J190: C | K190: 4.1 | L190: RENARD Jérôme | R190: 77 | S190: 0 | T190: 0 | CA190: 4 | CB190: 4 | CC190: 6 | CD190: 3 | CE190: 5 | CF190: 5 | CG190: 5 | CH190: 3 | CI190: 4 | CJ190: 6 | CK190: 4 | CL190: 2 | CM190: 5 | CN190: 3 | CO190: 4 | CP190: 4 | CQ190: 3 | CR190: 5 | DA190: 4 | DB190: 4 | DC190: 6 | DD190: 3 | DE190: 4 | DF190: 6 | DG190: 5 | DH190: 5 | DI190: 4 | DJ190: 4 | DK190: 4 | DL190: 3 | DM190: 5 | DN190: 4 | DO190: 3 | DP190: 5 | DQ190: 3 | DR190: 5
A191: D | B191: 4.1 | C191: RENARD Jérôme | I191: 78 | J191: D | K191: 3.5 | L191: OBIANG Jean De Dieu | R191: 81 | S191: 0 | T191: 0 | CA191: 3 | CB191: 4 | CC191: 5 | CD191: 2 | CE191: 4 | CF191: 5 | CG191: 4 | CH191: 4 | CI191: 4 | CJ191: 3 | CK191: 5 | CL191: 6 | CM191: 6 | CN191: 5 | CO191: 4 | CP191: 6 | CQ191: 3 | CR191: 5 | DA191: 5 | DB191: 5 | DC191: 5 | DD191: 4 | DE191: 4 | DF191: 5 | DG191: 5 | DH191: 5 | DI191: 4 | DJ191: 6 | DK191: 4 | DL191: 3 | DM191: 6 | DN191: 4 | DO191: 4 | DP191: 3 | DQ191: 3 | DR191: 6
A192: E | B192: 3.8 | C192: HOUDAYER Jean-Marc | I192: 92 | J192: E | S192: 0 | T192: 0 | CA192: 5 | CB192: 6 | CC192: 5 | CD192: 6 | CE192: 5 | CF192: 6 | CG192: 4 | CH192: 4 | CI192: 3 | CJ192: 6 | CK192: 7 | CL192: 3 | CM192: 5 | CN192: 5 | CO192: 6 | CP192: 5 | CQ192: 4 | CR192: 7 | DA192: 3 | DB192: 4 | DC192: 5 | DD192: 3 | DE192: 4 | DF192: 6 | DG192: 5 | DH192: 4 | DI192: 3 | DJ192: 4 | DK192: 5 | DL192: 3 | DM192: 4 | DN192: 4 | DO192: 4 | DP192: 4 | DQ192: 3 | DR192: 6
A193: F | B193: 4.8 | C193: DEZE Christophe | I193: 77 | J193: F | S193: 0 | T193: 0 | CA193: 5 | CB193: 5 | CC193: 5 | CD193: 5 | CE193: 3 | CF193: 5 | CG193: 5 | CH193: 4 | CI193: 3 | CJ193: 4 | CK193: 4 | CL193: 3 | CM193: 6 | CN193: 4 | CO193: 3 | CP193: 5 | CQ193: 3 | CR193: 5
A195: =IF(SUM(R187:R193)>0,"Classement Final : ","Classement 1er jour : ") -> Classement Final : | D195: =IF(COUNT(I188:I193)<6,"",VLOOKUP(F186,'Cl.J1+Gen.'!$AH$11:$BL$34,31,FALSE)) -> 2 | E195: =IF(SUM(R188:R193)>0,"Total des 2 Tours: ","Total du Tour 1: ") -> Total des 2 Tours: | G195: =IF(OR(I195="DIS",R195="DIS"),"DIS",I195+R195) -> 624 | I195: =IF(S195>1,"DIS",IF(OR(S195=1,COUNTA(I188:I193)<6),SUM(I188:I193),SUM(I188:I193)-MAX(I188:I193))) -> 389 | R195: =IF(T195>1,"DIS",IF(T195=1,SUM(R188:R193),IF(COUNT(R188:R193)<$R$2,SUM(R188:R193),SUM(R188:R193)-MAX(R188:R193)))) -> 235 | S195: =SUM(S188:S193) -> 0 | T195: =SUM(T188:T193) -> 0
C197: Equipiers du club de : | F197: =Prepa!D45 -> SABLES D'OLONNE
B198: Ind | C198: Joueurs de la 1ère Journée | I198: Tour 1 | K198: Ind | L198: Joueurs de la 2ème Journée | R198: Tour 2 | S198: FOR ABN DIS | T198: FOR ABN DIS
A199: A | B199: =IF(C199="","",VLOOKUP(C199,$BC$6:$BD$17,2,FALSE)) -> 5.3 | C199: BAUD Raphaël | I199: 86 | J199: A | K199: =IF(L199="","",VLOOKUP(L199,$BC$6:$BD$17,2,FALSE)) -> 5.3 | L199: BAUD Raphaël | R199: 81 | S199: =IF(ISTEXT(I199),1,0) -> 0 | T199: =IF(ISTEXT(R199),1,0) -> 0 | CA199: 4 | CB199: 5 | CC199: 6 | CD199: 3 | CE199: 4 | CF199: 5 | CG199: 6 | CH199: 5 | CI199: 3 | CJ199: 5 | CK199: 5 | CL199: 5 | CM199: 8 | CN199: 6 | CO199: 4 | CP199: 4 | CQ199: 4 | CR199: 4 | DA199: 4 | DB199: 5 | DC199: 5 | DD199: 3 | DE199: 4 | DF199: 6 | DG199: 4 | DH199: 5 | DI199: 4 | DJ199: 5 | DK199: 4 | DL199: 3 | DM199: 6 | DN199: 4 | DO199: 6 | DP199: 4 | DQ199: 3 | DR199: 6
A200: B | B200: 5.3 | C200: FONFREIDE Vincent | I200: 95 | J200: B | K200: 5.3 | L200: FONFREIDE Vincent | R200: 90 | S200: 0 | T200: 0 | CA200: 6 | CB200: 4 | CC200: 5 | CD200: 6 | CE200: 5 | CF200: 6 | CG200: 5 | CH200: 5 | CI200: 4 | CJ200: 5 | CK200: 5 | CL200: 4 | CM200: 9 | CN200: 6 | CO200: 4 | CP200: 4 | CQ200: 5 | CR200: 7 | DA200: 4 | DB200: 7 | DC200: 6 | DD200: 3 | DE200: 4 | DF200: 6 | DG200: 5 | DH200: 6 | DI200: 3 | DJ200: 4 | DK200: 5 | DL200: 6 | DM200: 5 | DN200: 4 | DO200: 6 | DP200: 5 | DQ200: 5 | DR200: 6
A201: C | B201: 3.1 | C201: RIHANI Habib | I201: 84 | J201: C | K201: 2.6 | L201: CERVERA Yann | R201: 84 | S201: 0 | T201: 0 | CA201: 5 | CB201: 4 | CC201: 5 | CD201: 5 | CE201: 5 | CF201: 5 | CG201: 4 | CH201: 5 | CI201: 2 | CJ201: 4 | CK201: 5 | CL201: 7 | CM201: 8 | CN201: 3 | CO201: 4 | CP201: 4 | CQ201: 4 | CR201: 5 | DA201: 4 | DB201: 4 | DC201: 5 | DD201: 4 | DE201: 5 | DF201: 6 | DG201: 5 | DH201: 4 | DI201: 4 | DJ201: 4 | DK201: 4 | DL201: 4 | DM201: 6 | DN201: 5 | DO201: 4 | DP201: 6 | DQ201: 4 | DR201: 6
A202: D | B202: 8.3 | C202: DELABAUDINIERE Claude | I202: 98 | J202: D | K202: 7.8 | L202: TESSE Guillaume | R202: 96 | S202: 0 | T202: 0 | CA202: 5 | CB202: 4 | CC202: 6 | CD202: 4 | CE202: 5 | CF202: 7 | CG202: 5 | CH202: 5 | CI202: 6 | CJ202: 5 | CK202: 5 | CL202: 4 | CM202: 8 | CN202: 6 | CO202: 6 | CP202: 5 | CQ202: 4 | CR202: 8 | DA202: 4 | DB202: 4 | DC202: 5 | DD202: 4 | DE202: 4 | DF202: 7 | DG202: 5 | DH202: 4 | DI202: 11 | DJ202: 7 | DK202: 5 | DL202: 4 | DM202: 6 | DN202: 5 | DO202: 5 | DP202: 6 | DQ202: 5 | DR202: 5
A203: E | B203: 7.5 | C203: SOMBRET Laurent | I203: 99 | J203: E | S203: 0 | T203: 0 | CA203: 6 | CB203: 6 | CC203: 5 | CD203: 5 | CE203: 6 | CF203: 6 | CG203: 4 | CH203: 6 | CI203: 3 | CJ203: 5 | CK203: 5 | CL203: 6 | CM203: 5 | CN203: 6 | CO203: 9 | CP203: 4 | CQ203: 5 | CR203: 7 | DA203: 5 | DB203: 3 | DC203: 6 | DD203: 5 | DE203: 6 | DF203: 6 | DG203: 6 | DH203: 5 | DI203: 4 | DJ203: 5 | DK203: 5 | DL203: 3 | DM203: 5 | DN203: 6 | DO203: 8 | DP203: 4 | DQ203: 4 | DR203: 5
A204: F | B204: 2.6 | C204: CERVERA Yann | I204: 83 | J204: F | S204: 0 | T204: 0 | CA204: 4 | CB204: 5 | CC204: 5 | CD204: 4 | CE204: 6 | CF204: 6 | CG204: 5 | CH204: 5 | CI204: 3 | CJ204: 5 | CK204: 4 | CL204: 3 | CM204: 6 | CN204: 4 | CO204: 4 | CP204: 4 | CQ204: 3 | CR204: 7
A206: =IF(SUM(R198:R204)>0,"Classement Final : ","Classement 1er jour : ") -> Classement Final : | D206: =IF(COUNT(I199:I204)<6,"",VLOOKUP(F197,'Cl.J1+Gen.'!$AH$11:$BL$34,31,FALSE)) -> 16 | E206: =IF(SUM(R199:R204)>0,"Total des 2 Tours: ","Total du Tour 1: ") -> Total des 2 Tours: | G206: =IF(OR(I206="DIS",R206="DIS"),"DIS",I206+R206) -> 701 | I206: =IF(S206>1,"DIS",IF(OR(S206=1,COUNTA(I199:I204)<6),SUM(I199:I204),SUM(I199:I204)-MAX(I199:I204))) -> 446 | R206: =IF(T206>1,"DIS",IF(T206=1,SUM(R199:R204),IF(COUNT(R199:R204)<$R$2,SUM(R199:R204),SUM(R199:R204)-MAX(R199:R204)))) -> 255 | S206: =SUM(S199:S204) -> 0 | T206: =SUM(T199:T204) -> 0
C208: Equipiers du club de : | F208: =Prepa!D47 -> SAINT CAST
B209: Ind | C209: Joueurs de la 1ère Journée | I209: Tour 1 | K209: Ind | L209: Joueurs de la 2ème Journée | R209: Tour 2 | S209: FOR ABN DIS | T209: FOR ABN DIS
A210: A | B210: =IF(C210="","",VLOOKUP(C210,$BE$6:$BF$17,2,FALSE)) -> -0.1 | C210: LEFEUVRE Philippe | I210: 77 | J210: A | K210: =IF(L210="","",VLOOKUP(L210,$BE$6:$BF$17,2,FALSE)) -> -0.1 | L210: LEFEUVRE Philippe | R210: 73 | S210: =IF(ISTEXT(I210),1,0) -> 0 | T210: =IF(ISTEXT(R210),1,0) -> 0 | CA210: 4 | CB210: 4 | CC210: 6 | CD210: 4 | CE210: 4 | CF210: 5 | CG210: 5 | CH210: 4 | CI210: 4 | CJ210: 4 | CK210: 4 | CL210: 4 | CM210: 5 | CN210: 4 | CO210: 4 | CP210: 4 | CQ210: 3 | CR210: 5 | DA210: 5 | DB210: 4 | DC210: 6 | DD210: 3 | DE210: 4 | DF210: 5 | DG210: 4 | DH210: 4 | DI210: 3 | DJ210: 4 | DK210: 4 | DL210: 2 | DM210: 5 | DN210: 5 | DO210: 4 | DP210: 3 | DQ210: 3 | DR210: 5
A211: B | B211: 5.1 | C211: ESCALONA Jonathan | I211: 80 | J211: B | K211: 5.1 | L211: ESCALONA Jonathan | R211: 84 | S211: 0 | T211: 0 | CA211: 4 | CB211: 4 | CC211: 5 | CD211: 4 | CE211: 4 | CF211: 5 | CG211: 5 | CH211: 4 | CI211: 4 | CJ211: 4 | CK211: 4 | CL211: 4 | CM211: 5 | CN211: 3 | CO211: 8 | CP211: 3 | CQ211: 3 | CR211: 7 | DA211: 4 | DB211: 5 | DC211: 5 | DD211: 3 | DE211: 5 | DF211: 5 | DG211: 5 | DH211: 5 | DI211: 4 | DJ211: 5 | DK211: 5 | DL211: 5 | DM211: 5 | DN211: 4 | DO211: 4 | DP211: 5 | DQ211: 4 | DR211: 6
A212: C | B212: 0.8 | C212: LETZELTER Frédéric | I212: 82 | J212: C | K212: 0.8 | L212: LETZELTER Frédéric | R212: 85 | S212: 0 | T212: 0 | CA212: 6 | CB212: 5 | CC212: 6 | CD212: 3 | CE212: 4 | CF212: 6 | CG212: 4 | CH212: 4 | CI212: 4 | CJ212: 4 | CK212: 4 | CL212: 3 | CM212: 7 | CN212: 5 | CO212: 6 | CP212: 4 | CQ212: 3 | CR212: 4 | DA212: 4 | DB212: 4 | DC212: 5 | DD212: 4 | DE212: 4 | DF212: 6 | DG212: 5 | DH212: 5 | DI212: 4 | DJ212: 5 | DK212: 4 | DL212: 5 | DM212: 7 | DN212: 6 | DO212: 4 | DP212: 4 | DQ212: 3 | DR212: 6
A213: D | B213: 4.8 | C213: BESNOUX Alain | I213: 91 | J213: D | K213: 4.8 | L213: BESNOUX Alain | R213: 95 | S213: 0 | T213: 0 | CA213: 4 | CB213: 4 | CC213: 5 | CD213: 3 | CE213: 6 | CF213: 6 | CG213: 6 | CH213: 5 | CI213: 4 | CJ213: 6 | CK213: 5 | CL213: 6 | CM213: 6 | CN213: 5 | CO213: 5 | CP213: 3 | CQ213: 5 | CR213: 7 | DA213: 5 | DB213: 5 | DC213: 7 | DD213: 3 | DE213: 5 | DF213: 7 | DG213: 5 | DH213: 4 | DI213: 4 | DJ213: 5 | DK213: 5 | DL213: 5 | DM213: 6 | DN213: 6 | DO213: 8 | DP213: 5 | DQ213: 4 | DR213: 6
A214: E | B214: 5.6 | C214: LAURENT Antoine | I214: 83 | J214: E | S214: 0 | T214: 0 | CA214: 4 | CB214: 4 | CC214: 6 | CD214: 3 | CE214: 4 | CF214: 5 | CG214: 4 | CH214: 5 | CI214: 4 | CJ214: 4 | CK214: 5 | CL214: 4 | CM214: 5 | CN214: 5 | CO214: 6 | CP214: 4 | CQ214: 5 | CR214: 6
A215: F | B215: 10.3 | C215: LEVAVASSEUR Sylvain | I215: 97 | J215: F | S215: 0 | T215: 0 | CA215: 4 | CB215: 5 | CC215: 7 | CD215: 4 | CE215: 6 | CF215: 7 | CG215: 5 | CH215: 8 | CI215: 4 | CJ215: 7 | CK215: 4 | CL215: 3 | CM215: 5 | CN215: 7 | CO215: 6 | CP215: 6 | CQ215: 3 | CR215: 6
A217: =IF(SUM(R209:R215)>0,"Classement Final : ","Classement 1er jour : ") -> Classement Final : | D217: =IF(COUNT(I210:I215)<6,"",VLOOKUP(F208,'Cl.J1+Gen.'!$AH$11:$BL$34,31,FALSE)) -> 7 | E217: =IF(SUM(R210:R215)>0,"Total des 2 Tours: ","Total du Tour 1: ") -> Total des 2 Tours: | G217: =IF(OR(I217="DIS",R217="DIS"),"DIS",I217+R217) -> 655 | I217: =IF(S217>1,"DIS",IF(OR(S217=1,COUNTA(I210:I215)<6),SUM(I210:I215),SUM(I210:I215)-MAX(I210:I215))) -> 413 | R217: =IF(T217>1,"DIS",IF(T217=1,SUM(R210:R215),IF(COUNT(R210:R215)<$R$2,SUM(R210:R215),SUM(R210:R215)-MAX(R210:R215)))) -> 242 | S217: =SUM(S210:S215) -> 0 | T217: =SUM(T210:T215) -> 0
C219: Equipiers du club de : | F219: =Prepa!D49 -> SAINT-BRIEUC
B220: Ind | C220: Joueurs de la 1ère Journée | I220: Tour 1 | K220: Ind | L220: Joueurs de la 2ème Journée | R220: Tour 2 | S220: FOR ABN DIS | T220: FOR ABN DIS
A221: A | B221: =IF(C221="","",VLOOKUP(C221,$BG$6:$BH$17,2,FALSE)) -> 10.2 | C221: THETIOT Samuel | I221: 101 | J221: A | K221: =IF(L221="","",VLOOKUP(L221,$BG$6:$BH$17,2,FALSE)) -> 11.5 | L221: BULLOCK Georges | R221: 103 | S221: =IF(ISTEXT(I221),1,0) -> 0 | T221: =IF(ISTEXT(R221),1,0) -> 0 | CA221: 7 | CB221: 4 | CC221: 8 | CD221: 3 | CE221: 8 | CF221: 8 | CG221: 6 | CH221: 6 | CI221: 5 | CJ221: 6 | CK221: 5 | CL221: 3 | CM221: 5 | CN221: 4 | CO221: 6 | CP221: 6 | CQ221: 4 | CR221: 7 | DA221: 5 | DB221: 9 | DC221: 5 | DD221: 5 | DE221: 7 | DF221: 7 | DG221: 6 | DH221: 4 | DI221: 4 | DJ221: 5 | DK221: 5 | DL221: 3 | DM221: 6 | DN221: 6 | DO221: 7 | DP221: 5 | DQ221: 8 | DR221: 6
A222: B | B222: 7.6 | C222: SENGER Nicolas | I222: 90 | J222: B | K222: 7.6 | L222: SENGER Nicolas | R222: 83 | S222: 0 | T222: 0 | CA222: 4 | CB222: 5 | CC222: 5 | CD222: 3 | CE222: 6 | CF222: 8 | CG222: 5 | CH222: 6 | CI222: 3 | CJ222: 5 | CK222: 4 | CL222: 3 | CM222: 6 | CN222: 5 | CO222: 4 | CP222: 5 | CQ222: 4 | CR222: 9 | DA222: 7 | DB222: 5 | DC222: 6 | DD222: 3 | DE222: 5 | DF222: 5 | DG222: 5 | DH222: 4 | DI222: 4 | DJ222: 4 | DK222: 4 | DL222: 3 | DM222: 6 | DN222: 5 | DO222: 4 | DP222: 3 | DQ222: 4 | DR222: 6
A223: C | B223: 13.2 | C223: SOURDRILLE Kevin | I223: 100 | J223: C | K223: 1.5 | L223: ROUAULT Emmanuel | R223: 83 | S223: 0 | T223: 0 | CA223: 6 | CB223: 6 | CC223: 6 | CD223: 4 | CE223: 5 | CF223: 7 | CG223: 6 | CH223: 5 | CI223: 3 | CJ223: 5 | CK223: 7 | CL223: 3 | CM223: 6 | CN223: 8 | CO223: 6 | CP223: 6 | CQ223: 3 | CR223: 8 | DA223: 5 | DB223: 5 | DC223: 5 | DD223: 4 | DE223: 4 | DF223: 6 | DG223: 5 | DH223: 4 | DI223: 2 | DJ223: 4 | DK223: 5 | DL223: 4 | DM223: 6 | DN223: 5 | DO223: 6 | DP223: 4 | DQ223: 3 | DR223: 6
A224: D | B224: 9.4 | C224: DURROUX Jean-Christophe | I224: 97 | J224: D | K224: 7 | L224: MARTEL Olivier | R224: 87 | S224: 0 | T224: 0 | CA224: 4 | CB224: 5 | CC224: 8 | CD224: 7 | CE224: 6 | CF224: 7 | CG224: 5 | CH224: 5 | CI224: 4 | CJ224: 3 | CK224: 6 | CL224: 6 | CM224: 5 | CN224: 6 | CO224: 5 | CP224: 5 | CQ224: 4 | CR224: 6 | DA224: 4 | DB224: 4 | DC224: 5 | DD224: 4 | DE224: 4 | DF224: 6 | DG224: 6 | DH224: 5 | DI224: 4 | DJ224: 5 | DK224: 5 | DL224: 7 | DM224: 4 | DN224: 6 | DO224: 3 | DP224: 5 | DQ224: 3 | DR224: 7
A225: E | B225: 1.5 | C225: ROUAULT Emmanuel | I225: 86 | J225: E | S225: 0 | T225: 0 | CA225: 4 | CB225: 3 | CC225: 8 | CD225: 4 | CE225: 5 | CF225: 7 | CG225: 4 | CH225: 5 | CI225: 3 | CJ225: 4 | CK225: 4 | CL225: 4 | CM225: 7 | CN225: 4 | CO225: 6 | CP225: 5 | CQ225: 4 | CR225: 5
A226: F | B226: 7 | C226: MARTEL Olivier | I226: 87 | J226: F | S226: 0 | T226: 0 | CA226: 4 | CB226: 4 | CC226: 5 | CD226: 6 | CE226: 5 | CF226: 6 | CG226: 5 | CH226: 5 | CI226: 3 | CJ226: 5 | CK226: 4 | CL226: 4 | CM226: 5 | CN226: 8 | CO226: 5 | CP226: 4 | CQ226: 4 | CR226: 5
A228: =IF(SUM(R220:R226)>0,"Classement Final : ","Classement 1er jour : ") -> Classement Final : | D228: =IF(COUNT(I221:I226)<6,"",VLOOKUP(F219,'Cl.J1+Gen.'!$AH$11:$BL$34,31,FALSE)) -> 17 | E228: =IF(SUM(R221:R226)>0,"Total des 2 Tours: ","Total du Tour 1: ") -> Total des 2 Tours: | G228: =IF(OR(I228="DIS",R228="DIS"),"DIS",I228+R228) -> 713 | I228: =IF(S228>1,"DIS",IF(OR(S228=1,COUNTA(I221:I226)<6),SUM(I221:I226),SUM(I221:I226)-MAX(I221:I226))) -> 460 | R228: =IF(T228>1,"DIS",IF(T228=1,SUM(R221:R226),IF(COUNT(R221:R226)<$R$2,SUM(R221:R226),SUM(R221:R226)-MAX(R221:R226)))) -> 253 | S228: =SUM(S221:S226) -> 0 | T228: =SUM(T221:T226) -> 0
C230: Equipiers du club de : | F230: =Prepa!D51 -> SARGE/LE MANS
B231: Ind | C231: Joueurs de la 1ère Journée | I231: Tour 1 | K231: Ind | L231: Joueurs de la 2ème Journée | R231: Tour 2 | S231: FOR ABN DIS | T231: FOR ABN DIS
A232: A | B232: =IF(C232="","",VLOOKUP(C232,$BI$6:$BJ$17,2,FALSE)) -> 9.5 | C232: LAUDIERE Cédric | I232: 82 | J232: A | K232: =IF(L232="","",VLOOKUP(L232,$BI$6:$BJ$17,2,FALSE)) -> 9.5 | L232: LAUDIERE Cédric | R232: 86 | S232: =IF(ISTEXT(I232),1,0) -> 0 | T232: =IF(ISTEXT(R232),1,0) -> 0 | CA232: 4 | CB232: 4 | CC232: 5 | CD232: 4 | CE232: 4 | CF232: 6 | CG232: 4 | CH232: 6 | CI232: 3 | CJ232: 4 | CK232: 5 | CL232: 3 | CM232: 4 | CN232: 5 | CO232: 6 | CP232: 5 | CQ232: 3 | CR232: 7 | DA232: 3 | DB232: 4 | DC232: 5 | DD232: 4 | DE232: 7 | DF232: 5 | DG232: 5 | DH232: 4 | DI232: 4 | DJ232: 5 | DK232: 7 | DL232: 5 | DM232: 6 | DN232: 5 | DO232: 4 | DP232: 4 | DQ232: 3 | DR232: 6
A233: B | B233: 4.9 | C233: MIRATON Vladimir | I233: 79 | J233: B | K233: 4.9 | L233: MIRATON Vladimir | R233: 81 | S233: 0 | T233: 0 | CA233: 4 | CB233: 5 | CC233: 6 | CD233: 2 | CE233: 4 | CF233: 4 | CG233: 5 | CH233: 6 | CI233: 4 | CJ233: 3 | CK233: 7 | CL233: 3 | CM233: 5 | CN233: 4 | CO233: 6 | CP233: 3 | CQ233: 2 | CR233: 6 | DA233: 5 | DB233: 5 | DC233: 6 | DD233: 2 | DE233: 4 | DF233: 5 | DG233: 5 | DH233: 5 | DI233: 3 | DJ233: 4 | DK233: 5 | DL233: 4 | DM233: 5 | DN233: 4 | DO233: 5 | DP233: 4 | DQ233: 4 | DR233: 6
A234: C | B234: 6.7 | C234: PECQUENARD Sébastien | I234: 81 | J234: C | K234: 6.7 | L234: PECQUENARD Sébastien | R234: 82 | S234: 0 | T234: 0 | CA234: 3 | CB234: 4 | CC234: 6 | CD234: 4 | CE234: 5 | CF234: 5 | CG234: 4 | CH234: 5 | CI234: 4 | CJ234: 5 | CK234: 5 | CL234: 4 | CM234: 4 | CN234: 5 | CO234: 4 | CP234: 4 | CQ234: 4 | CR234: 6 | DA234: 3 | DB234: 5 | DC234: 5 | DD234: 4 | DE234: 5 | DF234: 5 | DG234: 4 | DH234: 4 | DI234: 4 | DJ234: 6 | DK234: 4 | DL234: 4 | DM234: 5 | DN234: 4 | DO234: 6 | DP234: 4 | DQ234: 4 | DR234: 6
A235: D | B235: 6.8 | C235: PELTIER Jean-Philippe | I235: 79 | J235: D | K235: 6.8 | L235: PELTIER Jean-Philippe | R235: 90 | S235: 0 | T235: 0 | CA235: 3 | CB235: 5 | CC235: 5 | CD235: 3 | CE235: 5 | CF235: 7 | CG235: 4 | CH235: 4 | CI235: 5 | CJ235: 4 | CK235: 4 | CL235: 4 | CM235: 4 | CN235: 4 | CO235: 4 | CP235: 5 | CQ235: 3 | CR235: 6 | DA235: 5 | DB235: 5 | DC235: 5 | DD235: 4 | DE235: 6 | DF235: 5 | DG235: 5 | DH235: 6 | DI235: 5 | DJ235: 4 | DK235: 5 | DL235: 2 | DM235: 6 | DN235: 4 | DO235: 6 | DP235: 5 | DQ235: 5 | DR235: 7
A236: E | B236: 10.6 | C236: BARRIQUAULT Laurent | I236: 90 | J236: E | S236: 0 | T236: 0 | CA236: 6 | CB236: 4 | CC236: 6 | CD236: 6 | CE236: 4 | CF236: 5 | CG236: 4 | CH236: 4 | CI236: 3 | CJ236: 5 | CK236: 5 | CL236: 6 | CM236: 5 | CN236: 5 | CO236: 6 | CP236: 5 | CQ236: 4 | CR236: 7
A237: F | B237: 7 | C237: ISAAC Willy | I237: 81 | J237: F | S237: 0 | T237: 0 | CA237: 4 | CB237: 4 | CC237: 6 | CD237: 3 | CE237: 5 | CF237: 4 | CG237: 4 | CH237: 6 | CI237: 3 | CJ237: 6 | CK237: 5 | CL237: 5 | CM237: 5 | CN237: 5 | CO237: 5 | CP237: 3 | CQ237: 3 | CR237: 5
A239: =IF(SUM(R231:R237)>0,"Classement Final : ","Classement 1er jour : ") -> Classement Final : | D239: =IF(COUNT(I232:I237)<6,"",VLOOKUP(F230,'Cl.J1+Gen.'!$AH$11:$BL$34,31,FALSE)) -> 6 | E239: =IF(SUM(R232:R237)>0,"Total des 2 Tours: ","Total du Tour 1: ") -> Total des 2 Tours: | G239: =IF(OR(I239="DIS",R239="DIS"),"DIS",I239+R239) -> 651 | I239: =IF(S239>1,"DIS",IF(OR(S239=1,COUNTA(I232:I237)<6),SUM(I232:I237),SUM(I232:I237)-MAX(I232:I237))) -> 402 | R239: =IF(T239>1,"DIS",IF(T239=1,SUM(R232:R237),IF(COUNT(R232:R237)<$R$2,SUM(R232:R237),SUM(R232:R237)-MAX(R232:R237)))) -> 249 | S239: =SUM(S232:S237) -> 0 | T239: =SUM(T232:T237) -> 0
C241: Equipiers du club de : | F241: =Prepa!D53 -> VAL DE L'INDRE
B242: Ind | C242: Joueurs de la 1ère Journée | I242: Tour 1 | K242: Ind | L242: Joueurs de la 2ème Journée | R242: Tour 2 | S242: FOR ABN DIS | T242: FOR ABN DIS
A243: A | B243: =IF(C243="","",VLOOKUP(C243,$BK$6:$BL$17,2,FALSE)) ->  | J243: A | K243: =IF(L243="","",VLOOKUP(L243,$BK$6:$BL$17,2,FALSE)) ->  | S243: =IF(ISTEXT(I243),1,0) -> 0 | T243: =IF(ISTEXT(R243),1,0) -> 0
A244: B | J244: B | S244: 0 | T244: 0
... 23 more rows

Sheet Cl.J1+Gen.
A1: CETTE FEUILLE SE REMPLIT AUTOMATIQUEMENT AVEC LES INFORMATIONS DES FEUILLES "Tour1" ET "Tour2".VOUS POUVEZ, SI NECESSAIRE, FAIRE APPARAITRE OU MASQUER LES DEPARTAGES EN CLIQUANT SUR LES BOUTONS CONCERNES | AH1: =Prepa!E8 -> 2
C2: =Prepa!D2 -> INTERCLUBS PROMOTION Mid Amateurs MESSIEURS
C3: =Prepa!D4 -> Ligue de
C5: =Prepa!D6 -> Date Golf de …
C7: TABLEAU DE RESULTATS
S8: =Donnees!$R$2 -> 4
A9: Rang | B9: CLUB | D9: JOUEURS 1er JOUR | J9: Score Jour 1 | K9: DIS | L9: JOUEURS 2ème JOUR | R9: Score Jour 2 | S9: DIS | T9: TOTAL | U9: 1er Dép. | V9: 2ème Dép. | W9: 3ème Dép. | X9: 4ème Dép. | Y9: 5ème Dép. | AF9: Rang
D10: A | E10: B | F10: C | G10: D | H10: E | I10: F | L10: A | M10: B | N10: C | O10: D | P10: E | Q10: F
A11: 1 | B11: =Donnees!$F$109 -> GUERANDE | D11: =Donnees!$I$111 -> 79 | E11: =Donnees!$I$112 -> 70 | F11: =Donnees!$I$113 -> 74 | G11: =Donnees!$I$114 -> 82 | H11: =Donnees!$I$115 -> 80 | I11: =Donnees!$I$116 -> 79 | J11: =Donnees!$I$118 -> 382 | K11: =Donnees!$S$118 -> 0 | L11: =Donnees!$R$111 -> 74 | M11: =Donnees!$R$112 -> 81 | N11: =Donnees!$R$113 -> 73 | O11: =Donnees!$R$114 -> 82 | P11: =Donnees!$R$115 -> 0 | Q11: =Donnees!$R$116 -> 0 | R11: =Donnees!$R$118 -> 228 | S11: =Donnees!$T$118 -> 0 | T11: =Donnees!$G$118 -> 610 | U11: =IF(OR(K11>0,S11>0),"DIS",MAX(D11:I11)+MAX(L11:Q11)) -> 164 | V11: =SMALL($D11:$I11,1)+IF($S$8=3,SMALL($L11:$Q11,4),IF($S$8=4,SMALL($L11:$Q11,3),IF($S$8=5,SMALL($L11:$Q11,2),SMALL($L11:$Q11,1)))) -> 143 | W11: =SMALL($D11:$I11,2)+IF($S$8=3,SMALL($L11:$Q11,5),IF($S$8=4,SMALL($L11:$Q11,4),IF($S$8=5,SMALL($L11:$Q11,3),SMALL($L11:$Q11,2)))) -> 148 | X11: =SMALL($D11:$I11,3)+IF($S$8=3,0,IF($S$8=4,SMALL($L11:$Q11,3),IF($S$8=5,SMALL($L11:$Q11,4),SMALL($L11:$Q11,3)))) -> 152 | Y11: =SMALL($D11:$I11,4)+IF($S$8=3,0,IF($S$8=4,0,IF($S$8=5,SMALL($L11:$Q11,5),SMALL($L11:$Q11,4)))) -> 79 | Z11: =IF(U11="dis",999,IF(U11<100,0&U11,U11)) -> 164 | AA11: =IF(V11<100,0&V11,V11) -> 143 | AB11: =IF(W11<100,0&W11,W11) -> 148 | AC11: =IF(X11<100,0&X11,X11) -> 152 | AD11: =IF(Y11<100,0&Y11,Y11) -> 079 | AE11: =CONCATENATE(Z11,AA11,AB11,AC11,AD11) -> 164143148152079 | AF11: 1 | AH11: ALENCON/ARCONNA | AJ11: 79 | AK11: 81 | AL11: 76 | AM11: 81 | AN11: 79 | AO11: 93 | AP11: 396 | AQ11: 0 | AR11: 81 | AS11: 82 | AT11: 76 | AU11: 80 | AV11: 0 | AW11: 0 | AX11: 237 | AY11: 0 | AZ11: 633 | BA11: 175 | BB11: 152 | BC11: 159 | BD11: 155 | BE11: 81 | BF11: 175 | BG11: 152 | BH11: 159 | BI11: 155 | BJ11: 081 | BK11: 175152159155081 | BL11: 3
A12: 2 | B12: =Donnees!$F$186 -> SABLE SOLESMES | D12: =Donnees!$I$188 -> 77 | E12: =Donnees!$I$189 -> 82 | F12: =Donnees!$I$190 -> 75 | G12: =Donnees!$I$191 -> 78 | H12: =Donnees!$I$192 -> 92 | I12: =Donnees!$I$193 -> 77 | J12: =Donnees!$I$195 -> 389 | K12: =Donnees!$S$195 -> 0 | L12: =Donnees!$R$188 -> 78 | M12: =Donnees!$R$189 -> 80 | N12: =Donnees!$R$190 -> 77 | O12: =Donnees!$R$191 -> 81 | P12: =Donnees!$R$192 -> 0 | Q12: =Donnees!$R$193 -> 0 | R12: =Donnees!$R$195 -> 235 | S12: =Donnees!$T$195 -> 0 | T12: =Donnees!$G$195 -> 624 | U12: 173 | V12: 152 | W12: 155 | X12: 154 | Y12: 78 | Z12: 173 | AA12: 152 | AB12: 155 | AC12: 154 | AD12: 078 | AE12: 173152155154078 | AF12: 2 | AH12: BOIS D'O | AJ12: 102 | AK12: 93 | AL12: 90 | AM12: 107 | AN12: 97 | AO12: 83 | AP12: 465 | AQ12: 0 | AR12: 80 | AS12: 87 | AT12: 86 | AU12: 87 | AV12: 0 | AW12: 0 | AX12: 253 | AY12: 0 | AZ12: 718 | BA12: 194 | BB12: 163 | BC12: 176 | BD12: 173 | BE12: 97 | BF12: 194 | BG12: 163 | BH12: 176 | BI12: 173 | BJ12: 097 | BK12: 194163176173097 | BL12: 20
A13: 3 | B13: =Donnees!$F$10 -> ALENCON/ARCONNA | D13: =Donnees!$I$12 -> 79 | E13: =Donnees!$I$13 -> 81 | F13: =Donnees!$I$14 -> 76 | G13: =Donnees!$I$15 -> 81 | H13: =Donnees!$I$16 -> 79 | I13: =Donnees!$I$17 -> 93 | J13: =Donnees!$I$19 -> 396 | K13: =Donnees!$S$19 -> 0 | L13: =Donnees!$R$12 -> 81 | M13: =Donnees!$R$13 -> 82 | N13: =Donnees!$R$14 -> 76 | O13: =Donnees!$R$15 -> 80 | P13: =Donnees!$R$16 -> 0 | Q13: =Donnees!$R$17 -> 0 | R13: =Donnees!$R$19 -> 237 | S13: =Donnees!$T$19 -> 0 | T13: =Donnees!$G$19 -> 633 | U13: 175 | V13: 152 | W13: 159 | X13: 155 | Y13: 81 | Z13: 175 | AA13: 152 | AB13: 159 | AC13: 155 | AD13: 081 | AE13: 175152159155081 | AF13: 3 | AH13: BREST ABERS | AJ13: 95 | AK13: 89 | AL13: 94 | AM13: 88 | AN13: 95 | AO13: 103 | AP13: 461 | AQ13: 0 | AR13: 89 | AS13: 89 | AT13: 84 | AU13: 90 | AV13: 0 | AW13: 0 | AX13: 262 | AY13: 0 | AZ13: 723 | BA13: 193 | BB13: 172 | BC13: 178 | BD13: 178 | BE13: 95 | BF13: 193 | BG13: 172 | BH13: 178 | BI13: 178 | BJ13: 095 | BK13: 193172178178095 | BL13: 21
A14: 4 | B14: =Donnees!$F$120 -> ILE D'OR | D14: =Donnees!$I$122 -> 91 | E14: =Donnees!$I$123 -> 90 | F14: =Donnees!$I$124 -> 76 | G14: =Donnees!$I$125 -> 75 | H14: =Donnees!$I$126 -> 91 | I14: =Donnees!$I$127 -> 75 | J14: =Donnees!$I$129 -> 407 | K14: =Donnees!$S$129 -> 0 | L14: =Donnees!$R$122 -> 88 | M14: =Donnees!$R$123 -> 83 | N14: =Donnees!$R$124 -> 76 | O14: =Donnees!$R$125 -> 73 | P14: =Donnees!$R$126 -> 0 | Q14: =Donnees!$R$127 -> 0 | R14: =Donnees!$R$129 -> 232 | S14: =Donnees!$T$129 -> 0 | T14: =Donnees!$G$129 -> 639 | U14: 179 | V14: 148 | W14: 151 | X14: 149 | Y14: 90 | Z14: 179 | AA14: 148 | AB14: 151 | AC14: 149 | AD14: 090 | AE14: 179148151149090 | AF14: 4 | AH14: BREST IROISE | AJ14: 85 | AK14: 94 | AL14: 91 | AM14: 89 | AN14: 90 | AO14: 91 | AP14: 446 | AQ14: 0 | AR14: 99 | AS14: 80 | AT14: 88 | AU14: 86 | AV14: 0 | AW14: 0 | AX14: 254 | AY14: 0 | AZ14: 700 | BA14: 193 | BB14: 165 | BC14: 175 | BD14: 170 | BE14: 91 | BF14: 193 | BG14: 165 | BH14: 175 | BI14: 170 | BJ14: 091 | BK14: 193165175170091 | BL14: 14
A15: 5 | B15: =Donnees!$F$65 -> CARANTEC | D15: =Donnees!$I$67 -> 82 | E15: =Donnees!$I$68 -> 80 | F15: =Donnees!$I$69 -> 93 | G15: =Donnees!$I$70 -> 80 | H15: =Donnees!$I$71 -> 76 | I15: =Donnees!$I$72 -> 81 | J15: =Donnees!$I$74 -> 399 | K15: =Donnees!$S$74 -> 0 | L15: =Donnees!$R$67 -> 86 | M15: =Donnees!$R$68 -> 75 | N15: =Donnees!$R$69 -> 83 | O15: =Donnees!$R$70 -> 84 | P15: =Donnees!$R$71 -> 0 | Q15: =Donnees!$R$72 -> 0 | R15: =Donnees!$R$74 -> 242 | S15: =Donnees!$T$74 -> 0 | T15: =Donnees!$G$74 -> 641 | U15: 179 | V15: 151 | W15: 163 | X15: 155 | Y15: 81 | Z15: 179 | AA15: 151 | AB15: 163 | AC15: 155 | AD15: 081 | AE15: 179151163155081 | AF15: 5 | AH15: CAP MALO | AJ15: 81 | AK15: 78 | AL15: 84 | AM15: 76 | AN15: 99 | AO15: 93 | AP15: 412 | AQ15: 0 | AR15: 91 | AS15: 94 | AT15: 91 | AU15: 79 | AV15: 0 | AW15: 0 | AX15: 261 | AY15: 0 | AZ15: 673 | BA15: 193 | BB15: 155 | BC15: 169 | BD15: 160 | BE15: 84 | BF15: 193 | BG15: 155 | BH15: 169 | BI15: 160 | BJ15: 084 | BK15: 193155169160084 | BL15: 9
A16: 6 | B16: =Donnees!$F$230 -> SARGE/LE MANS | D16: =Donnees!$I$232 -> 82 | E16: =Donnees!$I$233 -> 79 | F16: =Donnees!$I$234 -> 81 | G16: =Donnees!$I$235 -> 79 | H16: =Donnees!$I$236 -> 90 | I16: =Donnees!$I$237 -> 81 | J16: =Donnees!$I$239 -> 402 | K16: =Donnees!$S$239 -> 0 | L16: =Donnees!$R$232 -> 86 | M16: =Donnees!$R$233 -> 81 | N16: =Donnees!$R$234 -> 82 | O16: =Donnees!$R$235 -> 90 | P16: =Donnees!$R$236 -> 0 | Q16: =Donnees!$R$237 -> 0 | R16: =Donnees!$R$239 -> 249 | S16: =Donnees!$T$239 -> 0 | T16: =Donnees!$G$239 -> 651 | U16: 180 | V16: 160 | W16: 161 | X16: 162 | Y16: 81 | Z16: 180 | AA16: 160 | AB16: 161 | AC16: 162 | AD16: 081 | AE16: 180160161162081 | AF16: 6 | AH16: CARANTEC | AJ16: 82 | AK16: 80 | AL16: 93 | AM16: 80 | AN16: 76 | AO16: 81 | AP16: 399 | AQ16: 0 | AR16: 86 | AS16: 75 | AT16: 83 | AU16: 84 | AV16: 0 | AW16: 0 | AX16: 242 | AY16: 0 | AZ16: 641 | BA16: 179 | BB16: 151 | BC16: 163 | BD16: 155 | BE16: 81 | BF16: 179 | BG16: 151 | BH16: 163 | BI16: 155 | BJ16: 081 | BK16: 179151163155081 | BL16: 5
A17: 7 | B17: =Donnees!$F$208 -> SAINT CAST | D17: =Donnees!$I$210 -> 77 | E17: =Donnees!$I$211 -> 80 | F17: =Donnees!$I$212 -> 82 | G17: =Donnees!$I$213 -> 91 | H17: =Donnees!$I$214 -> 83 | I17: =Donnees!$I$215 -> 97 | J17: =Donnees!$I$217 -> 413 | K17: =Donnees!$S$217 -> 0 | L17: =Donnees!$R$210 -> 73 | M17: =Donnees!$R$211 -> 84 | N17: =Donnees!$R$212 -> 85 | O17: =Donnees!$R$213 -> 95 | P17: =Donnees!$R$214 -> 0 | Q17: =Donnees!$R$215 -> 0 | R17: =Donnees!$R$217 -> 242 | S17: =Donnees!$T$217 -> 0 | T17: =Donnees!$G$217 -> 655 | U17: 192 | V17: 150 | W17: 164 | X17: 155 | Y17: 83 | Z17: 192 | AA17: 150 | AB17: 164 | AC17: 155 | AD17: 083 | AE17: 192150164155083 | AF17: 7 | AH17: CH. AUGERVILLE | AJ17: 90 | AK17: 84 | AL17: 83 | AM17: 83 | AN17: 89 | AO17: 82 | AP17: 421 | AQ17: 0 | AR17: 102 | AS17: 103 | AT17: 84 | AU17: 80 | AV17: 0 | AW17: 0 | AX17: 266 | AY17: 0 | AZ17: 687 | BA17: 193 | BB17: 162 | BC17: 167 | BD17: 163 | BE17: 84 | BF17: 193 | BG17: 162 | BH17: 167 | BI17: 163 | BJ17: 084 | BK17: 193162167163084 | BL17: 13
A18: 8 | B18: =Donnees!$F$142 -> LAVAL | D18: =Donnees!$I$144 -> 82 | E18: =Donnees!$I$145 -> 80 | F18: =Donnees!$I$146 -> 95 | G18: =Donnees!$I$147 -> 83 | H18: =Donnees!$I$148 -> 86 | I18: =Donnees!$I$149 -> 86 | J18: =Donnees!$I$151 -> 417 | K18: =Donnees!$S$151 -> 0 | L18: =Donnees!$R$144 -> 82 | M18: =Donnees!$R$145 -> 83 | N18: =Donnees!$R$146 -> 85 | O18: =Donnees!$R$147 -> 86 | P18: =Donnees!$R$148 -> 0 | Q18: =Donnees!$R$149 -> 0 | R18: =Donnees!$R$151 -> 250 | S18: =Donnees!$T$151 -> 0 | T18: =Donnees!$G$151 -> 667 | U18: 181 | V18: 162 | W18: 165 | X18: 165 | Y18: 86 | Z18: 181 | AA18: 162 | AB18: 165 | AC18: 165 | AD18: 086 | AE18: 181162165165086 | AF18: 8 | AH18: CHARTRES FONTENAY | AJ18: 95 | AK18: 82 | AL18: 101 | AM18: 89 | AN18: 87 | AO18: 83 | AP18: 436 | AQ18: 0 | AR18: 107 | AS18: 89 | AT18: 87 | AU18: 88 | AV18: 0 | AW18: 0 | AX18: 264 | AY18: 0 | AZ18: 700 | BA18: 208 | BB18: 169 | BC18: 171 | BD18: 174 | BE18: 89 | BF18: 208 | BG18: 169 | BH18: 171 | BI18: 174 | BJ18: 089 | BK18: 208169171174089 | BL18: 15
A19: 9 | B19: =Donnees!$F$54 -> CAP MALO | D19: =Donnees!$I$56 -> 81 | E19: =Donnees!$I$57 -> 78 | F19: =Donnees!$I$58 -> 84 | G19: =Donnees!$I$59 -> 76 | H19: =Donnees!$I$60 -> 99 | I19: =Donnees!$I$61 -> 93 | J19: =Donnees!$I$63 -> 412 | K19: =Donnees!$S$63 -> 0 | L19: =Donnees!$R$56 -> 91 | M19: =Donnees!$R$57 -> 94 | N19: =Donnees!$R$58 -> 91 | O19: =Donnees!$R$59 -> 79 | P19: =Donnees!$R$60 -> 0 | Q19: =Donnees!$R$61 -> 0 | R19: =Donnees!$R$63 -> 261 | S19: =Donnees!$T$63 -> 0 | T19: =Donnees!$G$63 -> 673 | U19: 193 | V19: 155 | W19: 169 | X19: 160 | Y19: 84 | Z19: 193 | AA19: 155 | AB19: 169 | AC19: 160 | AD19: 084 | AE19: 193155169160084 | AF19: 9 | AH19: GLORIETTE | AJ19: 77 | AK19: 101 | AL19: 81 | AM19: 100 | AN19: 95 | AO19: 100 | AP19: 453 | AQ19: 0 | AR19: 109 | AS19: 76 | AT19: 98 | AU19: 87 | AV19: 0 | AW19: 0 | AX19: 261 | AY19: 0 | AZ19: 714 | BA19: 210 | BB19: 153 | BC19: 168 | BD19: 171 | BE19: 100 | BF19: 210 | BG19: 153 | BH19: 168 | BI19: 171 | BJ19: 100 | BK19: 210153168171100 | BL19: 18
A20: 10 | B20: =Donnees!$F$164 -> VAL DE L'INDRE | D20: =Donnees!$I$166 -> 73 | E20: =Donnees!$I$167 -> 73 | F20: =Donnees!$I$168 -> 91 | G20: =Donnees!$I$169 -> 94 | H20: =Donnees!$I$170 -> 104 | I20: =Donnees!$I$171 -> 98 | J20: =Donnees!$I$173 -> 429 | K20: =Donnees!$S$173 -> 0 | L20: =Donnees!$R$166 -> 73 | M20: =Donnees!$R$167 -> 97 | N20: =Donnees!$R$168 -> 89 | O20: =Donnees!$R$169 -> 90 | P20: =Donnees!$R$170 -> 0 | Q20: =Donnees!$R$171 -> 0 | R20: =Donnees!$R$173 -> 252 | S20: =Donnees!$T$173 -> 0 | T20: =Donnees!$G$173 -> 681 | U20: 201 | V20: 146 | W20: 162 | X20: 164 | Y20: 94 | Z20: 201 | AA20: 146 | AB20: 162 | AC20: 164 | AD20: 094 | AE20: 201146162164094 | AF20: 10 | AH20: GUERANDE | AJ20: 79 | AK20: 70 | AL20: 74 | AM20: 82 | AN20: 80 | AO20: 79 | AP20: 382 | AQ20: 0 | AR20: 74 | AS20: 81 | AT20: 73 | AU20: 82 | AV20: 0 | AW20: 0 | AX20: 228 | AY20: 0 | AZ20: 610 | BA20: 164 | BB20: 143 | BC20: 148 | BD20: 152 | BE20: 79 | BF20: 164 | BG20: 143 | BH20: 148 | BI20: 152 | BJ20: 079 | BK20: 164143148152079 | BL20: 1
A21: 11 | B21: =Donnees!$F$175 -> ROCHERS SEVIGNE | D21: =Donnees!$I$177 -> 81 | E21: =Donnees!$I$178 -> 86 | F21: =Donnees!$I$179 -> 90 | G21: =Donnees!$I$180 -> 95 | H21: =Donnees!$I$181 -> 88 | I21: =Donnees!$I$182 -> ABN | J21: =Donnees!$I$184 -> 440 | K21: =Donnees!$S$184 -> 1 | L21: =Donnees!$R$177 -> 74 | M21: =Donnees!$R$178 -> 88 | N21: =Donnees!$R$179 -> 92 | O21: =Donnees!$R$180 -> 81 | P21: =Donnees!$R$181 -> 0 | Q21: =Donnees!$R$182 -> 0 | R21: =Donnees!$R$184 -> 243 | S21: =Donnees!$T$184 -> 0 | T21: =Donnees!$G$184 -> 683 | U21: DIS | V21: 155 | W21: 167 | X21: 162 | Y21: 90 | Z21: 999 | AA21: 155 | AB21: 167 | AC21: 162 | AD21: 090 | AE21: 999155167162090 | AF21: 11 | AH21: ILE D'OR | AJ21: 91 | AK21: 90 | AL21: 76 | AM21: 75 | AN21: 91 | AO21: 75 | AP21: 407 | AQ21: 0 | AR21: 88 | AS21: 83 | AT21: 76 | AU21: 73 | AV21: 0 | AW21: 0 | AX21: 232 | AY21: 0 | AZ21: 639 | BA21: 179 | BB21: 148 | BC21: 151 | BD21: 149 | BE21: 90 | BF21: 179 | BG21: 148 | BH21: 151 | BI21: 149 | BJ21: 090 | BK21: 179148151149090 | BL21: 4
A22: 12 | B22: =Donnees!$F$131 -> LAC AU DUC | D22: =Donnees!$I$133 -> 91 | E22: =Donnees!$I$134 -> 86 | F22: =Donnees!$I$135 -> 78 | G22: =Donnees!$I$136 -> 81 | H22: =Donnees!$I$137 -> 92 | I22: =Donnees!$I$138 -> 93 | J22: =Donnees!$I$140 -> 428 | K22: =Donnees!$S$140 -> 0 | L22: =Donnees!$R$133 -> 99 | M22: =Donnees!$R$134 -> 104 | N22: =Donnees!$R$135 -> 80 | O22: =Donnees!$R$136 -> 78 | P22: =Donnees!$R$137 -> 0 | Q22: =Donnees!$R$138 -> 0 | R22: =Donnees!$R$140 -> 257 | S22: =Donnees!$T$140 -> 0 | T22: =Donnees!$G$140 -> 685 | U22: 197 | V22: 156 | W22: 161 | X22: 164 | Y22: 91 | Z22: 197 | AA22: 156 | AB22: 161 | AC22: 164 | AD22: 091 | AE22: 197156161164091 | AF22: 12 | AH22: LAC AU DUC | AJ22: 91 | AK22: 86 | AL22: 78 | AM22: 81 | AN22: 92 | AO22: 93 | AP22: 428 | AQ22: 0 | AR22: 99 | AS22: 104 | AT22: 80 | AU22: 78 | AV22: 0 | AW22: 0 | AX22: 257 | AY22: 0 | AZ22: 685 | BA22: 197 | BB22: 156 | BC22: 161 | BD22: 164 | BE22: 91 | BF22: 197 | BG22: 156 | BH22: 161 | BI22: 164 | BJ22: 091 | BK22: 197156161164091 | BL22: 12
A23: 13 | B23: =Donnees!$F$76 -> CH. AUGERVILLE | D23: =Donnees!$I$78 -> 90 | E23: =Donnees!$I$79 -> 84 | F23: =Donnees!$I$80 -> 83 | G23: =Donnees!$I$81 -> 83 | H23: =Donnees!$I$82 -> 89 | I23: =Donnees!$I$83 -> 82 | J23: =Donnees!$I$85 -> 421 | K23: =Donnees!$S$85 -> 0 | L23: =Donnees!$R$78 -> 102 | M23: =Donnees!$R$79 -> 103 | N23: =Donnees!$R$80 -> 84 | O23: =Donnees!$R$81 -> 80 | P23: =Donnees!$R$82 -> 0 | Q23: =Donnees!$R$83 -> 0 | R23: =Donnees!$R$85 -> 266 | S23: =Donnees!$T$85 -> 0 | T23: =Donnees!$G$85 -> 687 | U23: 193 | V23: 162 | W23: 167 | X23: 163 | Y23: 84 | Z23: 193 | AA23: 162 | AB23: 167 | AC23: 163 | AD23: 084 | AE23: 193162167163084 | AF23: 13 | AH23: LAVAL | AJ23: 82 | AK23: 80 | AL23: 95 | AM23: 83 | AN23: 86 | AO23: 86 | AP23: 417 | AQ23: 0 | AR23: 82 | AS23: 83 | AT23: 85 | AU23: 86 | AV23: 0 | AW23: 0 | AX23: 250 | AY23: 0 | AZ23: 667 | BA23: 181 | BB23: 162 | BC23: 165 | BD23: 165 | BE23: 86 | BF23: 181 | BG23: 162 | BH23: 165 | BI23: 165 | BJ23: 086 | BK23: 181162165165086 | BL23: 8
A24: 14 | B24: =Donnees!$F$43 -> BREST IROISE | D24: =Donnees!$I$45 -> 85 | E24: =Donnees!$I$46 -> 94 | F24: =Donnees!$I$47 -> 91 | G24: =Donnees!$I$48 -> 89 | H24: =Donnees!$I$49 -> 90 | I24: =Donnees!$I$50 -> 91 | J24: =Donnees!$I$52 -> 446 | K24: =Donnees!$S$52 -> 0 | L24: =Donnees!$R$45 -> 99 | M24: =Donnees!$R$46 -> 80 | N24: =Donnees!$R$47 -> 88 | O24: =Donnees!$R$48 -> 86 | P24: =Donnees!$R$49 -> 0 | Q24: =Donnees!$R$50 -> 0 | R24: =Donnees!$R$52 -> 254 | S24: =Donnees!$T$52 -> 0 | T24: =Donnees!$G$52 -> 700 | U24: 193 | V24: 165 | W24: 175 | X24: 170 | Y24: 91 | Z24: 193 | AA24: 165 | AB24: 175 | AC24: 170 | AD24: 091 | AE24: 193165175170091 | AF24: 14 | AH24: ORLEANS DONNERY | AJ24: 94 | AK24: ABS | AL24: 92 | AM24: 83 | AN24: 89 | AO24: 88 | AP24: 446 | AQ24: 1 | AR24: ABS | AS24: 95 | AT24: 87 | AU24: 88 | AV24: 0 | AW24: 0 | AX24: 270 | AY24: 1 | AZ24: 716 | BA24: DIS | BB24: 170 | BC24: 176 | BD24: 176 | BE24: 92 | BF24: 999 | BG24: 170 | BH24: 176 | BI24: 176 | BJ24: 092 | BK24: 999170176176092 | BL24: 19
A25: 15 | B25: =Donnees!$F$87 -> CHARTRES FONTENAY | D25: =Donnees!$I$89 -> 95 | E25: =Donnees!$I$90 -> 82 | F25: =Donnees!$I$91 -> 101 | G25: =Donnees!$I$92 -> 89 | H25: =Donnees!$I$93 -> 87 | I25: =Donnees!$I$94 -> 83 | J25: =Donnees!$I$96 -> 436 | K25: =Donnees!$S$96 -> 0 | L25: =Donnees!$R$89 -> 107 | M25: =Donnees!$R$90 -> 89 | N25: =Donnees!$R$91 -> 87 | O25: =Donnees!$R$92 -> 88 | P25: =Donnees!$R$93 -> 0 | Q25: =Donnees!$R$94 -> 0 | R25: =Donnees!$R$96 -> 264 | S25: =Donnees!$T$96 -> 0 | T25: =Donnees!$G$96 -> 700 | U25: 208 | V25: 169 | W25: 171 | X25: 174 | Y25: 89 | Z25: 208 | AA25: 169 | AB25: 171 | AC25: 174 | AD25: 089 | AE25: 208169171174089 | AF25: 15 | AH25: ROCHERS SEVIGNE | AJ25: 81 | AK25: 86 | AL25: 90 | AM25: 95 | AN25: 88 | AO25: ABN | AP25: 440 | AQ25: 1 | AR25: 74 | AS25: 88 | AT25: 92 | AU25: 81 | AV25: 0 | AW25: 0 | AX25: 243 | AY25: 0 | AZ25: 683 | BA25: DIS | BB25: 155 | BC25: 167 | BD25: 162 | BE25: 90 | BF25: 999 | BG25: 155 | BH25: 167 | BI25: 162 | BJ25: 090 | BK25: 999155167162090 | BL25: 11
A26: 16 | B26: =Donnees!$F$197 -> SABLES D'OLONNE | D26: =Donnees!$I$199 -> 86 | E26: =Donnees!$I$200 -> 95 | F26: =Donnees!$I$201 -> 84 | G26: =Donnees!$I$202 -> 98 | H26: =Donnees!$I$203 -> 99 | I26: =Donnees!$I$204 -> 83 | J26: =Donnees!$I$206 -> 446 | K26: =Donnees!$S$206 -> 0 | L26: =Donnees!$R$199 -> 81 | M26: =Donnees!$R$200 -> 90 | N26: =Donnees!$R$201 -> 84 | O26: =Donnees!$R$202 -> 96 | P26: =Donnees!$R$203 -> 0 | Q26: =Donnees!$R$204 -> 0 | R26: =Donnees!$R$206 -> 255 | S26: =Donnees!$T$206 -> 0 | T26: =Donnees!$G$206 -> 701 | U26: 195 | V26: 164 | W26: 168 | X26: 167 | Y26: 95 | Z26: 195 | AA26: 164 | AB26: 168 | AC26: 167 | AD26: 095 | AE26: 195164168167095 | AF26: 16 | AH26: SABLE SOLESMES | AJ26: 77 | AK26: 82 | AL26: 75 | AM26: 78 | AN26: 92 | AO26: 77 | AP26: 389 | AQ26: 0 | AR26: 78 | AS26: 80 | AT26: 77 | AU26: 81 | AV26: 0 | AW26: 0 | AX26: 235 | AY26: 0 | AZ26: 624 | BA26: 173 | BB26: 152 | BC26: 155 | BD26: 154 | BE26: 78 | BF26: 173 | BG26: 152 | BH26: 155 | BI26: 154 | BJ26: 078 | BK26: 173152155154078 | BL26: 2
A27: 17 | B27: =Donnees!$F$219 -> SAINT-BRIEUC | D27: =Donnees!$I$221 -> 101 | E27: =Donnees!$I$222 -> 90 | F27: =Donnees!$I$223 -> 100 | G27: =Donnees!$I$224 -> 97 | H27: =Donnees!$I$225 -> 86 | I27: =Donnees!$I$226 -> 87 | J27: =Donnees!$I$228 -> 460 | K27: =Donnees!$S$228 -> 0 | L27: =Donnees!$R$221 -> 103 | M27: =Donnees!$R$222 -> 83 | N27: =Donnees!$R$223 -> 83 | O27: =Donnees!$R$224 -> 87 | P27: =Donnees!$R$225 -> 0 | Q27: =Donnees!$R$226 -> 0 | R27: =Donnees!$R$228 -> 253 | S27: =Donnees!$T$228 -> 0 | T27: =Donnees!$G$228 -> 713 | U27: 204 | V27: 169 | W27: 170 | X27: 173 | Y27: 97 | Z27: 204 | AA27: 169 | AB27: 170 | AC27: 173 | AD27: 097 | AE27: 204169170173097 | AF27: 17 | AH27: SABLES D'OLONNE | AJ27: 86 | AK27: 95 | AL27: 84 | AM27: 98 | AN27: 99 | AO27: 83 | AP27: 446 | AQ27: 0 | AR27: 81 | AS27: 90 | AT27: 84 | AU27: 96 | AV27: 0 | AW27: 0 | AX27: 255 | AY27: 0 | AZ27: 701 | BA27: 195 | BB27: 164 | BC27: 168 | BD27: 167 | BE27: 95 | BF27: 195 | BG27: 164 | BH27: 168 | BI27: 167 | BJ27: 095 | BK27: 195164168167095 | BL27: 16
A28: 18 | B28: =Donnees!$F$98 -> GLORIETTE | D28: =Donnees!$I$100 -> 77 | E28: =Donnees!$I$101 -> 101 | F28: =Donnees!$I$102 -> 81 | G28: =Donnees!$I$103 -> 100 | H28: =Donnees!$I$104 -> 95 | I28: =Donnees!$I$105 -> 100 | J28: =Donnees!$I$107 -> 453 | K28: =Donnees!$S$107 -> 0 | L28: =Donnees!$R$100 -> 109 | M28: =Donnees!$R$101 -> 76 | N28: =Donnees!$R$102 -> 98 | O28: =Donnees!$R$103 -> 87 | P28: =Donnees!$R$104 -> 0 | Q28: =Donnees!$R$105 -> 0 | R28: =Donnees!$R$107 -> 261 | S28: =Donnees!$T$107 -> 0 | T28: =Donnees!$G$107 -> 714 | U28: 210 | V28: 153 | W28: 168 | X28: 171 | Y28: 100 | Z28: 210 | AA28: 153 | AB28: 168 | AC28: 171 | AD28: 100 | AE28: 210153168171100 | AF28: 18 | AH28: SAINT CAST | AJ28: 77 | AK28: 80 | AL28: 82 | AM28: 91 | AN28: 83 | AO28: 97 | AP28: 413 | AQ28: 0 | AR28: 73 | AS28: 84 | AT28: 85 | AU28: 95 | AV28: 0 | AW28: 0 | AX28: 242 | AY28: 0 | AZ28: 655 | BA28: 192 | BB28: 150 | BC28: 164 | BD28: 155 | BE28: 83 | BF28: 192 | BG28: 150 | BH28: 164 | BI28: 155 | BJ28: 083 | BK28: 192150164155083 | BL28: 7
A29: 19 | B29: =Donnees!$F$153 -> ORLEANS DONNERY | D29: =Donnees!$I$155 -> 94 | E29: =Donnees!$I$156 -> ABS | F29: =Donnees!$I$157 -> 92 | G29: =Donnees!$I$158 -> 83 | H29: =Donnees!$I$159 -> 89 | I29: =Donnees!$I$160 -> 88 | J29: =Donnees!$I$162 -> 446 | K29: =Donnees!$S$162 -> 1 | L29: =Donnees!$R$155 -> ABS | M29: =Donnees!$R$156 -> 95 | N29: =Donnees!$R$157 -> 87 | O29: =Donnees!$R$158 -> 88 | P29: =Donnees!$R$159 -> 0 | Q29: =Donnees!$R$160 -> 0 | R29: =Donnees!$R$162 -> 270 | S29: =Donnees!$T$162 -> 1 | T29: =Donnees!$G$162 -> 716 | U29: DIS | V29: 170 | W29: 176 | X29: 176 | Y29: 92 | Z29: 999 | AA29: 170 | AB29: 176 | AC29: 176 | AD29: 092 | AE29: 999170176176092 | AF29: 19 | AH29: SAINT-BRIEUC | AJ29: 101 | AK29: 90 | AL29: 100 | AM29: 97 | AN29: 86 | AO29: 87 | AP29: 460 | AQ29: 0 | AR29: 103 | AS29: 83 | AT29: 83 | AU29: 87 | AV29: 0 | AW29: 0 | AX29: 253 | AY29: 0 | AZ29: 713 | BA29: 204 | BB29: 169 | BC29: 170 | BD29: 173 | BE29: 97 | BF29: 204 | BG29: 169 | BH29: 170 | BI29: 173 | BJ29: 097 | BK29: 204169170173097 | BL29: 17
A30: 20 | B30: =Donnees!$F$21 -> BOIS D'O | D30: =Donnees!$I$23 -> 102 | E30: =Donnees!$I$24 -> 93 | F30: =Donnees!$I$25 -> 90 | G30: =Donnees!$I$26 -> 107 | H30: =Donnees!$I$27 -> 97 | I30: =Donnees!$I$28 -> 83 | J30: =Donnees!$I$30 -> 465 | K30: =Donnees!$S$30 -> 0 | L30: =Donnees!$R$23 -> 80 | M30: =Donnees!$R$24 -> 87 | N30: =Donnees!$R$25 -> 86 | O30: =Donnees!$R$26 -> 87 | P30: =Donnees!$R$27 -> 0 | Q30: =Donnees!$R$28 -> 0 | R30: =Donnees!$R$30 -> 253 | S30: =Donnees!$T$30 -> 0 | T30: =Donnees!$G$30 -> 718 | U30: 194 | V30: 163 | W30: 176 | X30: 173 | Y30: 97 | Z30: 194 | AA30: 163 | AB30: 176 | AC30: 173 | AD30: 097 | AE30: 194163176173097 | AF30: 20 | AH30: SARGE/LE MANS | AJ30: 82 | AK30: 79 | AL30: 81 | AM30: 79 | AN30: 90 | AO30: 81 | AP30: 402 | AQ30: 0 | AR30: 86 | AS30: 81 | AT30: 82 | AU30: 90 | AV30: 0 | AW30: 0 | AX30: 249 | AY30: 0 | AZ30: 651 | BA30: 180 | BB30: 160 | BC30: 161 | BD30: 162 | BE30: 81 | BF30: 180 | BG30: 160 | BH30: 161 | BI30: 162 | BJ30: 081 | BK30: 180160161162081 | BL30: 6
A31: 21 | B31: =Donnees!$F$32 -> BREST ABERS | D31: =Donnees!$I$34 -> 95 | E31: =Donnees!$I$35 -> 89 | F31: =Donnees!$I$36 -> 94 | G31: =Donnees!$I$37 -> 88 | H31: =Donnees!$I$38 -> 95 | I31: =Donnees!$I$39 -> 103 | J31: =Donnees!$I$41 -> 461 | K31: =Donnees!$S$41 -> 0 | L31: =Donnees!$R$34 -> 89 | M31: =Donnees!$R$35 -> 89 | N31: =Donnees!$R$36 -> 84 | O31: =Donnees!$R$37 -> 90 | P31: =Donnees!$R$38 -> 0 | Q31: =Donnees!$R$39 -> 0 | R31: =Donnees!$R$41 -> 262 | S31: =Donnees!$T$41 -> 0 | T31: =Donnees!$G$41 -> 723 | U31: 193 | V31: 172 | W31: 178 | X31: 178 | Y31: 95 | Z31: 193 | AA31: 172 | AB31: 178 | AC31: 178 | AD31: 095 | AE31: 193172178178095 | AF31: 21 | AH31: VAL DE L'INDRE | AJ31: 73 | AK31: 73 | AL31: 91 | AM31: 94 | AN31: 104 | AO31: 98 | AP31: 429 | AQ31: 0 | AR31: 73 | AS31: 97 | AT31: 89 | AU31: 90 | AV31: 0 | AW31: 0 | AX31: 252 | AY31: 0 | AZ31: 681 | BA31: 201 | BB31: 146 | BC31: 162 | BD31: 164 | BE31: 94 | BF31: 201 | BG31: 146 | BH31: 162 | BI31: 164 | BJ31: 094 | BK31: 201146162164094 | BL31: 10
A32: 22 | B32: =Donnees!$F$241 -> VAL DE L'INDRE | D32: =Donnees!$I$243 -> 0 | E32: =Donnees!$I$244 -> 0 | F32: =Donnees!$I$245 -> 0 | G32: =Donnees!$I$246 -> 0 | H32: =Donnees!$I$247 -> 0 | I32: =Donnees!$I$248 -> 0 | J32: =Donnees!$I$250 -> 0 | K32: =Donnees!$S$250 -> 0 | L32: =Donnees!$R$243 -> 0 | M32: =Donnees!$R$244 -> 0 | N32: =Donnees!$R$245 -> 0 | O32: =Donnees!$R$246 -> 0 | P32: =Donnees!$R$247 -> 0 | Q32: =Donnees!$R$248 -> 0 | R32: =Donnees!$R$250 -> 0 | S32: =Donnees!$T$250 -> 0 | T32: =Donnees!$G$250 -> 0 | U32: =IF(OR(K32>0,S32>0),"DIS",MAX(D32:I32)+MAX(L32:Q32)) -> 0 | V32: =SMALL($D32:$I32,1)+IF($S$8=3,SMALL($L32:$Q32,4),IF($S$8=4,SMALL($L32:$Q32,3),IF($S$8=5,SMALL($L32:$Q32,2),SMALL($L32:$Q32,1)))) -> 0 | W32: =SMALL($D32:$I32,2)+IF($S$8=3,SMALL($L32:$Q32,5),IF($S$8=4,SMALL($L32:$Q32,4),IF($S$8=5,SMALL($L32:$Q32,3),SMALL($L32:$Q32,2)))) -> 0 | X32: =SMALL($D32:$I32,3)+IF($S$8=3,0,IF($S$8=4,SMALL($L32:$Q32,3),IF($S$8=5,SMALL($L32:$Q32,4),SMALL($L32:$Q32,3)))) -> 0 | Y32: =SMALL($D32:$I32,4)+IF($S$8=3,0,IF($S$8=4,0,IF($S$8=5,SMALL($L32:$Q32,5),SMALL($L32:$Q32,4)))) -> 0 | Z32: =IF(U32="dis",999,IF(U32<100,0&U32,U32)) -> 00 | AA32: =IF(V32<100,0&V32,V32) -> 00 | AB32: =IF(W32<100,0&W32,W32) -> 00 | AC32: =IF(X32<100,0&X32,X32) -> 00 | AD32: =IF(Y32<100,0&Y32,Y32) -> 00 | AE32: =CONCATENATE(Z32,AA32,AB32,AC32,AD32) -> 0000000000 | AF32: 22 | BL32: 22
A33: 23 | B33: =Donnees!$F$252 -> 0 | D33: =Donnees!$I$254 -> 0 | E33: =Donnees!$I$255 -> 0 | F33: =Donnees!$I$256 -> 0 | G33: =Donnees!$I$257 -> 0 | H33: =Donnees!$I$258 -> 0 | I33: =Donnees!$I$259 -> 0 | J33: =Donnees!$I$261 -> 0 | K33: =Donnees!$S$261 -> 0 | L33: =Donnees!$R$254 -> 0 | M33: =Donnees!$R$255 -> 0 | N33: =Donnees!$R$256 -> 0 | O33: =Donnees!$R$257 -> 0 | P33: =Donnees!$R$258 -> 0 | Q33: =Donnees!$R$259 -> 0 | R33: =Donnees!$R$261 -> 0 | S33: =Donnees!$T$261 -> 0 | T33: =Donnees!$G$261 -> 0 | U33: 0 | V33: 0 | W33: 0 | X33: 0 | Y33: 0 | Z33: 00 | AA33: 00 | AB33: 00 | AC33: 00 | AD33: 00 | AE33: 0000000000 | AF33: 23 | BL33: 23
A34: 24 | B34: =Donnees!$F$263 -> 0 | D34: =Donnees!$I$265 -> 0 | E34: =Donnees!$I$266 -> 0 | F34: =Donnees!$I$267 -> 0 | G34: =Donnees!$I$268 -> 0 | H34: =Donnees!$I$269 -> 0 | I34: =Donnees!$I$270 -> 0 | J34: =Donnees!$I$272 -> 0 | K34: =Donnees!$S$272 -> 0 | L34: =Donnees!$R$265 -> 0 | M34: =Donnees!$R$266 -> 0 | N34: =Donnees!$R$267 -> 0 | O34: =Donnees!$R$268 -> 0 | P34: =Donnees!$R$269 -> 0 | Q34: =Donnees!$R$270 -> 0 | R34: =Donnees!$R$272 -> 0 | S34: =Donnees!$T$272 -> 0 | T34: =Donnees!$G$272 -> 0 | U34: 0 | V34: 0 | W34: 0 | X34: 0 | Y34: 0 | Z34: 00 | AA34: 00 | AB34: 00 | AC34: 00 | AD34: 00 | AE34: 0000000000 | AF34: 24 | BL34: 24
